Workbook

Sheet Sheet1
B1: Taylor Polynomial Approximations
C3: This graphing utility lets you investigate
C4: the Taylor polynomial approximations
C5: to any function y = f(x)
C6: centered about x = x0
A8: Enter the function in terms of x: f(x) = | E8: exp(x)
B10: What is the center point: x0 = | D10: 0
B13: Enter the interval for x:
C14: xMin = | D14: -2
C15: xMax = | D15: 4
G16: Trace along the curves:
A18: Now select all the Taylor polynomials you want to see | H18: 215 | J18: x = | K18: =aa+2*dx*H18 -> 3.16
D20: TRUE | G20: Along the original curve, y = | K20: =LOOKUP(x00,Sheet2!C2:C502,Sheet2!D2:D502) -> 23.289439
G22: =" "&IF(D20=FALSE,"","On the linear function, y =") -> On the linear function, y = | K22: =IF(D20=FALSE," ",LOOKUP(x00,Sheet2!C$2:C$502,Sheet2!F$2:F$502)) -> 4.166964
D23: TRUE
G24: =" "&IF(D23=FALSE,"","On the quadratic function, y =") -> On the quadratic function, y = | K24: =IF(D23=FALSE,"",LOOKUP(x00,Sheet2!C$2:C$502,Sheet2!I$2:I$502)) -> 9.181794
D25: FALSE
G26: =" "&IF(D25=FALSE,""," On the cubic function, y =") ->  | K26: =IF(D25=FALSE,"",LOOKUP(x00,Sheet2!C$2:C$502,Sheet2!L$2:L$502)) -> 
B27: TRUE | D27: TRUE
G28: =" "&IF(D27=FALSE,""," On the quartic function, y =") -> On the quartic function, y = | K28: =IF(D27=FALSE,"",LOOKUP(x00,Sheet2!C$2:C$502,Sheet2!O$2:O$502)) -> 18.667141
B30: FALSE | D30: TRUE | G30: =" "&IF(D30=FALSE,""," On the quintic function, y =") -> On the quintic function, y = | K30: =IF(D30=FALSE,"",LOOKUP(x00,Sheet2!C$2:C$502,Sheet2!R$2:R$502)) -> 21.321949
G32: =" "&IF(D33=FALSE,""," On the sextic function, y =") -> On the sextic function, y = | K32: =IF(D33=FALSE,"",LOOKUP(x00,Sheet2!C$2:C$502,Sheet2!U$2:U$502)) -> 22.725131
B33: FALSE | D33: TRUE | K33: :
K34: :
K35: =LOOKUP(x00,Sheet2!C17:C517,Sheet2!D17:D517) -> 23.289439
A37: Click each item below for suggestions and investigations
C38: Item 1
C39: Item 2
C40: Item 3
C41: Item 4
A44: To access/download all the DIGMath Apps for Numerical Analysis
A45: Click this link: | C45: DIGMath Modules for Numerical Analysis
A47: Created by: Sheldon P. Gordon
A48: Farmingdale State College
A49: Development of this module was supported by the
A50: NSF's Division of Undergraduate Education
A51: under grants DUE-0310123 and DUE-0442160.

Sheet Sheet2
C1: x | D1: y | E1: linear | H1: Quadratic | K1: Cubic | N1: Quartic | Q1: Quintic | T1: Sextic
C2: =aa -> -2 | D2: =EXP(x) -> 0.14 | E2: =IF(Sheet1!D$20=TRUE,x,x0) -> -2.00 | F2: =IF(Sheet1!D$20=TRUE,y0+d0*(x-x0),y0) -> -1.012 | H2: =IF(Sheet1!$D$23=TRUE,x,x0) -> -2.00 | I2: =IF(Sheet1!$D$23=TRUE,y0+d0*(x-x0)+e0*(x-x0)^2,y0) -> 1.012 | K2: =IF(Sheet1!$D$25=TRUE,x,x0) -> 0.00 | L2: =IF(Sheet1!$D$25=TRUE,y0+d0*(x-x0)+e0*(x-x0)^2+f0*(x-x0)^3,y0) -> 1.000 | N2: =IF(Sheet1!$D$27=TRUE,x,x0) -> -2.00 | O2: =IF(Sheet1!$D$27=TRUE,y0+d0*(x-x0)+e0*(x-x0)^2+f0*(x-x0)^3+g0*(x-x0)^4,y0) -> 0.337 | Q2: =IF(Sheet1!$D$30=TRUE,x,x0) -> -2.00 | R2: =IF(Sheet1!$D$30=TRUE,y0+d0*(x-x0)+e0*(x-x0)^2+f0*(x-x0)^3+g0*(x-x0)^4+h0*(x-x0)^5,y0) -> 0.063 | T2: =IF(Sheet1!$D$33=TRUE,x,x0) -> -2.00 | U2: =IF(Sheet1!$D$33=TRUE,y0+d0*(x-x0)+e0*(x-x0)^2+f0*(x-x0)^3+g0*(x-x0)^4+h0*(x-x0)^5+i0*(x-x0)^6,y0) -> 0.155
C3: =aa+dx -> -1.988 | D3: 0.14 | E3: =IF(Sheet1!D$20=TRUE,x,x0) -> -1.99 | F3: =IF(Sheet1!D$20=TRUE,y0+d0*(x-x0),y0) -> -1.000 | H3: =IF(Sheet1!$D$23=TRUE,x,x0) -> -1.99 | I3: =IF(Sheet1!$D$23=TRUE,y0+d0*(x-x0)+e0*(x-x0)^2,y0) -> 1.000 | K3: =IF(Sheet1!$D$25=TRUE,x,x0) -> 0.00 | L3: =IF(Sheet1!$D$25=TRUE,y0+d0*(x-x0)+e0*(x-x0)^2+f0*(x-x0)^3,y0) -> 1.000 | N3: =IF(Sheet1!$D$27=TRUE,x,x0) -> -1.99 | O3: =IF(Sheet1!$D$27=TRUE,y0+d0*(x-x0)+e0*(x-x0)^2+f0*(x-x0)^3+g0*(x-x0)^4,y0) -> 0.333 | Q3: =IF(Sheet1!$D$30=TRUE,x,x0) -> -1.99 | R3: =IF(Sheet1!$D$30=TRUE,y0+d0*(x-x0)+e0*(x-x0)^2+f0*(x-x0)^3+g0*(x-x0)^4+h0*(x-x0)^5,y0) -> 0.067 | T3: =IF(Sheet1!$D$33=TRUE,x,x0) -> -1.99 | U3: =IF(Sheet1!$D$33=TRUE,y0+d0*(x-x0)+e0*(x-x0)^2+f0*(x-x0)^3+g0*(x-x0)^4+h0*(x-x0)^5+i0*(x-x0)^6,y0) -> 0.156
A4: a = | B4: =aa -> -2 | C4: =C3+dx -> -1.976 | D4: 0.14 | E4: =IF(Sheet1!D$20=TRUE,x,x0) -> -1.98 | F4: =IF(Sheet1!D$20=TRUE,y0+d0*(x-x0),y0) -> -0.988 | H4: =IF(Sheet1!$D$23=TRUE,x,x0) -> -1.98 | I4: =IF(Sheet1!$D$23=TRUE,y0+d0*(x-x0)+e0*(x-x0)^2,y0) -> 0.988 | K4: =IF(Sheet1!$D$25=TRUE,x,x0) -> 0.00 | L4: =IF(Sheet1!$D$25=TRUE,y0+d0*(x-x0)+e0*(x-x0)^2+f0*(x-x0)^3,y0) -> 1.000 | N4: =IF(Sheet1!$D$27=TRUE,x,x0) -> -1.98 | O4: =IF(Sheet1!$D$27=TRUE,y0+d0*(x-x0)+e0*(x-x0)^2+f0*(x-x0)^3+g0*(x-x0)^4,y0) -> 0.329 | Q4: =IF(Sheet1!$D$30=TRUE,x,x0) -> -1.98 | R4: =IF(Sheet1!$D$30=TRUE,y0+d0*(x-x0)+e0*(x-x0)^2+f0*(x-x0)^3+g0*(x-x0)^4+h0*(x-x0)^5,y0) -> 0.071 | T4: =IF(Sheet1!$D$33=TRUE,x,x0) -> -1.98 | U4: =IF(Sheet1!$D$33=TRUE,y0+d0*(x-x0)+e0*(x-x0)^2+f0*(x-x0)^3+g0*(x-x0)^4+h0*(x-x0)^5+i0*(x-x0)^6,y0) -> 0.157
A5: b = | B5: =bb -> 4 | C5: -1.964 | D5: 0.14 | E5: =IF(Sheet1!D$20=TRUE,x,x0) -> -1.96 | F5: =IF(Sheet1!D$20=TRUE,y0+d0*(x-x0),y0) -> -0.976 | H5: =IF(Sheet1!$D$23=TRUE,x,x0) -> -1.96 | I5: =IF(Sheet1!$D$23=TRUE,y0+d0*(x-x0)+e0*(x-x0)^2,y0) -> 0.976 | K5: =IF(Sheet1!$D$25=TRUE,x,x0) -> 0.00 | L5: =IF(Sheet1!$D$25=TRUE,y0+d0*(x-x0)+e0*(x-x0)^2+f0*(x-x0)^3,y0) -> 1.000 | N5: =IF(Sheet1!$D$27=TRUE,x,x0) -> -1.96 | O5: =IF(Sheet1!$D$27=TRUE,y0+d0*(x-x0)+e0*(x-x0)^2+f0*(x-x0)^3+g0*(x-x0)^4,y0) -> 0.326 | Q5: =IF(Sheet1!$D$30=TRUE,x,x0) -> -1.96 | R5: =IF(Sheet1!$D$30=TRUE,y0+d0*(x-x0)+e0*(x-x0)^2+f0*(x-x0)^3+g0*(x-x0)^4+h0*(x-x0)^5,y0) -> 0.075 | T5: =IF(Sheet1!$D$33=TRUE,x,x0) -> -1.96 | U5: =IF(Sheet1!$D$33=TRUE,y0+d0*(x-x0)+e0*(x-x0)^2+f0*(x-x0)^3+g0*(x-x0)^4+h0*(x-x0)^5+i0*(x-x0)^6,y0) -> 0.157
A6: dx = | B6: =(bb-aa)/500 -> 0.012 | C6: -1.952 | D6: 0.14 | E6: =IF(Sheet1!D$20=TRUE,x,x0) -> -1.95 | F6: =IF(Sheet1!D$20=TRUE,y0+d0*(x-x0),y0) -> -0.964 | H6: =IF(Sheet1!$D$23=TRUE,x,x0) -> -1.95 | I6: =IF(Sheet1!$D$23=TRUE,y0+d0*(x-x0)+e0*(x-x0)^2,y0) -> 0.964 | K6: =IF(Sheet1!$D$25=TRUE,x,x0) -> 0.00 | L6: =IF(Sheet1!$D$25=TRUE,y0+d0*(x-x0)+e0*(x-x0)^2+f0*(x-x0)^3,y0) -> 1.000 | N6: =IF(Sheet1!$D$27=TRUE,x,x0) -> -1.95 | O6: =IF(Sheet1!$D$27=TRUE,y0+d0*(x-x0)+e0*(x-x0)^2+f0*(x-x0)^3+g0*(x-x0)^4,y0) -> 0.322 | Q6: =IF(Sheet1!$D$30=TRUE,x,x0) -> -1.95 | R6: =IF(Sheet1!$D$30=TRUE,y0+d0*(x-x0)+e0*(x-x0)^2+f0*(x-x0)^3+g0*(x-x0)^4+h0*(x-x0)^5,y0) -> 0.079 | T6: =IF(Sheet1!$D$33=TRUE,x,x0) -> -1.95 | U6: =IF(Sheet1!$D$33=TRUE,y0+d0*(x-x0)+e0*(x-x0)^2+f0*(x-x0)^3+g0*(x-x0)^4+h0*(x-x0)^5+i0*(x-x0)^6,y0) -> 0.158
C7: -1.940 | D7: 0.14 | E7: =IF(Sheet1!D$20=TRUE,x,x0) -> -1.94 | F7: =IF(Sheet1!D$20=TRUE,y0+d0*(x-x0),y0) -> -0.952 | H7: =IF(Sheet1!$D$23=TRUE,x,x0) -> -1.94 | I7: =IF(Sheet1!$D$23=TRUE,y0+d0*(x-x0)+e0*(x-x0)^2,y0) -> 0.953 | K7: =IF(Sheet1!$D$25=TRUE,x,x0) -> 0.00 | L7: =IF(Sheet1!$D$25=TRUE,y0+d0*(x-x0)+e0*(x-x0)^2+f0*(x-x0)^3,y0) -> 1.000 | N7: =IF(Sheet1!$D$27=TRUE,x,x0) -> -1.94 | O7: =IF(Sheet1!$D$27=TRUE,y0+d0*(x-x0)+e0*(x-x0)^2+f0*(x-x0)^3+g0*(x-x0)^4,y0) -> 0.318 | Q7: =IF(Sheet1!$D$30=TRUE,x,x0) -> -1.94 | R7: =IF(Sheet1!$D$30=TRUE,y0+d0*(x-x0)+e0*(x-x0)^2+f0*(x-x0)^3+g0*(x-x0)^4+h0*(x-x0)^5,y0) -> 0.082 | T7: =IF(Sheet1!$D$33=TRUE,x,x0) -> -1.94 | U7: =IF(Sheet1!$D$33=TRUE,y0+d0*(x-x0)+e0*(x-x0)^2+f0*(x-x0)^3+g0*(x-x0)^4+h0*(x-x0)^5+i0*(x-x0)^6,y0) -> 0.159
C8: -1.928 | D8: 0.15 | E8: =IF(Sheet1!D$20=TRUE,x,x0) -> -1.93 | F8: =IF(Sheet1!D$20=TRUE,y0+d0*(x-x0),y0) -> -0.940 | H8: =IF(Sheet1!$D$23=TRUE,x,x0) -> -1.93 | I8: =IF(Sheet1!$D$23=TRUE,y0+d0*(x-x0)+e0*(x-x0)^2,y0) -> 0.941 | K8: =IF(Sheet1!$D$25=TRUE,x,x0) -> 0.00 | L8: =IF(Sheet1!$D$25=TRUE,y0+d0*(x-x0)+e0*(x-x0)^2+f0*(x-x0)^3,y0) -> 1.000 | N8: =IF(Sheet1!$D$27=TRUE,x,x0) -> -1.93 | O8: =IF(Sheet1!$D$27=TRUE,y0+d0*(x-x0)+e0*(x-x0)^2+f0*(x-x0)^3+g0*(x-x0)^4,y0) -> 0.315 | Q8: =IF(Sheet1!$D$30=TRUE,x,x0) -> -1.93 | R8: =IF(Sheet1!$D$30=TRUE,y0+d0*(x-x0)+e0*(x-x0)^2+f0*(x-x0)^3+g0*(x-x0)^4+h0*(x-x0)^5,y0) -> 0.086 | T8: =IF(Sheet1!$D$33=TRUE,x,x0) -> -1.93 | U8: =IF(Sheet1!$D$33=TRUE,y0+d0*(x-x0)+e0*(x-x0)^2+f0*(x-x0)^3+g0*(x-x0)^4+h0*(x-x0)^5+i0*(x-x0)^6,y0) -> 0.160
C9: -1.916 | D9: 0.15 | E9: =IF(Sheet1!D$20=TRUE,x,x0) -> -1.92 | F9: =IF(Sheet1!D$20=TRUE,y0+d0*(x-x0),y0) -> -0.928 | H9: =IF(Sheet1!$D$23=TRUE,x,x0) -> -1.92 | I9: =IF(Sheet1!$D$23=TRUE,y0+d0*(x-x0)+e0*(x-x0)^2,y0) -> 0.930 | K9: =IF(Sheet1!$D$25=TRUE,x,x0) -> 0.00 | L9: =IF(Sheet1!$D$25=TRUE,y0+d0*(x-x0)+e0*(x-x0)^2+f0*(x-x0)^3,y0) -> 1.000 | N9: =IF(Sheet1!$D$27=TRUE,x,x0) -> -1.92 | O9: =IF(Sheet1!$D$27=TRUE,y0+d0*(x-x0)+e0*(x-x0)^2+f0*(x-x0)^3+g0*(x-x0)^4,y0) -> 0.312 | Q9: =IF(Sheet1!$D$30=TRUE,x,x0) -> -1.92 | R9: =IF(Sheet1!$D$30=TRUE,y0+d0*(x-x0)+e0*(x-x0)^2+f0*(x-x0)^3+g0*(x-x0)^4+h0*(x-x0)^5,y0) -> 0.090 | T9: =IF(Sheet1!$D$33=TRUE,x,x0) -> -1.92 | U9: =IF(Sheet1!$D$33=TRUE,y0+d0*(x-x0)+e0*(x-x0)^2+f0*(x-x0)^3+g0*(x-x0)^4+h0*(x-x0)^5+i0*(x-x0)^6,y0) -> 0.161
A10: Tracing Points | C10: -1.904 | D10: 0.15 | E10: =IF(Sheet1!D$20=TRUE,x,x0) -> -1.90 | F10: =IF(Sheet1!D$20=TRUE,y0+d0*(x-x0),y0) -> -0.915 | H10: =IF(Sheet1!$D$23=TRUE,x,x0) -> -1.90 | I10: =IF(Sheet1!$D$23=TRUE,y0+d0*(x-x0)+e0*(x-x0)^2,y0) -> 0.919 | K10: =IF(Sheet1!$D$25=TRUE,x,x0) -> 0.00 | L10: =IF(Sheet1!$D$25=TRUE,y0+d0*(x-x0)+e0*(x-x0)^2+f0*(x-x0)^3,y0) -> 1.000 | N10: =IF(Sheet1!$D$27=TRUE,x,x0) -> -1.90 | O10: =IF(Sheet1!$D$27=TRUE,y0+d0*(x-x0)+e0*(x-x0)^2+f0*(x-x0)^3+g0*(x-x0)^4,y0) -> 0.309 | Q10: =IF(Sheet1!$D$30=TRUE,x,x0) -> -1.90 | R10: =IF(Sheet1!$D$30=TRUE,y0+d0*(x-x0)+e0*(x-x0)^2+f0*(x-x0)^3+g0*(x-x0)^4+h0*(x-x0)^5,y0) -> 0.094 | T10: =IF(Sheet1!$D$33=TRUE,x,x0) -> -1.90 | U10: =IF(Sheet1!$D$33=TRUE,y0+d0*(x-x0)+e0*(x-x0)^2+f0*(x-x0)^3+g0*(x-x0)^4+h0*(x-x0)^5+i0*(x-x0)^6,y0) -> 0.162
A11: =x00 -> 3.16 | B11: =y00 -> 23.29 | C11: -1.892 | D11: 0.15 | E11: =IF(Sheet1!D$20=TRUE,x,x0) -> -1.89 | F11: =IF(Sheet1!D$20=TRUE,y0+d0*(x-x0),y0) -> -0.903 | H11: =IF(Sheet1!$D$23=TRUE,x,x0) -> -1.89 | I11: =IF(Sheet1!$D$23=TRUE,y0+d0*(x-x0)+e0*(x-x0)^2,y0) -> 0.908 | K11: =IF(Sheet1!$D$25=TRUE,x,x0) -> 0.00 | L11: =IF(Sheet1!$D$25=TRUE,y0+d0*(x-x0)+e0*(x-x0)^2+f0*(x-x0)^3,y0) -> 1.000 | N11: =IF(Sheet1!$D$27=TRUE,x,x0) -> -1.89 | O11: =IF(Sheet1!$D$27=TRUE,y0+d0*(x-x0)+e0*(x-x0)^2+f0*(x-x0)^3+g0*(x-x0)^4,y0) -> 0.306 | Q11: =IF(Sheet1!$D$30=TRUE,x,x0) -> -1.89 | R11: =IF(Sheet1!$D$30=TRUE,y0+d0*(x-x0)+e0*(x-x0)^2+f0*(x-x0)^3+g0*(x-x0)^4+h0*(x-x0)^5,y0) -> 0.097 | T11: =IF(Sheet1!$D$33=TRUE,x,x0) -> -1.89 | U11: =IF(Sheet1!$D$33=TRUE,y0+d0*(x-x0)+e0*(x-x0)^2+f0*(x-x0)^3+g0*(x-x0)^4+h0*(x-x0)^5+i0*(x-x0)^6,y0) -> 0.164
C12: -1.880 | D12: 0.15 | E12: =IF(Sheet1!D$20=TRUE,x,x0) -> -1.88 | F12: =IF(Sheet1!D$20=TRUE,y0+d0*(x-x0),y0) -> -0.891 | H12: =IF(Sheet1!$D$23=TRUE,x,x0) -> -1.88 | I12: =IF(Sheet1!$D$23=TRUE,y0+d0*(x-x0)+e0*(x-x0)^2,y0) -> 0.897 | K12: =IF(Sheet1!$D$25=TRUE,x,x0) -> 0.00 | L12: =IF(Sheet1!$D$25=TRUE,y0+d0*(x-x0)+e0*(x-x0)^2+f0*(x-x0)^3,y0) -> 1.000 | N12: =IF(Sheet1!$D$27=TRUE,x,x0) -> -1.88 | O12: =IF(Sheet1!$D$27=TRUE,y0+d0*(x-x0)+e0*(x-x0)^2+f0*(x-x0)^3+g0*(x-x0)^4,y0) -> 0.303 | Q12: =IF(Sheet1!$D$30=TRUE,x,x0) -> -1.88 | R12: =IF(Sheet1!$D$30=TRUE,y0+d0*(x-x0)+e0*(x-x0)^2+f0*(x-x0)^3+g0*(x-x0)^4+h0*(x-x0)^5,y0) -> 0.101 | T12: =IF(Sheet1!$D$33=TRUE,x,x0) -> -1.88 | U12: =IF(Sheet1!$D$33=TRUE,y0+d0*(x-x0)+e0*(x-x0)^2+f0*(x-x0)^3+g0*(x-x0)^4+h0*(x-x0)^5+i0*(x-x0)^6,y0) -> 0.165
A13: =x00 -> 3.16 | B13: =IF(Sheet1!D20=FALSE,y00,Sheet1!K22) -> 4.17 | C13: -1.868 | D13: 0.15 | E13: =IF(Sheet1!D$20=TRUE,x,x0) -> -1.87 | F13: =IF(Sheet1!D$20=TRUE,y0+d0*(x-x0),y0) -> -0.879 | H13: =IF(Sheet1!$D$23=TRUE,x,x0) -> -1.87 | I13: =IF(Sheet1!$D$23=TRUE,y0+d0*(x-x0)+e0*(x-x0)^2,y0) -> 0.887 | K13: =IF(Sheet1!$D$25=TRUE,x,x0) -> 0.00 | L13: =IF(Sheet1!$D$25=TRUE,y0+d0*(x-x0)+e0*(x-x0)^2+f0*(x-x0)^3,y0) -> 1.000 | N13: =IF(Sheet1!$D$27=TRUE,x,x0) -> -1.87 | O13: =IF(Sheet1!$D$27=TRUE,y0+d0*(x-x0)+e0*(x-x0)^2+f0*(x-x0)^3+g0*(x-x0)^4,y0) -> 0.300 | Q13: =IF(Sheet1!$D$30=TRUE,x,x0) -> -1.87 | R13: =IF(Sheet1!$D$30=TRUE,y0+d0*(x-x0)+e0*(x-x0)^2+f0*(x-x0)^3+g0*(x-x0)^4+h0*(x-x0)^5,y0) -> 0.105 | T13: =IF(Sheet1!$D$33=TRUE,x,x0) -> -1.87 | U13: =IF(Sheet1!$D$33=TRUE,y0+d0*(x-x0)+e0*(x-x0)^2+f0*(x-x0)^3+g0*(x-x0)^4+h0*(x-x0)^5+i0*(x-x0)^6,y0) -> 0.166
C14: -1.856 | D14: 0.16 | E14: =IF(Sheet1!D$20=TRUE,x,x0) -> -1.86 | F14: =IF(Sheet1!D$20=TRUE,y0+d0*(x-x0),y0) -> -0.867 | H14: =IF(Sheet1!$D$23=TRUE,x,x0) -> -1.86 | I14: =IF(Sheet1!$D$23=TRUE,y0+d0*(x-x0)+e0*(x-x0)^2,y0) -> 0.876 | K14: =IF(Sheet1!$D$25=TRUE,x,x0) -> 0.00 | L14: =IF(Sheet1!$D$25=TRUE,y0+d0*(x-x0)+e0*(x-x0)^2+f0*(x-x0)^3,y0) -> 1.000 | N14: =IF(Sheet1!$D$27=TRUE,x,x0) -> -1.86 | O14: =IF(Sheet1!$D$27=TRUE,y0+d0*(x-x0)+e0*(x-x0)^2+f0*(x-x0)^3+g0*(x-x0)^4,y0) -> 0.298 | Q14: =IF(Sheet1!$D$30=TRUE,x,x0) -> -1.86 | R14: =IF(Sheet1!$D$30=TRUE,y0+d0*(x-x0)+e0*(x-x0)^2+f0*(x-x0)^3+g0*(x-x0)^4+h0*(x-x0)^5,y0) -> 0.108 | T14: =IF(Sheet1!$D$33=TRUE,x,x0) -> -1.86 | U14: =IF(Sheet1!$D$33=TRUE,y0+d0*(x-x0)+e0*(x-x0)^2+f0*(x-x0)^3+g0*(x-x0)^4+h0*(x-x0)^5+i0*(x-x0)^6,y0) -> 0.167
A15: =x00 -> 3.16 | B15: =IF(Sheet1!D23=FALSE,y00,Sheet1!K24) -> 9.18 | C15: -1.844 | D15: 0.16 | E15: =IF(Sheet1!D$20=TRUE,x,x0) -> -1.84 | F15: =IF(Sheet1!D$20=TRUE,y0+d0*(x-x0),y0) -> -0.855 | H15: =IF(Sheet1!$D$23=TRUE,x,x0) -> -1.84 | I15: =IF(Sheet1!$D$23=TRUE,y0+d0*(x-x0)+e0*(x-x0)^2,y0) -> 0.866 | K15: =IF(Sheet1!$D$25=TRUE,x,x0) -> 0.00 | L15: =IF(Sheet1!$D$25=TRUE,y0+d0*(x-x0)+e0*(x-x0)^2+f0*(x-x0)^3,y0) -> 1.000 | N15: =IF(Sheet1!$D$27=TRUE,x,x0) -> -1.84 | O15: =IF(Sheet1!$D$27=TRUE,y0+d0*(x-x0)+e0*(x-x0)^2+f0*(x-x0)^3+g0*(x-x0)^4,y0) -> 0.295 | Q15: =IF(Sheet1!$D$30=TRUE,x,x0) -> -1.84 | R15: =IF(Sheet1!$D$30=TRUE,y0+d0*(x-x0)+e0*(x-x0)^2+f0*(x-x0)^3+g0*(x-x0)^4+h0*(x-x0)^5,y0) -> 0.112 | T15: =IF(Sheet1!$D$33=TRUE,x,x0) -> -1.84 | U15: =IF(Sheet1!$D$33=TRUE,y0+d0*(x-x0)+e0*(x-x0)^2+f0*(x-x0)^3+g0*(x-x0)^4+h0*(x-x0)^5+i0*(x-x0)^6,y0) -> 0.169
C16: -1.832 | D16: 0.16 | E16: =IF(Sheet1!D$20=TRUE,x,x0) -> -1.83 | F16: =IF(Sheet1!D$20=TRUE,y0+d0*(x-x0),y0) -> -0.843 | H16: =IF(Sheet1!$D$23=TRUE,x,x0) -> -1.83 | I16: =IF(Sheet1!$D$23=TRUE,y0+d0*(x-x0)+e0*(x-x0)^2,y0) -> 0.855 | K16: =IF(Sheet1!$D$25=TRUE,x,x0) -> 0.00 | L16: =IF(Sheet1!$D$25=TRUE,y0+d0*(x-x0)+e0*(x-x0)^2+f0*(x-x0)^3,y0) -> 1.000 | N16: =IF(Sheet1!$D$27=TRUE,x,x0) -> -1.83 | O16: =IF(Sheet1!$D$27=TRUE,y0+d0*(x-x0)+e0*(x-x0)^2+f0*(x-x0)^3+g0*(x-x0)^4,y0) -> 0.293 | Q16: =IF(Sheet1!$D$30=TRUE,x,x0) -> -1.83 | R16: =IF(Sheet1!$D$30=TRUE,y0+d0*(x-x0)+e0*(x-x0)^2+f0*(x-x0)^3+g0*(x-x0)^4+h0*(x-x0)^5,y0) -> 0.116 | T16: =IF(Sheet1!$D$33=TRUE,x,x0) -> -1.83 | U16: =IF(Sheet1!$D$33=TRUE,y0+d0*(x-x0)+e0*(x-x0)^2+f0*(x-x0)^3+g0*(x-x0)^4+h0*(x-x0)^5+i0*(x-x0)^6,y0) -> 0.170
A17: =x00 -> 3.16 | B17: =IF(Sheet1!D25=FALSE,y00,Sheet1!K26) -> 23.29 | C17: -1.820 | D17: 0.16 | E17: =IF(Sheet1!D$20=TRUE,x,x0) -> -1.82 | F17: =IF(Sheet1!D$20=TRUE,y0+d0*(x-x0),y0) -> -0.831 | H17: =IF(Sheet1!$D$23=TRUE,x,x0) -> -1.82 | I17: =IF(Sheet1!$D$23=TRUE,y0+d0*(x-x0)+e0*(x-x0)^2,y0) -> 0.845 | K17: =IF(Sheet1!$D$25=TRUE,x,x0) -> 0.00 | L17: =IF(Sheet1!$D$25=TRUE,y0+d0*(x-x0)+e0*(x-x0)^2+f0*(x-x0)^3,y0) -> 1.000 | N17: =IF(Sheet1!$D$27=TRUE,x,x0) -> -1.82 | O17: =IF(Sheet1!$D$27=TRUE,y0+d0*(x-x0)+e0*(x-x0)^2+f0*(x-x0)^3+g0*(x-x0)^4,y0) -> 0.291 | Q17: =IF(Sheet1!$D$30=TRUE,x,x0) -> -1.82 | R17: =IF(Sheet1!$D$30=TRUE,y0+d0*(x-x0)+e0*(x-x0)^2+f0*(x-x0)^3+g0*(x-x0)^4+h0*(x-x0)^5,y0) -> 0.119 | T17: =IF(Sheet1!$D$33=TRUE,x,x0) -> -1.82 | U17: =IF(Sheet1!$D$33=TRUE,y0+d0*(x-x0)+e0*(x-x0)^2+f0*(x-x0)^3+g0*(x-x0)^4+h0*(x-x0)^5+i0*(x-x0)^6,y0) -> 0.171
C18: -1.808 | D18: 0.16 | E18: =IF(Sheet1!D$20=TRUE,x,x0) -> -1.81 | F18: =IF(Sheet1!D$20=TRUE,y0+d0*(x-x0),y0) -> -0.819 | H18: =IF(Sheet1!$D$23=TRUE,x,x0) -> -1.81 | I18: =IF(Sheet1!$D$23=TRUE,y0+d0*(x-x0)+e0*(x-x0)^2,y0) -> 0.835 | K18: =IF(Sheet1!$D$25=TRUE,x,x0) -> 0.00 | L18: =IF(Sheet1!$D$25=TRUE,y0+d0*(x-x0)+e0*(x-x0)^2+f0*(x-x0)^3,y0) -> 1.000 | N18: =IF(Sheet1!$D$27=TRUE,x,x0) -> -1.81 | O18: =IF(Sheet1!$D$27=TRUE,y0+d0*(x-x0)+e0*(x-x0)^2+f0*(x-x0)^3+g0*(x-x0)^4,y0) -> 0.288 | Q18: =IF(Sheet1!$D$30=TRUE,x,x0) -> -1.81 | R18: =IF(Sheet1!$D$30=TRUE,y0+d0*(x-x0)+e0*(x-x0)^2+f0*(x-x0)^3+g0*(x-x0)^4+h0*(x-x0)^5,y0) -> 0.123 | T18: =IF(Sheet1!$D$33=TRUE,x,x0) -> -1.81 | U18: =IF(Sheet1!$D$33=TRUE,y0+d0*(x-x0)+e0*(x-x0)^2+f0*(x-x0)^3+g0*(x-x0)^4+h0*(x-x0)^5+i0*(x-x0)^6,y0) -> 0.173
A19: =x00 -> 3.16 | B19: =IF(Sheet1!D27=FALSE,y00,Sheet1!K28) -> 18.67 | C19: -1.796 | D19: 0.17 | E19: =IF(Sheet1!D$20=TRUE,x,x0) -> -1.80 | F19: =IF(Sheet1!D$20=TRUE,y0+d0*(x-x0),y0) -> -0.807 | H19: =IF(Sheet1!$D$23=TRUE,x,x0) -> -1.80 | I19: =IF(Sheet1!$D$23=TRUE,y0+d0*(x-x0)+e0*(x-x0)^2,y0) -> 0.825 | K19: =IF(Sheet1!$D$25=TRUE,x,x0) -> 0.00 | L19: =IF(Sheet1!$D$25=TRUE,y0+d0*(x-x0)+e0*(x-x0)^2+f0*(x-x0)^3,y0) -> 1.000 | N19: =IF(Sheet1!$D$27=TRUE,x,x0) -> -1.80 | O19: =IF(Sheet1!$D$27=TRUE,y0+d0*(x-x0)+e0*(x-x0)^2+f0*(x-x0)^3+g0*(x-x0)^4,y0) -> 0.286 | Q19: =IF(Sheet1!$D$30=TRUE,x,x0) -> -1.80 | R19: =IF(Sheet1!$D$30=TRUE,y0+d0*(x-x0)+e0*(x-x0)^2+f0*(x-x0)^3+g0*(x-x0)^4+h0*(x-x0)^5,y0) -> 0.126 | T19: =IF(Sheet1!$D$33=TRUE,x,x0) -> -1.80 | U19: =IF(Sheet1!$D$33=TRUE,y0+d0*(x-x0)+e0*(x-x0)^2+f0*(x-x0)^3+g0*(x-x0)^4+h0*(x-x0)^5+i0*(x-x0)^6,y0) -> 0.174
C20: -1.784 | D20: 0.17 | E20: =IF(Sheet1!D$20=TRUE,x,x0) -> -1.78 | F20: =IF(Sheet1!D$20=TRUE,y0+d0*(x-x0),y0) -> -0.795 | H20: =IF(Sheet1!$D$23=TRUE,x,x0) -> -1.78 | I20: =IF(Sheet1!$D$23=TRUE,y0+d0*(x-x0)+e0*(x-x0)^2,y0) -> 0.816 | K20: =IF(Sheet1!$D$25=TRUE,x,x0) -> 0.00 | L20: =IF(Sheet1!$D$25=TRUE,y0+d0*(x-x0)+e0*(x-x0)^2+f0*(x-x0)^3,y0) -> 1.000 | N20: =IF(Sheet1!$D$27=TRUE,x,x0) -> -1.78 | O20: =IF(Sheet1!$D$27=TRUE,y0+d0*(x-x0)+e0*(x-x0)^2+f0*(x-x0)^3+g0*(x-x0)^4,y0) -> 0.285 | Q20: =IF(Sheet1!$D$30=TRUE,x,x0) -> -1.78 | R20: =IF(Sheet1!$D$30=TRUE,y0+d0*(x-x0)+e0*(x-x0)^2+f0*(x-x0)^3+g0*(x-x0)^4+h0*(x-x0)^5,y0) -> 0.129 | T20: =IF(Sheet1!$D$33=TRUE,x,x0) -> -1.78 | U20: =IF(Sheet1!$D$33=TRUE,y0+d0*(x-x0)+e0*(x-x0)^2+f0*(x-x0)^3+g0*(x-x0)^4+h0*(x-x0)^5+i0*(x-x0)^6,y0) -> 0.176
A21: =x00 -> 3.16 | B21: =IF(Sheet1!D30=FALSE,y00,Sheet1!K30) -> 21.32 | C21: -1.772 | D21: 0.17 | E21: =IF(Sheet1!D$20=TRUE,x,x0) -> -1.77 | F21: =IF(Sheet1!D$20=TRUE,y0+d0*(x-x0),y0) -> -0.783 | H21: =IF(Sheet1!$D$23=TRUE,x,x0) -> -1.77 | I21: =IF(Sheet1!$D$23=TRUE,y0+d0*(x-x0)+e0*(x-x0)^2,y0) -> 0.806 | K21: =IF(Sheet1!$D$25=TRUE,x,x0) -> 0.00 | L21: =IF(Sheet1!$D$25=TRUE,y0+d0*(x-x0)+e0*(x-x0)^2+f0*(x-x0)^3,y0) -> 1.000 | N21: =IF(Sheet1!$D$27=TRUE,x,x0) -> -1.77 | O21: =IF(Sheet1!$D$27=TRUE,y0+d0*(x-x0)+e0*(x-x0)^2+f0*(x-x0)^3+g0*(x-x0)^4,y0) -> 0.283 | Q21: =IF(Sheet1!$D$30=TRUE,x,x0) -> -1.77 | R21: =IF(Sheet1!$D$30=TRUE,y0+d0*(x-x0)+e0*(x-x0)^2+f0*(x-x0)^3+g0*(x-x0)^4+h0*(x-x0)^5,y0) -> 0.133 | T21: =IF(Sheet1!$D$33=TRUE,x,x0) -> -1.77 | U21: =IF(Sheet1!$D$33=TRUE,y0+d0*(x-x0)+e0*(x-x0)^2+f0*(x-x0)^3+g0*(x-x0)^4+h0*(x-x0)^5+i0*(x-x0)^6,y0) -> 0.177
C22: -1.760 | D22: 0.17 | E22: =IF(Sheet1!D$20=TRUE,x,x0) -> -1.76 | F22: =IF(Sheet1!D$20=TRUE,y0+d0*(x-x0),y0) -> -0.771 | H22: =IF(Sheet1!$D$23=TRUE,x,x0) -> -1.76 | I22: =IF(Sheet1!$D$23=TRUE,y0+d0*(x-x0)+e0*(x-x0)^2,y0) -> 0.797 | K22: =IF(Sheet1!$D$25=TRUE,x,x0) -> 0.00 | L22: =IF(Sheet1!$D$25=TRUE,y0+d0*(x-x0)+e0*(x-x0)^2+f0*(x-x0)^3,y0) -> 1.000 | N22: =IF(Sheet1!$D$27=TRUE,x,x0) -> -1.76 | O22: =IF(Sheet1!$D$27=TRUE,y0+d0*(x-x0)+e0*(x-x0)^2+f0*(x-x0)^3+g0*(x-x0)^4,y0) -> 0.281 | Q22: =IF(Sheet1!$D$30=TRUE,x,x0) -> -1.76 | R22: =IF(Sheet1!$D$30=TRUE,y0+d0*(x-x0)+e0*(x-x0)^2+f0*(x-x0)^3+g0*(x-x0)^4+h0*(x-x0)^5,y0) -> 0.136 | T22: =IF(Sheet1!$D$33=TRUE,x,x0) -> -1.76 | U22: =IF(Sheet1!$D$33=TRUE,y0+d0*(x-x0)+e0*(x-x0)^2+f0*(x-x0)^3+g0*(x-x0)^4+h0*(x-x0)^5+i0*(x-x0)^6,y0) -> 0.179
A23: =x00 -> 3.16 | B23: =IF(Sheet1!D33=FALSE,y00,Sheet1!K32) -> 22.73 | C23: -1.748 | D23: 0.17 | E23: =IF(Sheet1!D$20=TRUE,x,x0) -> -1.75 | F23: =IF(Sheet1!D$20=TRUE,y0+d0*(x-x0),y0) -> -0.759 | H23: =IF(Sheet1!$D$23=TRUE,x,x0) -> -1.75 | I23: =IF(Sheet1!$D$23=TRUE,y0+d0*(x-x0)+e0*(x-x0)^2,y0) -> 0.788 | K23: =IF(Sheet1!$D$25=TRUE,x,x0) -> 0.00 | L23: =IF(Sheet1!$D$25=TRUE,y0+d0*(x-x0)+e0*(x-x0)^2+f0*(x-x0)^3,y0) -> 1.000 | N23: =IF(Sheet1!$D$27=TRUE,x,x0) -> -1.75 | O23: =IF(Sheet1!$D$27=TRUE,y0+d0*(x-x0)+e0*(x-x0)^2+f0*(x-x0)^3+g0*(x-x0)^4,y0) -> 0.280 | Q23: =IF(Sheet1!$D$30=TRUE,x,x0) -> -1.75 | R23: =IF(Sheet1!$D$30=TRUE,y0+d0*(x-x0)+e0*(x-x0)^2+f0*(x-x0)^3+g0*(x-x0)^4+h0*(x-x0)^5,y0) -> 0.140 | T23: =IF(Sheet1!$D$33=TRUE,x,x0) -> -1.75 | U23: =IF(Sheet1!$D$33=TRUE,y0+d0*(x-x0)+e0*(x-x0)^2+f0*(x-x0)^3+g0*(x-x0)^4+h0*(x-x0)^5+i0*(x-x0)^6,y0) -> 0.181
C24: -1.736 | D24: 0.18 | E24: =IF(Sheet1!D$20=TRUE,x,x0) -> -1.74 | F24: =IF(Sheet1!D$20=TRUE,y0+d0*(x-x0),y0) -> -0.746 | H24: =IF(Sheet1!$D$23=TRUE,x,x0) -> -1.74 | I24: =IF(Sheet1!$D$23=TRUE,y0+d0*(x-x0)+e0*(x-x0)^2,y0) -> 0.779 | K24: =IF(Sheet1!$D$25=TRUE,x,x0) -> 0.00 | L24: =IF(Sheet1!$D$25=TRUE,y0+d0*(x-x0)+e0*(x-x0)^2+f0*(x-x0)^3,y0) -> 1.000 | N24: =IF(Sheet1!$D$27=TRUE,x,x0) -> -1.74 | O24: =IF(Sheet1!$D$27=TRUE,y0+d0*(x-x0)+e0*(x-x0)^2+f0*(x-x0)^3+g0*(x-x0)^4,y0) -> 0.278 | Q24: =IF(Sheet1!$D$30=TRUE,x,x0) -> -1.74 | R24: =IF(Sheet1!$D$30=TRUE,y0+d0*(x-x0)+e0*(x-x0)^2+f0*(x-x0)^3+g0*(x-x0)^4+h0*(x-x0)^5,y0) -> 0.143 | T24: =IF(Sheet1!$D$33=TRUE,x,x0) -> -1.74 | U24: =IF(Sheet1!$D$33=TRUE,y0+d0*(x-x0)+e0*(x-x0)^2+f0*(x-x0)^3+g0*(x-x0)^4+h0*(x-x0)^5+i0*(x-x0)^6,y0) -> 0.182
A25: =x00 -> 3.16 | B25: =y00 -> 23.29 | C25: -1.724 | D25: 0.18 | E25: =IF(Sheet1!D$20=TRUE,x,x0) -> -1.72 | F25: =IF(Sheet1!D$20=TRUE,y0+d0*(x-x0),y0) -> -0.734 | H25: =IF(Sheet1!$D$23=TRUE,x,x0) -> -1.72 | I25: =IF(Sheet1!$D$23=TRUE,y0+d0*(x-x0)+e0*(x-x0)^2,y0) -> 0.770 | K25: =IF(Sheet1!$D$25=TRUE,x,x0) -> 0.00 | L25: =IF(Sheet1!$D$25=TRUE,y0+d0*(x-x0)+e0*(x-x0)^2+f0*(x-x0)^3,y0) -> 1.000 | N25: =IF(Sheet1!$D$27=TRUE,x,x0) -> -1.72 | O25: =IF(Sheet1!$D$27=TRUE,y0+d0*(x-x0)+e0*(x-x0)^2+f0*(x-x0)^3+g0*(x-x0)^4,y0) -> 0.277 | Q25: =IF(Sheet1!$D$30=TRUE,x,x0) -> -1.72 | R25: =IF(Sheet1!$D$30=TRUE,y0+d0*(x-x0)+e0*(x-x0)^2+f0*(x-x0)^3+g0*(x-x0)^4+h0*(x-x0)^5,y0) -> 0.146 | T25: =IF(Sheet1!$D$33=TRUE,x,x0) -> -1.72 | U25: =IF(Sheet1!$D$33=TRUE,y0+d0*(x-x0)+e0*(x-x0)^2+f0*(x-x0)^3+g0*(x-x0)^4+h0*(x-x0)^5+i0*(x-x0)^6,y0) -> 0.184
C26: -1.712 | D26: 0.18 | E26: =IF(Sheet1!D$20=TRUE,x,x0) -> -1.71 | F26: =IF(Sheet1!D$20=TRUE,y0+d0*(x-x0),y0) -> -0.722 | H26: =IF(Sheet1!$D$23=TRUE,x,x0) -> -1.71 | I26: =IF(Sheet1!$D$23=TRUE,y0+d0*(x-x0)+e0*(x-x0)^2,y0) -> 0.761 | K26: =IF(Sheet1!$D$25=TRUE,x,x0) -> 0.00 | L26: =IF(Sheet1!$D$25=TRUE,y0+d0*(x-x0)+e0*(x-x0)^2+f0*(x-x0)^3,y0) -> 1.000 | N26: =IF(Sheet1!$D$27=TRUE,x,x0) -> -1.71 | O26: =IF(Sheet1!$D$27=TRUE,y0+d0*(x-x0)+e0*(x-x0)^2+f0*(x-x0)^3+g0*(x-x0)^4,y0) -> 0.276 | Q26: =IF(Sheet1!$D$30=TRUE,x,x0) -> -1.71 | R26: =IF(Sheet1!$D$30=TRUE,y0+d0*(x-x0)+e0*(x-x0)^2+f0*(x-x0)^3+g0*(x-x0)^4+h0*(x-x0)^5,y0) -> 0.150 | T26: =IF(Sheet1!$D$33=TRUE,x,x0) -> -1.71 | U26: =IF(Sheet1!$D$33=TRUE,y0+d0*(x-x0)+e0*(x-x0)^2+f0*(x-x0)^3+g0*(x-x0)^4+h0*(x-x0)^5+i0*(x-x0)^6,y0) -> 0.186
C27: -1.700 | D27: 0.18 | E27: =IF(Sheet1!D$20=TRUE,x,x0) -> -1.70 | F27: =IF(Sheet1!D$20=TRUE,y0+d0*(x-x0),y0) -> -0.710 | H27: =IF(Sheet1!$D$23=TRUE,x,x0) -> -1.70 | I27: =IF(Sheet1!$D$23=TRUE,y0+d0*(x-x0)+e0*(x-x0)^2,y0) -> 0.752 | K27: =IF(Sheet1!$D$25=TRUE,x,x0) -> 0.00 | L27: =IF(Sheet1!$D$25=TRUE,y0+d0*(x-x0)+e0*(x-x0)^2+f0*(x-x0)^3,y0) -> 1.000 | N27: =IF(Sheet1!$D$27=TRUE,x,x0) -> -1.70 | O27: =IF(Sheet1!$D$27=TRUE,y0+d0*(x-x0)+e0*(x-x0)^2+f0*(x-x0)^3+g0*(x-x0)^4,y0) -> 0.275 | Q27: =IF(Sheet1!$D$30=TRUE,x,x0) -> -1.70 | R27: =IF(Sheet1!$D$30=TRUE,y0+d0*(x-x0)+e0*(x-x0)^2+f0*(x-x0)^3+g0*(x-x0)^4+h0*(x-x0)^5,y0) -> 0.153 | T27: =IF(Sheet1!$D$33=TRUE,x,x0) -> -1.70 | U27: =IF(Sheet1!$D$33=TRUE,y0+d0*(x-x0)+e0*(x-x0)^2+f0*(x-x0)^3+g0*(x-x0)^4+h0*(x-x0)^5+i0*(x-x0)^6,y0) -> 0.188
C28: -1.688 | D28: 0.18 | E28: =IF(Sheet1!D$20=TRUE,x,x0) -> -1.69 | F28: =IF(Sheet1!D$20=TRUE,y0+d0*(x-x0),y0) -> -0.698 | H28: =IF(Sheet1!$D$23=TRUE,x,x0) -> -1.69 | I28: =IF(Sheet1!$D$23=TRUE,y0+d0*(x-x0)+e0*(x-x0)^2,y0) -> 0.744 | K28: =IF(Sheet1!$D$25=TRUE,x,x0) -> 0.00 | L28: =IF(Sheet1!$D$25=TRUE,y0+d0*(x-x0)+e0*(x-x0)^2+f0*(x-x0)^3,y0) -> 1.000 | N28: =IF(Sheet1!$D$27=TRUE,x,x0) -> -1.69 | O28: =IF(Sheet1!$D$27=TRUE,y0+d0*(x-x0)+e0*(x-x0)^2+f0*(x-x0)^3+g0*(x-x0)^4,y0) -> 0.274 | Q28: =IF(Sheet1!$D$30=TRUE,x,x0) -> -1.69 | R28: =IF(Sheet1!$D$30=TRUE,y0+d0*(x-x0)+e0*(x-x0)^2+f0*(x-x0)^3+g0*(x-x0)^4+h0*(x-x0)^5,y0) -> 0.156 | T28: =IF(Sheet1!$D$33=TRUE,x,x0) -> -1.69 | U28: =IF(Sheet1!$D$33=TRUE,y0+d0*(x-x0)+e0*(x-x0)^2+f0*(x-x0)^3+g0*(x-x0)^4+h0*(x-x0)^5+i0*(x-x0)^6,y0) -> 0.190
C29: -1.676 | D29: 0.19 | E29: =IF(Sheet1!D$20=TRUE,x,x0) -> -1.68 | F29: =IF(Sheet1!D$20=TRUE,y0+d0*(x-x0),y0) -> -0.686 | H29: =IF(Sheet1!$D$23=TRUE,x,x0) -> -1.68 | I29: =IF(Sheet1!$D$23=TRUE,y0+d0*(x-x0)+e0*(x-x0)^2,y0) -> 0.735 | K29: =IF(Sheet1!$D$25=TRUE,x,x0) -> 0.00 | L29: =IF(Sheet1!$D$25=TRUE,y0+d0*(x-x0)+e0*(x-x0)^2+f0*(x-x0)^3,y0) -> 1.000 | N29: =IF(Sheet1!$D$27=TRUE,x,x0) -> -1.68 | O29: =IF(Sheet1!$D$27=TRUE,y0+d0*(x-x0)+e0*(x-x0)^2+f0*(x-x0)^3+g0*(x-x0)^4,y0) -> 0.273 | Q29: =IF(Sheet1!$D$30=TRUE,x,x0) -> -1.68 | R29: =IF(Sheet1!$D$30=TRUE,y0+d0*(x-x0)+e0*(x-x0)^2+f0*(x-x0)^3+g0*(x-x0)^4+h0*(x-x0)^5,y0) -> 0.160 | T29: =IF(Sheet1!$D$33=TRUE,x,x0) -> -1.68 | U29: =IF(Sheet1!$D$33=TRUE,y0+d0*(x-x0)+e0*(x-x0)^2+f0*(x-x0)^3+g0*(x-x0)^4+h0*(x-x0)^5+i0*(x-x0)^6,y0) -> 0.192
C30: -1.664 | D30: 0.19 | E30: =IF(Sheet1!D$20=TRUE,x,x0) -> -1.66 | F30: =IF(Sheet1!D$20=TRUE,y0+d0*(x-x0),y0) -> -0.674 | H30: =IF(Sheet1!$D$23=TRUE,x,x0) -> -1.66 | I30: =IF(Sheet1!$D$23=TRUE,y0+d0*(x-x0)+e0*(x-x0)^2,y0) -> 0.727 | K30: =IF(Sheet1!$D$25=TRUE,x,x0) -> 0.00 | L30: =IF(Sheet1!$D$25=TRUE,y0+d0*(x-x0)+e0*(x-x0)^2+f0*(x-x0)^3,y0) -> 1.000 | N30: =IF(Sheet1!$D$27=TRUE,x,x0) -> -1.66 | O30: =IF(Sheet1!$D$27=TRUE,y0+d0*(x-x0)+e0*(x-x0)^2+f0*(x-x0)^3+g0*(x-x0)^4,y0) -> 0.273 | Q30: =IF(Sheet1!$D$30=TRUE,x,x0) -> -1.66 | R30: =IF(Sheet1!$D$30=TRUE,y0+d0*(x-x0)+e0*(x-x0)^2+f0*(x-x0)^3+g0*(x-x0)^4+h0*(x-x0)^5,y0) -> 0.163 | T30: =IF(Sheet1!$D$33=TRUE,x,x0) -> -1.66 | U30: =IF(Sheet1!$D$33=TRUE,y0+d0*(x-x0)+e0*(x-x0)^2+f0*(x-x0)^3+g0*(x-x0)^4+h0*(x-x0)^5+i0*(x-x0)^6,y0) -> 0.194
C31: -1.652 | D31: 0.19 | E31: =IF(Sheet1!D$20=TRUE,x,x0) -> -1.65 | F31: =IF(Sheet1!D$20=TRUE,y0+d0*(x-x0),y0) -> -0.662 | H31: =IF(Sheet1!$D$23=TRUE,x,x0) -> -1.65 | I31: =IF(Sheet1!$D$23=TRUE,y0+d0*(x-x0)+e0*(x-x0)^2,y0) -> 0.719 | K31: =IF(Sheet1!$D$25=TRUE,x,x0) -> 0.00 | L31: =IF(Sheet1!$D$25=TRUE,y0+d0*(x-x0)+e0*(x-x0)^2+f0*(x-x0)^3,y0) -> 1.000 | N31: =IF(Sheet1!$D$27=TRUE,x,x0) -> -1.65 | O31: =IF(Sheet1!$D$27=TRUE,y0+d0*(x-x0)+e0*(x-x0)^2+f0*(x-x0)^3+g0*(x-x0)^4,y0) -> 0.272 | Q31: =IF(Sheet1!$D$30=TRUE,x,x0) -> -1.65 | R31: =IF(Sheet1!$D$30=TRUE,y0+d0*(x-x0)+e0*(x-x0)^2+f0*(x-x0)^3+g0*(x-x0)^4+h0*(x-x0)^5,y0) -> 0.166 | T31: =IF(Sheet1!$D$33=TRUE,x,x0) -> -1.65 | U31: =IF(Sheet1!$D$33=TRUE,y0+d0*(x-x0)+e0*(x-x0)^2+f0*(x-x0)^3+g0*(x-x0)^4+h0*(x-x0)^5+i0*(x-x0)^6,y0) -> 0.196
C32: -1.640 | D32: 0.19 | E32: =IF(Sheet1!D$20=TRUE,x,x0) -> -1.64 | F32: =IF(Sheet1!D$20=TRUE,y0+d0*(x-x0),y0) -> -0.650 | H32: =IF(Sheet1!$D$23=TRUE,x,x0) -> -1.64 | I32: =IF(Sheet1!$D$23=TRUE,y0+d0*(x-x0)+e0*(x-x0)^2,y0) -> 0.711 | K32: =IF(Sheet1!$D$25=TRUE,x,x0) -> 0.00 | L32: =IF(Sheet1!$D$25=TRUE,y0+d0*(x-x0)+e0*(x-x0)^2+f0*(x-x0)^3,y0) -> 1.000 | N32: =IF(Sheet1!$D$27=TRUE,x,x0) -> -1.64 | O32: =IF(Sheet1!$D$27=TRUE,y0+d0*(x-x0)+e0*(x-x0)^2+f0*(x-x0)^3+g0*(x-x0)^4,y0) -> 0.271 | Q32: =IF(Sheet1!$D$30=TRUE,x,x0) -> -1.64 | R32: =IF(Sheet1!$D$30=TRUE,y0+d0*(x-x0)+e0*(x-x0)^2+f0*(x-x0)^3+g0*(x-x0)^4+h0*(x-x0)^5,y0) -> 0.170 | T32: =IF(Sheet1!$D$33=TRUE,x,x0) -> -1.64 | U32: =IF(Sheet1!$D$33=TRUE,y0+d0*(x-x0)+e0*(x-x0)^2+f0*(x-x0)^3+g0*(x-x0)^4+h0*(x-x0)^5+i0*(x-x0)^6,y0) -> 0.198
C33: -1.628 | D33: 0.20 | E33: =IF(Sheet1!D$20=TRUE,x,x0) -> -1.63 | F33: =IF(Sheet1!D$20=TRUE,y0+d0*(x-x0),y0) -> -0.638 | H33: =IF(Sheet1!$D$23=TRUE,x,x0) -> -1.63 | I33: =IF(Sheet1!$D$23=TRUE,y0+d0*(x-x0)+e0*(x-x0)^2,y0) -> 0.703 | K33: =IF(Sheet1!$D$25=TRUE,x,x0) -> 0.00 | L33: =IF(Sheet1!$D$25=TRUE,y0+d0*(x-x0)+e0*(x-x0)^2+f0*(x-x0)^3,y0) -> 1.000 | N33: =IF(Sheet1!$D$27=TRUE,x,x0) -> -1.63 | O33: =IF(Sheet1!$D$27=TRUE,y0+d0*(x-x0)+e0*(x-x0)^2+f0*(x-x0)^3+g0*(x-x0)^4,y0) -> 0.271 | Q33: =IF(Sheet1!$D$30=TRUE,x,x0) -> -1.63 | R33: =IF(Sheet1!$D$30=TRUE,y0+d0*(x-x0)+e0*(x-x0)^2+f0*(x-x0)^3+g0*(x-x0)^4+h0*(x-x0)^5,y0) -> 0.173 | T33: =IF(Sheet1!$D$33=TRUE,x,x0) -> -1.63 | U33: =IF(Sheet1!$D$33=TRUE,y0+d0*(x-x0)+e0*(x-x0)^2+f0*(x-x0)^3+g0*(x-x0)^4+h0*(x-x0)^5+i0*(x-x0)^6,y0) -> 0.200
C34: -1.616 | D34: 0.20 | E34: =IF(Sheet1!D$20=TRUE,x,x0) -> -1.62 | F34: =IF(Sheet1!D$20=TRUE,y0+d0*(x-x0),y0) -> -0.626 | H34: =IF(Sheet1!$D$23=TRUE,x,x0) -> -1.62 | I34: =IF(Sheet1!$D$23=TRUE,y0+d0*(x-x0)+e0*(x-x0)^2,y0) -> 0.696 | K34: =IF(Sheet1!$D$25=TRUE,x,x0) -> 0.00 | L34: =IF(Sheet1!$D$25=TRUE,y0+d0*(x-x0)+e0*(x-x0)^2+f0*(x-x0)^3,y0) -> 1.000 | N34: =IF(Sheet1!$D$27=TRUE,x,x0) -> -1.62 | O34: =IF(Sheet1!$D$27=TRUE,y0+d0*(x-x0)+e0*(x-x0)^2+f0*(x-x0)^3+g0*(x-x0)^4,y0) -> 0.271 | Q34: =IF(Sheet1!$D$30=TRUE,x,x0) -> -1.62 | R34: =IF(Sheet1!$D$30=TRUE,y0+d0*(x-x0)+e0*(x-x0)^2+f0*(x-x0)^3+g0*(x-x0)^4+h0*(x-x0)^5,y0) -> 0.176 | T34: =IF(Sheet1!$D$33=TRUE,x,x0) -> -1.62 | U34: =IF(Sheet1!$D$33=TRUE,y0+d0*(x-x0)+e0*(x-x0)^2+f0*(x-x0)^3+g0*(x-x0)^4+h0*(x-x0)^5+i0*(x-x0)^6,y0) -> 0.202
C35: -1.604 | D35: 0.20 | E35: =IF(Sheet1!D$20=TRUE,x,x0) -> -1.60 | F35: =IF(Sheet1!D$20=TRUE,y0+d0*(x-x0),y0) -> -0.614 | H35: =IF(Sheet1!$D$23=TRUE,x,x0) -> -1.60 | I35: =IF(Sheet1!$D$23=TRUE,y0+d0*(x-x0)+e0*(x-x0)^2,y0) -> 0.688 | K35: =IF(Sheet1!$D$25=TRUE,x,x0) -> 0.00 | L35: =IF(Sheet1!$D$25=TRUE,y0+d0*(x-x0)+e0*(x-x0)^2+f0*(x-x0)^3,y0) -> 1.000 | N35: =IF(Sheet1!$D$27=TRUE,x,x0) -> -1.60 | O35: =IF(Sheet1!$D$27=TRUE,y0+d0*(x-x0)+e0*(x-x0)^2+f0*(x-x0)^3+g0*(x-x0)^4,y0) -> 0.271 | Q35: =IF(Sheet1!$D$30=TRUE,x,x0) -> -1.60 | R35: =IF(Sheet1!$D$30=TRUE,y0+d0*(x-x0)+e0*(x-x0)^2+f0*(x-x0)^3+g0*(x-x0)^4+h0*(x-x0)^5,y0) -> 0.179 | T35: =IF(Sheet1!$D$33=TRUE,x,x0) -> -1.60 | U35: =IF(Sheet1!$D$33=TRUE,y0+d0*(x-x0)+e0*(x-x0)^2+f0*(x-x0)^3+g0*(x-x0)^4+h0*(x-x0)^5+i0*(x-x0)^6,y0) -> 0.204
C36: -1.592 | D36: 0.20 | E36: =IF(Sheet1!D$20=TRUE,x,x0) -> -1.59 | F36: =IF(Sheet1!D$20=TRUE,y0+d0*(x-x0),y0) -> -0.602 | H36: =IF(Sheet1!$D$23=TRUE,x,x0) -> -1.59 | I36: =IF(Sheet1!$D$23=TRUE,y0+d0*(x-x0)+e0*(x-x0)^2,y0) -> 0.681 | K36: =IF(Sheet1!$D$25=TRUE,x,x0) -> 0.00 | L36: =IF(Sheet1!$D$25=TRUE,y0+d0*(x-x0)+e0*(x-x0)^2+f0*(x-x0)^3,y0) -> 1.000 | N36: =IF(Sheet1!$D$27=TRUE,x,x0) -> -1.59 | O36: =IF(Sheet1!$D$27=TRUE,y0+d0*(x-x0)+e0*(x-x0)^2+f0*(x-x0)^3+g0*(x-x0)^4,y0) -> 0.270 | Q36: =IF(Sheet1!$D$30=TRUE,x,x0) -> -1.59 | R36: =IF(Sheet1!$D$30=TRUE,y0+d0*(x-x0)+e0*(x-x0)^2+f0*(x-x0)^3+g0*(x-x0)^4+h0*(x-x0)^5,y0) -> 0.183 | T36: =IF(Sheet1!$D$33=TRUE,x,x0) -> -1.59 | U36: =IF(Sheet1!$D$33=TRUE,y0+d0*(x-x0)+e0*(x-x0)^2+f0*(x-x0)^3+g0*(x-x0)^4+h0*(x-x0)^5+i0*(x-x0)^6,y0) -> 0.206
C37: -1.580 | D37: 0.21 | E37: =IF(Sheet1!D$20=TRUE,x,x0) -> -1.58 | F37: =IF(Sheet1!D$20=TRUE,y0+d0*(x-x0),y0) -> -0.590 | H37: =IF(Sheet1!$D$23=TRUE,x,x0) -> -1.58 | I37: =IF(Sheet1!$D$23=TRUE,y0+d0*(x-x0)+e0*(x-x0)^2,y0) -> 0.674 | K37: =IF(Sheet1!$D$25=TRUE,x,x0) -> 0.00 | L37: =IF(Sheet1!$D$25=TRUE,y0+d0*(x-x0)+e0*(x-x0)^2+f0*(x-x0)^3,y0) -> 1.000 | N37: =IF(Sheet1!$D$27=TRUE,x,x0) -> -1.58 | O37: =IF(Sheet1!$D$27=TRUE,y0+d0*(x-x0)+e0*(x-x0)^2+f0*(x-x0)^3+g0*(x-x0)^4,y0) -> 0.270 | Q37: =IF(Sheet1!$D$30=TRUE,x,x0) -> -1.58 | R37: =IF(Sheet1!$D$30=TRUE,y0+d0*(x-x0)+e0*(x-x0)^2+f0*(x-x0)^3+g0*(x-x0)^4+h0*(x-x0)^5,y0) -> 0.186 | T37: =IF(Sheet1!$D$33=TRUE,x,x0) -> -1.58 | U37: =IF(Sheet1!$D$33=TRUE,y0+d0*(x-x0)+e0*(x-x0)^2+f0*(x-x0)^3+g0*(x-x0)^4+h0*(x-x0)^5+i0*(x-x0)^6,y0) -> 0.208
C38: -1.568 | D38: 0.21 | E38: =IF(Sheet1!D$20=TRUE,x,x0) -> -1.57 | F38: =IF(Sheet1!D$20=TRUE,y0+d0*(x-x0),y0) -> -0.577 | H38: =IF(Sheet1!$D$23=TRUE,x,x0) -> -1.57 | I38: =IF(Sheet1!$D$23=TRUE,y0+d0*(x-x0)+e0*(x-x0)^2,y0) -> 0.667 | K38: =IF(Sheet1!$D$25=TRUE,x,x0) -> 0.00 | L38: =IF(Sheet1!$D$25=TRUE,y0+d0*(x-x0)+e0*(x-x0)^2+f0*(x-x0)^3,y0) -> 1.000 | N38: =IF(Sheet1!$D$27=TRUE,x,x0) -> -1.57 | O38: =IF(Sheet1!$D$27=TRUE,y0+d0*(x-x0)+e0*(x-x0)^2+f0*(x-x0)^3+g0*(x-x0)^4,y0) -> 0.271 | Q38: =IF(Sheet1!$D$30=TRUE,x,x0) -> -1.57 | R38: =IF(Sheet1!$D$30=TRUE,y0+d0*(x-x0)+e0*(x-x0)^2+f0*(x-x0)^3+g0*(x-x0)^4+h0*(x-x0)^5,y0) -> 0.189 | T38: =IF(Sheet1!$D$33=TRUE,x,x0) -> -1.57 | U38: =IF(Sheet1!$D$33=TRUE,y0+d0*(x-x0)+e0*(x-x0)^2+f0*(x-x0)^3+g0*(x-x0)^4+h0*(x-x0)^5+i0*(x-x0)^6,y0) -> 0.211
C39: -1.556 | D39: 0.21 | E39: =IF(Sheet1!D$20=TRUE,x,x0) -> -1.56 | F39: =IF(Sheet1!D$20=TRUE,y0+d0*(x-x0),y0) -> -0.565 | H39: =IF(Sheet1!$D$23=TRUE,x,x0) -> -1.56 | I39: =IF(Sheet1!$D$23=TRUE,y0+d0*(x-x0)+e0*(x-x0)^2,y0) -> 0.660 | K39: =IF(Sheet1!$D$25=TRUE,x,x0) -> 0.00 | L39: =IF(Sheet1!$D$25=TRUE,y0+d0*(x-x0)+e0*(x-x0)^2+f0*(x-x0)^3,y0) -> 1.000 | N39: =IF(Sheet1!$D$27=TRUE,x,x0) -> -1.56 | O39: =IF(Sheet1!$D$27=TRUE,y0+d0*(x-x0)+e0*(x-x0)^2+f0*(x-x0)^3+g0*(x-x0)^4,y0) -> 0.271 | Q39: =IF(Sheet1!$D$30=TRUE,x,x0) -> -1.56 | R39: =IF(Sheet1!$D$30=TRUE,y0+d0*(x-x0)+e0*(x-x0)^2+f0*(x-x0)^3+g0*(x-x0)^4+h0*(x-x0)^5,y0) -> 0.192 | T39: =IF(Sheet1!$D$33=TRUE,x,x0) -> -1.56 | U39: =IF(Sheet1!$D$33=TRUE,y0+d0*(x-x0)+e0*(x-x0)^2+f0*(x-x0)^3+g0*(x-x0)^4+h0*(x-x0)^5+i0*(x-x0)^6,y0) -> 0.213
C40: -1.544 | D40: 0.21 | E40: =IF(Sheet1!D$20=TRUE,x,x0) -> -1.54 | F40: =IF(Sheet1!D$20=TRUE,y0+d0*(x-x0),y0) -> -0.553 | H40: =IF(Sheet1!$D$23=TRUE,x,x0) -> -1.54 | I40: =IF(Sheet1!$D$23=TRUE,y0+d0*(x-x0)+e0*(x-x0)^2,y0) -> 0.653 | K40: =IF(Sheet1!$D$25=TRUE,x,x0) -> 0.00 | L40: =IF(Sheet1!$D$25=TRUE,y0+d0*(x-x0)+e0*(x-x0)^2+f0*(x-x0)^3,y0) -> 1.000 | N40: =IF(Sheet1!$D$27=TRUE,x,x0) -> -1.54 | O40: =IF(Sheet1!$D$27=TRUE,y0+d0*(x-x0)+e0*(x-x0)^2+f0*(x-x0)^3+g0*(x-x0)^4,y0) -> 0.271 | Q40: =IF(Sheet1!$D$30=TRUE,x,x0) -> -1.54 | R40: =IF(Sheet1!$D$30=TRUE,y0+d0*(x-x0)+e0*(x-x0)^2+f0*(x-x0)^3+g0*(x-x0)^4+h0*(x-x0)^5,y0) -> 0.196 | T40: =IF(Sheet1!$D$33=TRUE,x,x0) -> -1.54 | U40: =IF(Sheet1!$D$33=TRUE,y0+d0*(x-x0)+e0*(x-x0)^2+f0*(x-x0)^3+g0*(x-x0)^4+h0*(x-x0)^5+i0*(x-x0)^6,y0) -> 0.215
C41: -1.532 | D41: 0.22 | E41: =IF(Sheet1!D$20=TRUE,x,x0) -> -1.53 | F41: =IF(Sheet1!D$20=TRUE,y0+d0*(x-x0),y0) -> -0.541 | H41: =IF(Sheet1!$D$23=TRUE,x,x0) -> -1.53 | I41: =IF(Sheet1!$D$23=TRUE,y0+d0*(x-x0)+e0*(x-x0)^2,y0) -> 0.646 | K41: =IF(Sheet1!$D$25=TRUE,x,x0) -> 0.00 | L41: =IF(Sheet1!$D$25=TRUE,y0+d0*(x-x0)+e0*(x-x0)^2+f0*(x-x0)^3,y0) -> 1.000 | N41: =IF(Sheet1!$D$27=TRUE,x,x0) -> -1.53 | O41: =IF(Sheet1!$D$27=TRUE,y0+d0*(x-x0)+e0*(x-x0)^2+f0*(x-x0)^3+g0*(x-x0)^4,y0) -> 0.271 | Q41: =IF(Sheet1!$D$30=TRUE,x,x0) -> -1.53 | R41: =IF(Sheet1!$D$30=TRUE,y0+d0*(x-x0)+e0*(x-x0)^2+f0*(x-x0)^3+g0*(x-x0)^4+h0*(x-x0)^5,y0) -> 0.199 | T41: =IF(Sheet1!$D$33=TRUE,x,x0) -> -1.53 | U41: =IF(Sheet1!$D$33=TRUE,y0+d0*(x-x0)+e0*(x-x0)^2+f0*(x-x0)^3+g0*(x-x0)^4+h0*(x-x0)^5+i0*(x-x0)^6,y0) -> 0.218
C42: -1.520 | D42: 0.22 | E42: =IF(Sheet1!D$20=TRUE,x,x0) -> -1.52 | F42: =IF(Sheet1!D$20=TRUE,y0+d0*(x-x0),y0) -> -0.529 | H42: =IF(Sheet1!$D$23=TRUE,x,x0) -> -1.52 | I42: =IF(Sheet1!$D$23=TRUE,y0+d0*(x-x0)+e0*(x-x0)^2,y0) -> 0.640 | K42: =IF(Sheet1!$D$25=TRUE,x,x0) -> 0.00 | L42: =IF(Sheet1!$D$25=TRUE,y0+d0*(x-x0)+e0*(x-x0)^2+f0*(x-x0)^3,y0) -> 1.000 | N42: =IF(Sheet1!$D$27=TRUE,x,x0) -> -1.52 | O42: =IF(Sheet1!$D$27=TRUE,y0+d0*(x-x0)+e0*(x-x0)^2+f0*(x-x0)^3+g0*(x-x0)^4,y0) -> 0.272 | Q42: =IF(Sheet1!$D$30=TRUE,x,x0) -> -1.52 | R42: =IF(Sheet1!$D$30=TRUE,y0+d0*(x-x0)+e0*(x-x0)^2+f0*(x-x0)^3+g0*(x-x0)^4+h0*(x-x0)^5,y0) -> 0.202 | T42: =IF(Sheet1!$D$33=TRUE,x,x0) -> -1.52 | U42: =IF(Sheet1!$D$33=TRUE,y0+d0*(x-x0)+e0*(x-x0)^2+f0*(x-x0)^3+g0*(x-x0)^4+h0*(x-x0)^5+i0*(x-x0)^6,y0) -> 0.220
C43: -1.508 | D43: 0.22 | E43: =IF(Sheet1!D$20=TRUE,x,x0) -> -1.51 | F43: =IF(Sheet1!D$20=TRUE,y0+d0*(x-x0),y0) -> -0.517 | H43: =IF(Sheet1!$D$23=TRUE,x,x0) -> -1.51 | I43: =IF(Sheet1!$D$23=TRUE,y0+d0*(x-x0)+e0*(x-x0)^2,y0) -> 0.634 | K43: =IF(Sheet1!$D$25=TRUE,x,x0) -> 0.00 | L43: =IF(Sheet1!$D$25=TRUE,y0+d0*(x-x0)+e0*(x-x0)^2+f0*(x-x0)^3,y0) -> 1.000 | N43: =IF(Sheet1!$D$27=TRUE,x,x0) -> -1.51 | O43: =IF(Sheet1!$D$27=TRUE,y0+d0*(x-x0)+e0*(x-x0)^2+f0*(x-x0)^3+g0*(x-x0)^4,y0) -> 0.272 | Q43: =IF(Sheet1!$D$30=TRUE,x,x0) -> -1.51 | R43: =IF(Sheet1!$D$30=TRUE,y0+d0*(x-x0)+e0*(x-x0)^2+f0*(x-x0)^3+g0*(x-x0)^4+h0*(x-x0)^5,y0) -> 0.205 | T43: =IF(Sheet1!$D$33=TRUE,x,x0) -> -1.51 | U43: =IF(Sheet1!$D$33=TRUE,y0+d0*(x-x0)+e0*(x-x0)^2+f0*(x-x0)^3+g0*(x-x0)^4+h0*(x-x0)^5+i0*(x-x0)^6,y0) -> 0.222
C44: -1.496 | D44: 0.22 | E44: =IF(Sheet1!D$20=TRUE,x,x0) -> -1.50 | F44: =IF(Sheet1!D$20=TRUE,y0+d0*(x-x0),y0) -> -0.505 | H44: =IF(Sheet1!$D$23=TRUE,x,x0) -> -1.50 | I44: =IF(Sheet1!$D$23=TRUE,y0+d0*(x-x0)+e0*(x-x0)^2,y0) -> 0.628 | K44: =IF(Sheet1!$D$25=TRUE,x,x0) -> 0.00 | L44: =IF(Sheet1!$D$25=TRUE,y0+d0*(x-x0)+e0*(x-x0)^2+f0*(x-x0)^3,y0) -> 1.000 | N44: =IF(Sheet1!$D$27=TRUE,x,x0) -> -1.50 | O44: =IF(Sheet1!$D$27=TRUE,y0+d0*(x-x0)+e0*(x-x0)^2+f0*(x-x0)^3+g0*(x-x0)^4,y0) -> 0.273 | Q44: =IF(Sheet1!$D$30=TRUE,x,x0) -> -1.50 | R44: =IF(Sheet1!$D$30=TRUE,y0+d0*(x-x0)+e0*(x-x0)^2+f0*(x-x0)^3+g0*(x-x0)^4+h0*(x-x0)^5,y0) -> 0.209 | T44: =IF(Sheet1!$D$33=TRUE,x,x0) -> -1.50 | U44: =IF(Sheet1!$D$33=TRUE,y0+d0*(x-x0)+e0*(x-x0)^2+f0*(x-x0)^3+g0*(x-x0)^4+h0*(x-x0)^5+i0*(x-x0)^6,y0) -> 0.225
C45: -1.484 | D45: 0.23 | E45: =IF(Sheet1!D$20=TRUE,x,x0) -> -1.48 | F45: =IF(Sheet1!D$20=TRUE,y0+d0*(x-x0),y0) -> -0.493 | H45: =IF(Sheet1!$D$23=TRUE,x,x0) -> -1.48 | I45: =IF(Sheet1!$D$23=TRUE,y0+d0*(x-x0)+e0*(x-x0)^2,y0) -> 0.621 | K45: =IF(Sheet1!$D$25=TRUE,x,x0) -> 0.00 | L45: =IF(Sheet1!$D$25=TRUE,y0+d0*(x-x0)+e0*(x-x0)^2+f0*(x-x0)^3,y0) -> 1.000 | N45: =IF(Sheet1!$D$27=TRUE,x,x0) -> -1.48 | O45: =IF(Sheet1!$D$27=TRUE,y0+d0*(x-x0)+e0*(x-x0)^2+f0*(x-x0)^3+g0*(x-x0)^4,y0) -> 0.274 | Q45: =IF(Sheet1!$D$30=TRUE,x,x0) -> -1.48 | R45: =IF(Sheet1!$D$30=TRUE,y0+d0*(x-x0)+e0*(x-x0)^2+f0*(x-x0)^3+g0*(x-x0)^4+h0*(x-x0)^5,y0) -> 0.212 | T45: =IF(Sheet1!$D$33=TRUE,x,x0) -> -1.48 | U45: =IF(Sheet1!$D$33=TRUE,y0+d0*(x-x0)+e0*(x-x0)^2+f0*(x-x0)^3+g0*(x-x0)^4+h0*(x-x0)^5+i0*(x-x0)^6,y0) -> 0.227
C46: -1.472 | D46: 0.23 | E46: =IF(Sheet1!D$20=TRUE,x,x0) -> -1.47 | F46: =IF(Sheet1!D$20=TRUE,y0+d0*(x-x0),y0) -> -0.481 | H46: =IF(Sheet1!$D$23=TRUE,x,x0) -> -1.47 | I46: =IF(Sheet1!$D$23=TRUE,y0+d0*(x-x0)+e0*(x-x0)^2,y0) -> 0.616 | K46: =IF(Sheet1!$D$25=TRUE,x,x0) -> 0.00 | L46: =IF(Sheet1!$D$25=TRUE,y0+d0*(x-x0)+e0*(x-x0)^2+f0*(x-x0)^3,y0) -> 1.000 | N46: =IF(Sheet1!$D$27=TRUE,x,x0) -> -1.47 | O46: =IF(Sheet1!$D$27=TRUE,y0+d0*(x-x0)+e0*(x-x0)^2+f0*(x-x0)^3+g0*(x-x0)^4,y0) -> 0.275 | Q46: =IF(Sheet1!$D$30=TRUE,x,x0) -> -1.47 | R46: =IF(Sheet1!$D$30=TRUE,y0+d0*(x-x0)+e0*(x-x0)^2+f0*(x-x0)^3+g0*(x-x0)^4+h0*(x-x0)^5,y0) -> 0.215 | T46: =IF(Sheet1!$D$33=TRUE,x,x0) -> -1.47 | U46: =IF(Sheet1!$D$33=TRUE,y0+d0*(x-x0)+e0*(x-x0)^2+f0*(x-x0)^3+g0*(x-x0)^4+h0*(x-x0)^5+i0*(x-x0)^6,y0) -> 0.230
C47: -1.460 | D47: 0.23 | E47: =IF(Sheet1!D$20=TRUE,x,x0) -> -1.46 | F47: =IF(Sheet1!D$20=TRUE,y0+d0*(x-x0),y0) -> -0.469 | H47: =IF(Sheet1!$D$23=TRUE,x,x0) -> -1.46 | I47: =IF(Sheet1!$D$23=TRUE,y0+d0*(x-x0)+e0*(x-x0)^2,y0) -> 0.610 | K47: =IF(Sheet1!$D$25=TRUE,x,x0) -> 0.00 | L47: =IF(Sheet1!$D$25=TRUE,y0+d0*(x-x0)+e0*(x-x0)^2+f0*(x-x0)^3,y0) -> 1.000 | N47: =IF(Sheet1!$D$27=TRUE,x,x0) -> -1.46 | O47: =IF(Sheet1!$D$27=TRUE,y0+d0*(x-x0)+e0*(x-x0)^2+f0*(x-x0)^3+g0*(x-x0)^4,y0) -> 0.276 | Q47: =IF(Sheet1!$D$30=TRUE,x,x0) -> -1.46 | R47: =IF(Sheet1!$D$30=TRUE,y0+d0*(x-x0)+e0*(x-x0)^2+f0*(x-x0)^3+g0*(x-x0)^4+h0*(x-x0)^5,y0) -> 0.219 | T47: =IF(Sheet1!$D$33=TRUE,x,x0) -> -1.46 | U47: =IF(Sheet1!$D$33=TRUE,y0+d0*(x-x0)+e0*(x-x0)^2+f0*(x-x0)^3+g0*(x-x0)^4+h0*(x-x0)^5+i0*(x-x0)^6,y0) -> 0.233
C48: -1.448 | D48: 0.24 | E48: =IF(Sheet1!D$20=TRUE,x,x0) -> -1.45 | F48: =IF(Sheet1!D$20=TRUE,y0+d0*(x-x0),y0) -> -0.457 | H48: =IF(Sheet1!$D$23=TRUE,x,x0) -> -1.45 | I48: =IF(Sheet1!$D$23=TRUE,y0+d0*(x-x0)+e0*(x-x0)^2,y0) -> 0.604 | K48: =IF(Sheet1!$D$25=TRUE,x,x0) -> 0.00 | L48: =IF(Sheet1!$D$25=TRUE,y0+d0*(x-x0)+e0*(x-x0)^2+f0*(x-x0)^3,y0) -> 1.000 | N48: =IF(Sheet1!$D$27=TRUE,x,x0) -> -1.45 | O48: =IF(Sheet1!$D$27=TRUE,y0+d0*(x-x0)+e0*(x-x0)^2+f0*(x-x0)^3+g0*(x-x0)^4,y0) -> 0.277 | Q48: =IF(Sheet1!$D$30=TRUE,x,x0) -> -1.45 | R48: =IF(Sheet1!$D$30=TRUE,y0+d0*(x-x0)+e0*(x-x0)^2+f0*(x-x0)^3+g0*(x-x0)^4+h0*(x-x0)^5,y0) -> 0.222 | T48: =IF(Sheet1!$D$33=TRUE,x,x0) -> -1.45 | U48: =IF(Sheet1!$D$33=TRUE,y0+d0*(x-x0)+e0*(x-x0)^2+f0*(x-x0)^3+g0*(x-x0)^4+h0*(x-x0)^5+i0*(x-x0)^6,y0) -> 0.235
C49: -1.436 | D49: 0.24 | E49: =IF(Sheet1!D$20=TRUE,x,x0) -> -1.44 | F49: =IF(Sheet1!D$20=TRUE,y0+d0*(x-x0),y0) -> -0.445 | H49: =IF(Sheet1!$D$23=TRUE,x,x0) -> -1.44 | I49: =IF(Sheet1!$D$23=TRUE,y0+d0*(x-x0)+e0*(x-x0)^2,y0) -> 0.599 | K49: =IF(Sheet1!$D$25=TRUE,x,x0) -> 0.00 | L49: =IF(Sheet1!$D$25=TRUE,y0+d0*(x-x0)+e0*(x-x0)^2+f0*(x-x0)^3,y0) -> 1.000 | N49: =IF(Sheet1!$D$27=TRUE,x,x0) -> -1.44 | O49: =IF(Sheet1!$D$27=TRUE,y0+d0*(x-x0)+e0*(x-x0)^2+f0*(x-x0)^3+g0*(x-x0)^4,y0) -> 0.278 | Q49: =IF(Sheet1!$D$30=TRUE,x,x0) -> -1.44 | R49: =IF(Sheet1!$D$30=TRUE,y0+d0*(x-x0)+e0*(x-x0)^2+f0*(x-x0)^3+g0*(x-x0)^4+h0*(x-x0)^5,y0) -> 0.225 | T49: =IF(Sheet1!$D$33=TRUE,x,x0) -> -1.44 | U49: =IF(Sheet1!$D$33=TRUE,y0+d0*(x-x0)+e0*(x-x0)^2+f0*(x-x0)^3+g0*(x-x0)^4+h0*(x-x0)^5+i0*(x-x0)^6,y0) -> 0.238
C50: -1.424 | D50: 0.24 | E50: =IF(Sheet1!D$20=TRUE,x,x0) -> -1.42 | F50: =IF(Sheet1!D$20=TRUE,y0+d0*(x-x0),y0) -> -0.433 | H50: =IF(Sheet1!$D$23=TRUE,x,x0) -> -1.42 | I50: =IF(Sheet1!$D$23=TRUE,y0+d0*(x-x0)+e0*(x-x0)^2,y0) -> 0.594 | K50: =IF(Sheet1!$D$25=TRUE,x,x0) -> 0.00 | L50: =IF(Sheet1!$D$25=TRUE,y0+d0*(x-x0)+e0*(x-x0)^2+f0*(x-x0)^3,y0) -> 1.000 | N50: =IF(Sheet1!$D$27=TRUE,x,x0) -> -1.42 | O50: =IF(Sheet1!$D$27=TRUE,y0+d0*(x-x0)+e0*(x-x0)^2+f0*(x-x0)^3+g0*(x-x0)^4,y0) -> 0.279 | Q50: =IF(Sheet1!$D$30=TRUE,x,x0) -> -1.42 | R50: =IF(Sheet1!$D$30=TRUE,y0+d0*(x-x0)+e0*(x-x0)^2+f0*(x-x0)^3+g0*(x-x0)^4+h0*(x-x0)^5,y0) -> 0.229 | T50: =IF(Sheet1!$D$33=TRUE,x,x0) -> -1.42 | U50: =IF(Sheet1!$D$33=TRUE,y0+d0*(x-x0)+e0*(x-x0)^2+f0*(x-x0)^3+g0*(x-x0)^4+h0*(x-x0)^5+i0*(x-x0)^6,y0) -> 0.241
C51: -1.412 | D51: 0.24 | E51: =IF(Sheet1!D$20=TRUE,x,x0) -> -1.41 | F51: =IF(Sheet1!D$20=TRUE,y0+d0*(x-x0),y0) -> -0.421 | H51: =IF(Sheet1!$D$23=TRUE,x,x0) -> -1.41 | I51: =IF(Sheet1!$D$23=TRUE,y0+d0*(x-x0)+e0*(x-x0)^2,y0) -> 0.588 | K51: =IF(Sheet1!$D$25=TRUE,x,x0) -> 0.00 | L51: =IF(Sheet1!$D$25=TRUE,y0+d0*(x-x0)+e0*(x-x0)^2+f0*(x-x0)^3,y0) -> 1.000 | N51: =IF(Sheet1!$D$27=TRUE,x,x0) -> -1.41 | O51: =IF(Sheet1!$D$27=TRUE,y0+d0*(x-x0)+e0*(x-x0)^2+f0*(x-x0)^3+g0*(x-x0)^4,y0) -> 0.280 | Q51: =IF(Sheet1!$D$30=TRUE,x,x0) -> -1.41 | R51: =IF(Sheet1!$D$30=TRUE,y0+d0*(x-x0)+e0*(x-x0)^2+f0*(x-x0)^3+g0*(x-x0)^4+h0*(x-x0)^5,y0) -> 0.232 | T51: =IF(Sheet1!$D$33=TRUE,x,x0) -> -1.41 | U51: =IF(Sheet1!$D$33=TRUE,y0+d0*(x-x0)+e0*(x-x0)^2+f0*(x-x0)^3+g0*(x-x0)^4+h0*(x-x0)^5+i0*(x-x0)^6,y0) -> 0.244
C52: -1.400 | D52: 0.25 | E52: =IF(Sheet1!D$20=TRUE,x,x0) -> -1.40 | F52: =IF(Sheet1!D$20=TRUE,y0+d0*(x-x0),y0) -> -0.408 | H52: =IF(Sheet1!$D$23=TRUE,x,x0) -> -1.40 | I52: =IF(Sheet1!$D$23=TRUE,y0+d0*(x-x0)+e0*(x-x0)^2,y0) -> 0.583 | K52: =IF(Sheet1!$D$25=TRUE,x,x0) -> 0.00 | L52: =IF(Sheet1!$D$25=TRUE,y0+d0*(x-x0)+e0*(x-x0)^2+f0*(x-x0)^3,y0) -> 1.000 | N52: =IF(Sheet1!$D$27=TRUE,x,x0) -> -1.40 | O52: =IF(Sheet1!$D$27=TRUE,y0+d0*(x-x0)+e0*(x-x0)^2+f0*(x-x0)^3+g0*(x-x0)^4,y0) -> 0.282 | Q52: =IF(Sheet1!$D$30=TRUE,x,x0) -> -1.40 | R52: =IF(Sheet1!$D$30=TRUE,y0+d0*(x-x0)+e0*(x-x0)^2+f0*(x-x0)^3+g0*(x-x0)^4+h0*(x-x0)^5,y0) -> 0.236 | T52: =IF(Sheet1!$D$33=TRUE,x,x0) -> -1.40 | U52: =IF(Sheet1!$D$33=TRUE,y0+d0*(x-x0)+e0*(x-x0)^2+f0*(x-x0)^3+g0*(x-x0)^4+h0*(x-x0)^5+i0*(x-x0)^6,y0) -> 0.246
C53: -1.388 | D53: 0.25 | E53: =IF(Sheet1!D$20=TRUE,x,x0) -> -1.39 | F53: =IF(Sheet1!D$20=TRUE,y0+d0*(x-x0),y0) -> -0.396 | H53: =IF(Sheet1!$D$23=TRUE,x,x0) -> -1.39 | I53: =IF(Sheet1!$D$23=TRUE,y0+d0*(x-x0)+e0*(x-x0)^2,y0) -> 0.579 | K53: =IF(Sheet1!$D$25=TRUE,x,x0) -> 0.00 | L53: =IF(Sheet1!$D$25=TRUE,y0+d0*(x-x0)+e0*(x-x0)^2+f0*(x-x0)^3,y0) -> 1.000 | N53: =IF(Sheet1!$D$27=TRUE,x,x0) -> -1.39 | O53: =IF(Sheet1!$D$27=TRUE,y0+d0*(x-x0)+e0*(x-x0)^2+f0*(x-x0)^3+g0*(x-x0)^4,y0) -> 0.283 | Q53: =IF(Sheet1!$D$30=TRUE,x,x0) -> -1.39 | R53: =IF(Sheet1!$D$30=TRUE,y0+d0*(x-x0)+e0*(x-x0)^2+f0*(x-x0)^3+g0*(x-x0)^4+h0*(x-x0)^5,y0) -> 0.239 | T53: =IF(Sheet1!$D$33=TRUE,x,x0) -> -1.39 | U53: =IF(Sheet1!$D$33=TRUE,y0+d0*(x-x0)+e0*(x-x0)^2+f0*(x-x0)^3+g0*(x-x0)^4+h0*(x-x0)^5+i0*(x-x0)^6,y0) -> 0.249
C54: -1.376 | D54: 0.25 | E54: =IF(Sheet1!D$20=TRUE,x,x0) -> -1.38 | F54: =IF(Sheet1!D$20=TRUE,y0+d0*(x-x0),y0) -> -0.384 | H54: =IF(Sheet1!$D$23=TRUE,x,x0) -> -1.38 | I54: =IF(Sheet1!$D$23=TRUE,y0+d0*(x-x0)+e0*(x-x0)^2,y0) -> 0.574 | K54: =IF(Sheet1!$D$25=TRUE,x,x0) -> 0.00 | L54: =IF(Sheet1!$D$25=TRUE,y0+d0*(x-x0)+e0*(x-x0)^2+f0*(x-x0)^3,y0) -> 1.000 | N54: =IF(Sheet1!$D$27=TRUE,x,x0) -> -1.38 | O54: =IF(Sheet1!$D$27=TRUE,y0+d0*(x-x0)+e0*(x-x0)^2+f0*(x-x0)^3+g0*(x-x0)^4,y0) -> 0.285 | Q54: =IF(Sheet1!$D$30=TRUE,x,x0) -> -1.38 | R54: =IF(Sheet1!$D$30=TRUE,y0+d0*(x-x0)+e0*(x-x0)^2+f0*(x-x0)^3+g0*(x-x0)^4+h0*(x-x0)^5,y0) -> 0.242 | T54: =IF(Sheet1!$D$33=TRUE,x,x0) -> -1.38 | U54: =IF(Sheet1!$D$33=TRUE,y0+d0*(x-x0)+e0*(x-x0)^2+f0*(x-x0)^3+g0*(x-x0)^4+h0*(x-x0)^5+i0*(x-x0)^6,y0) -> 0.252
C55: -1.364 | D55: 0.26 | E55: =IF(Sheet1!D$20=TRUE,x,x0) -> -1.36 | F55: =IF(Sheet1!D$20=TRUE,y0+d0*(x-x0),y0) -> -0.372 | H55: =IF(Sheet1!$D$23=TRUE,x,x0) -> -1.36 | I55: =IF(Sheet1!$D$23=TRUE,y0+d0*(x-x0)+e0*(x-x0)^2,y0) -> 0.569 | K55: =IF(Sheet1!$D$25=TRUE,x,x0) -> 0.00 | L55: =IF(Sheet1!$D$25=TRUE,y0+d0*(x-x0)+e0*(x-x0)^2+f0*(x-x0)^3,y0) -> 1.000 | N55: =IF(Sheet1!$D$27=TRUE,x,x0) -> -1.36 | O55: =IF(Sheet1!$D$27=TRUE,y0+d0*(x-x0)+e0*(x-x0)^2+f0*(x-x0)^3+g0*(x-x0)^4,y0) -> 0.286 | Q55: =IF(Sheet1!$D$30=TRUE,x,x0) -> -1.36 | R55: =IF(Sheet1!$D$30=TRUE,y0+d0*(x-x0)+e0*(x-x0)^2+f0*(x-x0)^3+g0*(x-x0)^4+h0*(x-x0)^5,y0) -> 0.246 | T55: =IF(Sheet1!$D$33=TRUE,x,x0) -> -1.36 | U55: =IF(Sheet1!$D$33=TRUE,y0+d0*(x-x0)+e0*(x-x0)^2+f0*(x-x0)^3+g0*(x-x0)^4+h0*(x-x0)^5+i0*(x-x0)^6,y0) -> 0.255
C56: -1.352 | D56: 0.26 | E56: =IF(Sheet1!D$20=TRUE,x,x0) -> -1.35 | F56: =IF(Sheet1!D$20=TRUE,y0+d0*(x-x0),y0) -> -0.360 | H56: =IF(Sheet1!$D$23=TRUE,x,x0) -> -1.35 | I56: =IF(Sheet1!$D$23=TRUE,y0+d0*(x-x0)+e0*(x-x0)^2,y0) -> 0.565 | K56: =IF(Sheet1!$D$25=TRUE,x,x0) -> 0.00 | L56: =IF(Sheet1!$D$25=TRUE,y0+d0*(x-x0)+e0*(x-x0)^2+f0*(x-x0)^3,y0) -> 1.000 | N56: =IF(Sheet1!$D$27=TRUE,x,x0) -> -1.35 | O56: =IF(Sheet1!$D$27=TRUE,y0+d0*(x-x0)+e0*(x-x0)^2+f0*(x-x0)^3+g0*(x-x0)^4,y0) -> 0.288 | Q56: =IF(Sheet1!$D$30=TRUE,x,x0) -> -1.35 | R56: =IF(Sheet1!$D$30=TRUE,y0+d0*(x-x0)+e0*(x-x0)^2+f0*(x-x0)^3+g0*(x-x0)^4+h0*(x-x0)^5,y0) -> 0.249 | T56: =IF(Sheet1!$D$33=TRUE,x,x0) -> -1.35 | U56: =IF(Sheet1!$D$33=TRUE,y0+d0*(x-x0)+e0*(x-x0)^2+f0*(x-x0)^3+g0*(x-x0)^4+h0*(x-x0)^5+i0*(x-x0)^6,y0) -> 0.258
C57: -1.340 | D57: 0.26 | E57: =IF(Sheet1!D$20=TRUE,x,x0) -> -1.34 | F57: =IF(Sheet1!D$20=TRUE,y0+d0*(x-x0),y0) -> -0.348 | H57: =IF(Sheet1!$D$23=TRUE,x,x0) -> -1.34 | I57: =IF(Sheet1!$D$23=TRUE,y0+d0*(x-x0)+e0*(x-x0)^2,y0) -> 0.561 | K57: =IF(Sheet1!$D$25=TRUE,x,x0) -> 0.00 | L57: =IF(Sheet1!$D$25=TRUE,y0+d0*(x-x0)+e0*(x-x0)^2+f0*(x-x0)^3,y0) -> 1.000 | N57: =IF(Sheet1!$D$27=TRUE,x,x0) -> -1.34 | O57: =IF(Sheet1!$D$27=TRUE,y0+d0*(x-x0)+e0*(x-x0)^2+f0*(x-x0)^3+g0*(x-x0)^4,y0) -> 0.290 | Q57: =IF(Sheet1!$D$30=TRUE,x,x0) -> -1.34 | R57: =IF(Sheet1!$D$30=TRUE,y0+d0*(x-x0)+e0*(x-x0)^2+f0*(x-x0)^3+g0*(x-x0)^4+h0*(x-x0)^5,y0) -> 0.253 | T57: =IF(Sheet1!$D$33=TRUE,x,x0) -> -1.34 | U57: =IF(Sheet1!$D$33=TRUE,y0+d0*(x-x0)+e0*(x-x0)^2+f0*(x-x0)^3+g0*(x-x0)^4+h0*(x-x0)^5+i0*(x-x0)^6,y0) -> 0.261
C58: -1.328 | D58: 0.27 | E58: =IF(Sheet1!D$20=TRUE,x,x0) -> -1.33 | F58: =IF(Sheet1!D$20=TRUE,y0+d0*(x-x0),y0) -> -0.336 | H58: =IF(Sheet1!$D$23=TRUE,x,x0) -> -1.33 | I58: =IF(Sheet1!$D$23=TRUE,y0+d0*(x-x0)+e0*(x-x0)^2,y0) -> 0.556 | K58: =IF(Sheet1!$D$25=TRUE,x,x0) -> 0.00 | L58: =IF(Sheet1!$D$25=TRUE,y0+d0*(x-x0)+e0*(x-x0)^2+f0*(x-x0)^3,y0) -> 1.000 | N58: =IF(Sheet1!$D$27=TRUE,x,x0) -> -1.33 | O58: =IF(Sheet1!$D$27=TRUE,y0+d0*(x-x0)+e0*(x-x0)^2+f0*(x-x0)^3+g0*(x-x0)^4,y0) -> 0.292 | Q58: =IF(Sheet1!$D$30=TRUE,x,x0) -> -1.33 | R58: =IF(Sheet1!$D$30=TRUE,y0+d0*(x-x0)+e0*(x-x0)^2+f0*(x-x0)^3+g0*(x-x0)^4+h0*(x-x0)^5,y0) -> 0.256 | T58: =IF(Sheet1!$D$33=TRUE,x,x0) -> -1.33 | U58: =IF(Sheet1!$D$33=TRUE,y0+d0*(x-x0)+e0*(x-x0)^2+f0*(x-x0)^3+g0*(x-x0)^4+h0*(x-x0)^5+i0*(x-x0)^6,y0) -> 0.264
C59: -1.316 | D59: 0.27 | E59: =IF(Sheet1!D$20=TRUE,x,x0) -> -1.32 | F59: =IF(Sheet1!D$20=TRUE,y0+d0*(x-x0),y0) -> -0.324 | H59: =IF(Sheet1!$D$23=TRUE,x,x0) -> -1.32 | I59: =IF(Sheet1!$D$23=TRUE,y0+d0*(x-x0)+e0*(x-x0)^2,y0) -> 0.552 | K59: =IF(Sheet1!$D$25=TRUE,x,x0) -> 0.00 | L59: =IF(Sheet1!$D$25=TRUE,y0+d0*(x-x0)+e0*(x-x0)^2+f0*(x-x0)^3,y0) -> 1.000 | N59: =IF(Sheet1!$D$27=TRUE,x,x0) -> -1.32 | O59: =IF(Sheet1!$D$27=TRUE,y0+d0*(x-x0)+e0*(x-x0)^2+f0*(x-x0)^3+g0*(x-x0)^4,y0) -> 0.294 | Q59: =IF(Sheet1!$D$30=TRUE,x,x0) -> -1.32 | R59: =IF(Sheet1!$D$30=TRUE,y0+d0*(x-x0)+e0*(x-x0)^2+f0*(x-x0)^3+g0*(x-x0)^4+h0*(x-x0)^5,y0) -> 0.260 | T59: =IF(Sheet1!$D$33=TRUE,x,x0) -> -1.32 | U59: =IF(Sheet1!$D$33=TRUE,y0+d0*(x-x0)+e0*(x-x0)^2+f0*(x-x0)^3+g0*(x-x0)^4+h0*(x-x0)^5+i0*(x-x0)^6,y0) -> 0.267
C60: -1.304 | D60: 0.27 | E60: =IF(Sheet1!D$20=TRUE,x,x0) -> -1.30 | F60: =IF(Sheet1!D$20=TRUE,y0+d0*(x-x0),y0) -> -0.312 | H60: =IF(Sheet1!$D$23=TRUE,x,x0) -> -1.30 | I60: =IF(Sheet1!$D$23=TRUE,y0+d0*(x-x0)+e0*(x-x0)^2,y0) -> 0.549 | K60: =IF(Sheet1!$D$25=TRUE,x,x0) -> 0.00 | L60: =IF(Sheet1!$D$25=TRUE,y0+d0*(x-x0)+e0*(x-x0)^2+f0*(x-x0)^3,y0) -> 1.000 | N60: =IF(Sheet1!$D$27=TRUE,x,x0) -> -1.30 | O60: =IF(Sheet1!$D$27=TRUE,y0+d0*(x-x0)+e0*(x-x0)^2+f0*(x-x0)^3+g0*(x-x0)^4,y0) -> 0.296 | Q60: =IF(Sheet1!$D$30=TRUE,x,x0) -> -1.30 | R60: =IF(Sheet1!$D$30=TRUE,y0+d0*(x-x0)+e0*(x-x0)^2+f0*(x-x0)^3+g0*(x-x0)^4+h0*(x-x0)^5,y0) -> 0.263 | T60: =IF(Sheet1!$D$33=TRUE,x,x0) -> -1.30 | U60: =IF(Sheet1!$D$33=TRUE,y0+d0*(x-x0)+e0*(x-x0)^2+f0*(x-x0)^3+g0*(x-x0)^4+h0*(x-x0)^5+i0*(x-x0)^6,y0) -> 0.270
C61: -1.292 | D61: 0.27 | E61: =IF(Sheet1!D$20=TRUE,x,x0) -> -1.29 | F61: =IF(Sheet1!D$20=TRUE,y0+d0*(x-x0),y0) -> -0.300 | H61: =IF(Sheet1!$D$23=TRUE,x,x0) -> -1.29 | I61: =IF(Sheet1!$D$23=TRUE,y0+d0*(x-x0)+e0*(x-x0)^2,y0) -> 0.545 | K61: =IF(Sheet1!$D$25=TRUE,x,x0) -> 0.00 | L61: =IF(Sheet1!$D$25=TRUE,y0+d0*(x-x0)+e0*(x-x0)^2+f0*(x-x0)^3,y0) -> 1.000 | N61: =IF(Sheet1!$D$27=TRUE,x,x0) -> -1.29 | O61: =IF(Sheet1!$D$27=TRUE,y0+d0*(x-x0)+e0*(x-x0)^2+f0*(x-x0)^3+g0*(x-x0)^4,y0) -> 0.298 | Q61: =IF(Sheet1!$D$30=TRUE,x,x0) -> -1.29 | R61: =IF(Sheet1!$D$30=TRUE,y0+d0*(x-x0)+e0*(x-x0)^2+f0*(x-x0)^3+g0*(x-x0)^4+h0*(x-x0)^5,y0) -> 0.267 | T61: =IF(Sheet1!$D$33=TRUE,x,x0) -> -1.29 | U61: =IF(Sheet1!$D$33=TRUE,y0+d0*(x-x0)+e0*(x-x0)^2+f0*(x-x0)^3+g0*(x-x0)^4+h0*(x-x0)^5+i0*(x-x0)^6,y0) -> 0.274
C62: -1.280 | D62: 0.28 | E62: =IF(Sheet1!D$20=TRUE,x,x0) -> -1.28 | F62: =IF(Sheet1!D$20=TRUE,y0+d0*(x-x0),y0) -> -0.288 | H62: =IF(Sheet1!$D$23=TRUE,x,x0) -> -1.28 | I62: =IF(Sheet1!$D$23=TRUE,y0+d0*(x-x0)+e0*(x-x0)^2,y0) -> 0.541 | K62: =IF(Sheet1!$D$25=TRUE,x,x0) -> 0.00 | L62: =IF(Sheet1!$D$25=TRUE,y0+d0*(x-x0)+e0*(x-x0)^2+f0*(x-x0)^3,y0) -> 1.000 | N62: =IF(Sheet1!$D$27=TRUE,x,x0) -> -1.28 | O62: =IF(Sheet1!$D$27=TRUE,y0+d0*(x-x0)+e0*(x-x0)^2+f0*(x-x0)^3+g0*(x-x0)^4,y0) -> 0.300 | Q62: =IF(Sheet1!$D$30=TRUE,x,x0) -> -1.28 | R62: =IF(Sheet1!$D$30=TRUE,y0+d0*(x-x0)+e0*(x-x0)^2+f0*(x-x0)^3+g0*(x-x0)^4+h0*(x-x0)^5,y0) -> 0.271 | T62: =IF(Sheet1!$D$33=TRUE,x,x0) -> -1.28 | U62: =IF(Sheet1!$D$33=TRUE,y0+d0*(x-x0)+e0*(x-x0)^2+f0*(x-x0)^3+g0*(x-x0)^4+h0*(x-x0)^5+i0*(x-x0)^6,y0) -> 0.277
C63: -1.268 | D63: 0.28 | E63: =IF(Sheet1!D$20=TRUE,x,x0) -> -1.27 | F63: =IF(Sheet1!D$20=TRUE,y0+d0*(x-x0),y0) -> -0.276 | H63: =IF(Sheet1!$D$23=TRUE,x,x0) -> -1.27 | I63: =IF(Sheet1!$D$23=TRUE,y0+d0*(x-x0)+e0*(x-x0)^2,y0) -> 0.538 | K63: =IF(Sheet1!$D$25=TRUE,x,x0) -> 0.00 | L63: =IF(Sheet1!$D$25=TRUE,y0+d0*(x-x0)+e0*(x-x0)^2+f0*(x-x0)^3,y0) -> 1.000 | N63: =IF(Sheet1!$D$27=TRUE,x,x0) -> -1.27 | O63: =IF(Sheet1!$D$27=TRUE,y0+d0*(x-x0)+e0*(x-x0)^2+f0*(x-x0)^3+g0*(x-x0)^4,y0) -> 0.302 | Q63: =IF(Sheet1!$D$30=TRUE,x,x0) -> -1.27 | R63: =IF(Sheet1!$D$30=TRUE,y0+d0*(x-x0)+e0*(x-x0)^2+f0*(x-x0)^3+g0*(x-x0)^4+h0*(x-x0)^5,y0) -> 0.274 | T63: =IF(Sheet1!$D$33=TRUE,x,x0) -> -1.27 | U63: =IF(Sheet1!$D$33=TRUE,y0+d0*(x-x0)+e0*(x-x0)^2+f0*(x-x0)^3+g0*(x-x0)^4+h0*(x-x0)^5+i0*(x-x0)^6,y0) -> 0.280
C64: -1.256 | D64: 0.28 | E64: =IF(Sheet1!D$20=TRUE,x,x0) -> -1.26 | F64: =IF(Sheet1!D$20=TRUE,y0+d0*(x-x0),y0) -> -0.264 | H64: =IF(Sheet1!$D$23=TRUE,x,x0) -> -1.26 | I64: =IF(Sheet1!$D$23=TRUE,y0+d0*(x-x0)+e0*(x-x0)^2,y0) -> 0.535 | K64: =IF(Sheet1!$D$25=TRUE,x,x0) -> 0.00 | L64: =IF(Sheet1!$D$25=TRUE,y0+d0*(x-x0)+e0*(x-x0)^2+f0*(x-x0)^3,y0) -> 1.000 | N64: =IF(Sheet1!$D$27=TRUE,x,x0) -> -1.26 | O64: =IF(Sheet1!$D$27=TRUE,y0+d0*(x-x0)+e0*(x-x0)^2+f0*(x-x0)^3+g0*(x-x0)^4,y0) -> 0.305 | Q64: =IF(Sheet1!$D$30=TRUE,x,x0) -> -1.26 | R64: =IF(Sheet1!$D$30=TRUE,y0+d0*(x-x0)+e0*(x-x0)^2+f0*(x-x0)^3+g0*(x-x0)^4+h0*(x-x0)^5,y0) -> 0.278 | T64: =IF(Sheet1!$D$33=TRUE,x,x0) -> -1.26 | U64: =IF(Sheet1!$D$33=TRUE,y0+d0*(x-x0)+e0*(x-x0)^2+f0*(x-x0)^3+g0*(x-x0)^4+h0*(x-x0)^5+i0*(x-x0)^6,y0) -> 0.284
C65: -1.244 | D65: 0.29 | E65: =IF(Sheet1!D$20=TRUE,x,x0) -> -1.24 | F65: =IF(Sheet1!D$20=TRUE,y0+d0*(x-x0),y0) -> -0.251 | H65: =IF(Sheet1!$D$23=TRUE,x,x0) -> -1.24 | I65: =IF(Sheet1!$D$23=TRUE,y0+d0*(x-x0)+e0*(x-x0)^2,y0) -> 0.532 | K65: =IF(Sheet1!$D$25=TRUE,x,x0) -> 0.00 | L65: =IF(Sheet1!$D$25=TRUE,y0+d0*(x-x0)+e0*(x-x0)^2+f0*(x-x0)^3,y0) -> 1.000 | N65: =IF(Sheet1!$D$27=TRUE,x,x0) -> -1.24 | O65: =IF(Sheet1!$D$27=TRUE,y0+d0*(x-x0)+e0*(x-x0)^2+f0*(x-x0)^3+g0*(x-x0)^4,y0) -> 0.307 | Q65: =IF(Sheet1!$D$30=TRUE,x,x0) -> -1.24 | R65: =IF(Sheet1!$D$30=TRUE,y0+d0*(x-x0)+e0*(x-x0)^2+f0*(x-x0)^3+g0*(x-x0)^4+h0*(x-x0)^5,y0) -> 0.282 | T65: =IF(Sheet1!$D$33=TRUE,x,x0) -> -1.24 | U65: =IF(Sheet1!$D$33=TRUE,y0+d0*(x-x0)+e0*(x-x0)^2+f0*(x-x0)^3+g0*(x-x0)^4+h0*(x-x0)^5+i0*(x-x0)^6,y0) -> 0.287
C66: -1.232 | D66: =EXP(x) -> 0.29 | E66: =IF(Sheet1!D$20=TRUE,x,x0) -> -1.23 | F66: =IF(Sheet1!D$20=TRUE,y0+d0*(x-x0),y0) -> -0.239 | H66: =IF(Sheet1!$D$23=TRUE,x,x0) -> -1.23 | I66: =IF(Sheet1!$D$23=TRUE,y0+d0*(x-x0)+e0*(x-x0)^2,y0) -> 0.529 | K66: =IF(Sheet1!$D$25=TRUE,x,x0) -> 0.00 | L66: =IF(Sheet1!$D$25=TRUE,y0+d0*(x-x0)+e0*(x-x0)^2+f0*(x-x0)^3,y0) -> 1.000 | N66: =IF(Sheet1!$D$27=TRUE,x,x0) -> -1.23 | O66: =IF(Sheet1!$D$27=TRUE,y0+d0*(x-x0)+e0*(x-x0)^2+f0*(x-x0)^3+g0*(x-x0)^4,y0) -> 0.310 | Q66: =IF(Sheet1!$D$30=TRUE,x,x0) -> -1.23 | R66: =IF(Sheet1!$D$30=TRUE,y0+d0*(x-x0)+e0*(x-x0)^2+f0*(x-x0)^3+g0*(x-x0)^4+h0*(x-x0)^5,y0) -> 0.285 | T66: =IF(Sheet1!$D$33=TRUE,x,x0) -> -1.23 | U66: =IF(Sheet1!$D$33=TRUE,y0+d0*(x-x0)+e0*(x-x0)^2+f0*(x-x0)^3+g0*(x-x0)^4+h0*(x-x0)^5+i0*(x-x0)^6,y0) -> 0.290
C67: -1.220 | D67: 0.30 | E67: =IF(Sheet1!D$20=TRUE,x,x0) -> -1.22 | F67: =IF(Sheet1!D$20=TRUE,y0+d0*(x-x0),y0) -> -0.227 | H67: =IF(Sheet1!$D$23=TRUE,x,x0) -> -1.22 | I67: =IF(Sheet1!$D$23=TRUE,y0+d0*(x-x0)+e0*(x-x0)^2,y0) -> 0.526 | K67: =IF(Sheet1!$D$25=TRUE,x,x0) -> 0.00 | L67: =IF(Sheet1!$D$25=TRUE,y0+d0*(x-x0)+e0*(x-x0)^2+f0*(x-x0)^3,y0) -> 1.000 | N67: =IF(Sheet1!$D$27=TRUE,x,x0) -> -1.22 | O67: =IF(Sheet1!$D$27=TRUE,y0+d0*(x-x0)+e0*(x-x0)^2+f0*(x-x0)^3+g0*(x-x0)^4,y0) -> 0.312 | Q67: =IF(Sheet1!$D$30=TRUE,x,x0) -> -1.22 | R67: =IF(Sheet1!$D$30=TRUE,y0+d0*(x-x0)+e0*(x-x0)^2+f0*(x-x0)^3+g0*(x-x0)^4+h0*(x-x0)^5,y0) -> 0.289 | T67: =IF(Sheet1!$D$33=TRUE,x,x0) -> -1.22 | U67: =IF(Sheet1!$D$33=TRUE,y0+d0*(x-x0)+e0*(x-x0)^2+f0*(x-x0)^3+g0*(x-x0)^4+h0*(x-x0)^5+i0*(x-x0)^6,y0) -> 0.294
C68: =C67+dx -> -1.208 | D68: 0.30 | E68: =IF(Sheet1!D$20=TRUE,x,x0) -> -1.21 | F68: =IF(Sheet1!D$20=TRUE,y0+d0*(x-x0),y0) -> -0.215 | H68: =IF(Sheet1!$D$23=TRUE,x,x0) -> -1.21 | I68: =IF(Sheet1!$D$23=TRUE,y0+d0*(x-x0)+e0*(x-x0)^2,y0) -> 0.523 | K68: =IF(Sheet1!$D$25=TRUE,x,x0) -> 0.00 | L68: =IF(Sheet1!$D$25=TRUE,y0+d0*(x-x0)+e0*(x-x0)^2+f0*(x-x0)^3,y0) -> 1.000 | N68: =IF(Sheet1!$D$27=TRUE,x,x0) -> -1.21 | O68: =IF(Sheet1!$D$27=TRUE,y0+d0*(x-x0)+e0*(x-x0)^2+f0*(x-x0)^3+g0*(x-x0)^4,y0) -> 0.315 | Q68: =IF(Sheet1!$D$30=TRUE,x,x0) -> -1.21 | R68: =IF(Sheet1!$D$30=TRUE,y0+d0*(x-x0)+e0*(x-x0)^2+f0*(x-x0)^3+g0*(x-x0)^4+h0*(x-x0)^5,y0) -> 0.293 | T68: =IF(Sheet1!$D$33=TRUE,x,x0) -> -1.21 | U68: =IF(Sheet1!$D$33=TRUE,y0+d0*(x-x0)+e0*(x-x0)^2+f0*(x-x0)^3+g0*(x-x0)^4+h0*(x-x0)^5+i0*(x-x0)^6,y0) -> 0.297
C69: -1.196 | D69: 0.30 | E69: =IF(Sheet1!D$20=TRUE,x,x0) -> -1.20 | F69: =IF(Sheet1!D$20=TRUE,y0+d0*(x-x0),y0) -> -0.203 | H69: =IF(Sheet1!$D$23=TRUE,x,x0) -> -1.20 | I69: =IF(Sheet1!$D$23=TRUE,y0+d0*(x-x0)+e0*(x-x0)^2,y0) -> 0.521 | K69: =IF(Sheet1!$D$25=TRUE,x,x0) -> 0.00 | L69: =IF(Sheet1!$D$25=TRUE,y0+d0*(x-x0)+e0*(x-x0)^2+f0*(x-x0)^3,y0) -> 1.000 | N69: =IF(Sheet1!$D$27=TRUE,x,x0) -> -1.20 | O69: =IF(Sheet1!$D$27=TRUE,y0+d0*(x-x0)+e0*(x-x0)^2+f0*(x-x0)^3+g0*(x-x0)^4,y0) -> 0.318 | Q69: =IF(Sheet1!$D$30=TRUE,x,x0) -> -1.20 | R69: =IF(Sheet1!$D$30=TRUE,y0+d0*(x-x0)+e0*(x-x0)^2+f0*(x-x0)^3+g0*(x-x0)^4+h0*(x-x0)^5,y0) -> 0.297 | T69: =IF(Sheet1!$D$33=TRUE,x,x0) -> -1.20 | U69: =IF(Sheet1!$D$33=TRUE,y0+d0*(x-x0)+e0*(x-x0)^2+f0*(x-x0)^3+g0*(x-x0)^4+h0*(x-x0)^5+i0*(x-x0)^6,y0) -> 0.301
C70: -1.184 | D70: 0.31 | E70: =IF(Sheet1!D$20=TRUE,x,x0) -> -1.18 | F70: =IF(Sheet1!D$20=TRUE,y0+d0*(x-x0),y0) -> -0.191 | H70: =IF(Sheet1!$D$23=TRUE,x,x0) -> -1.18 | I70: =IF(Sheet1!$D$23=TRUE,y0+d0*(x-x0)+e0*(x-x0)^2,y0) -> 0.518 | K70: =IF(Sheet1!$D$25=TRUE,x,x0) -> 0.00 | L70: =IF(Sheet1!$D$25=TRUE,y0+d0*(x-x0)+e0*(x-x0)^2+f0*(x-x0)^3,y0) -> 1.000 | N70: =IF(Sheet1!$D$27=TRUE,x,x0) -> -1.18 | O70: =IF(Sheet1!$D$27=TRUE,y0+d0*(x-x0)+e0*(x-x0)^2+f0*(x-x0)^3+g0*(x-x0)^4,y0) -> 0.320 | Q70: =IF(Sheet1!$D$30=TRUE,x,x0) -> -1.18 | R70: =IF(Sheet1!$D$30=TRUE,y0+d0*(x-x0)+e0*(x-x0)^2+f0*(x-x0)^3+g0*(x-x0)^4+h0*(x-x0)^5,y0) -> 0.300 | T70: =IF(Sheet1!$D$33=TRUE,x,x0) -> -1.18 | U70: =IF(Sheet1!$D$33=TRUE,y0+d0*(x-x0)+e0*(x-x0)^2+f0*(x-x0)^3+g0*(x-x0)^4+h0*(x-x0)^5+i0*(x-x0)^6,y0) -> 0.304
C71: -1.172 | D71: 0.31 | E71: =IF(Sheet1!D$20=TRUE,x,x0) -> -1.17 | F71: =IF(Sheet1!D$20=TRUE,y0+d0*(x-x0),y0) -> -0.179 | H71: =IF(Sheet1!$D$23=TRUE,x,x0) -> -1.17 | I71: =IF(Sheet1!$D$23=TRUE,y0+d0*(x-x0)+e0*(x-x0)^2,y0) -> 0.516 | K71: =IF(Sheet1!$D$25=TRUE,x,x0) -> 0.00 | L71: =IF(Sheet1!$D$25=TRUE,y0+d0*(x-x0)+e0*(x-x0)^2+f0*(x-x0)^3,y0) -> 1.000 | N71: =IF(Sheet1!$D$27=TRUE,x,x0) -> -1.17 | O71: =IF(Sheet1!$D$27=TRUE,y0+d0*(x-x0)+e0*(x-x0)^2+f0*(x-x0)^3+g0*(x-x0)^4,y0) -> 0.323 | Q71: =IF(Sheet1!$D$30=TRUE,x,x0) -> -1.17 | R71: =IF(Sheet1!$D$30=TRUE,y0+d0*(x-x0)+e0*(x-x0)^2+f0*(x-x0)^3+g0*(x-x0)^4+h0*(x-x0)^5,y0) -> 0.304 | T71: =IF(Sheet1!$D$33=TRUE,x,x0) -> -1.17 | U71: =IF(Sheet1!$D$33=TRUE,y0+d0*(x-x0)+e0*(x-x0)^2+f0*(x-x0)^3+g0*(x-x0)^4+h0*(x-x0)^5+i0*(x-x0)^6,y0) -> 0.308
C72: -1.160 | D72: 0.31 | E72: =IF(Sheet1!D$20=TRUE,x,x0) -> -1.16 | F72: =IF(Sheet1!D$20=TRUE,y0+d0*(x-x0),y0) -> -0.167 | H72: =IF(Sheet1!$D$23=TRUE,x,x0) -> -1.16 | I72: =IF(Sheet1!$D$23=TRUE,y0+d0*(x-x0)+e0*(x-x0)^2,y0) -> 0.514 | K72: =IF(Sheet1!$D$25=TRUE,x,x0) -> 0.00 | L72: =IF(Sheet1!$D$25=TRUE,y0+d0*(x-x0)+e0*(x-x0)^2+f0*(x-x0)^3,y0) -> 1.000 | N72: =IF(Sheet1!$D$27=TRUE,x,x0) -> -1.16 | O72: =IF(Sheet1!$D$27=TRUE,y0+d0*(x-x0)+e0*(x-x0)^2+f0*(x-x0)^3+g0*(x-x0)^4,y0) -> 0.326 | Q72: =IF(Sheet1!$D$30=TRUE,x,x0) -> -1.16 | R72: =IF(Sheet1!$D$30=TRUE,y0+d0*(x-x0)+e0*(x-x0)^2+f0*(x-x0)^3+g0*(x-x0)^4+h0*(x-x0)^5,y0) -> 0.308 | T72: =IF(Sheet1!$D$33=TRUE,x,x0) -> -1.16 | U72: =IF(Sheet1!$D$33=TRUE,y0+d0*(x-x0)+e0*(x-x0)^2+f0*(x-x0)^3+g0*(x-x0)^4+h0*(x-x0)^5+i0*(x-x0)^6,y0) -> 0.312
C73: -1.148 | D73: 0.32 | E73: =IF(Sheet1!D$20=TRUE,x,x0) -> -1.15 | F73: =IF(Sheet1!D$20=TRUE,y0+d0*(x-x0),y0) -> -0.155 | H73: =IF(Sheet1!$D$23=TRUE,x,x0) -> -1.15 | I73: =IF(Sheet1!$D$23=TRUE,y0+d0*(x-x0)+e0*(x-x0)^2,y0) -> 0.512 | K73: =IF(Sheet1!$D$25=TRUE,x,x0) -> 0.00 | L73: =IF(Sheet1!$D$25=TRUE,y0+d0*(x-x0)+e0*(x-x0)^2+f0*(x-x0)^3,y0) -> 1.000 | N73: =IF(Sheet1!$D$27=TRUE,x,x0) -> -1.15 | O73: =IF(Sheet1!$D$27=TRUE,y0+d0*(x-x0)+e0*(x-x0)^2+f0*(x-x0)^3+g0*(x-x0)^4,y0) -> 0.329 | Q73: =IF(Sheet1!$D$30=TRUE,x,x0) -> -1.15 | R73: =IF(Sheet1!$D$30=TRUE,y0+d0*(x-x0)+e0*(x-x0)^2+f0*(x-x0)^3+g0*(x-x0)^4+h0*(x-x0)^5,y0) -> 0.312 | T73: =IF(Sheet1!$D$33=TRUE,x,x0) -> -1.15 | U73: =IF(Sheet1!$D$33=TRUE,y0+d0*(x-x0)+e0*(x-x0)^2+f0*(x-x0)^3+g0*(x-x0)^4+h0*(x-x0)^5+i0*(x-x0)^6,y0) -> 0.316
C74: -1.136 | D74: 0.32 | E74: =IF(Sheet1!D$20=TRUE,x,x0) -> -1.14 | F74: =IF(Sheet1!D$20=TRUE,y0+d0*(x-x0),y0) -> -0.143 | H74: =IF(Sheet1!$D$23=TRUE,x,x0) -> -1.14 | I74: =IF(Sheet1!$D$23=TRUE,y0+d0*(x-x0)+e0*(x-x0)^2,y0) -> 0.510 | K74: =IF(Sheet1!$D$25=TRUE,x,x0) -> 0.00 | L74: =IF(Sheet1!$D$25=TRUE,y0+d0*(x-x0)+e0*(x-x0)^2+f0*(x-x0)^3,y0) -> 1.000 | N74: =IF(Sheet1!$D$27=TRUE,x,x0) -> -1.14 | O74: =IF(Sheet1!$D$27=TRUE,y0+d0*(x-x0)+e0*(x-x0)^2+f0*(x-x0)^3+g0*(x-x0)^4,y0) -> 0.333 | Q74: =IF(Sheet1!$D$30=TRUE,x,x0) -> -1.14 | R74: =IF(Sheet1!$D$30=TRUE,y0+d0*(x-x0)+e0*(x-x0)^2+f0*(x-x0)^3+g0*(x-x0)^4+h0*(x-x0)^5,y0) -> 0.316 | T74: =IF(Sheet1!$D$33=TRUE,x,x0) -> -1.14 | U74: =IF(Sheet1!$D$33=TRUE,y0+d0*(x-x0)+e0*(x-x0)^2+f0*(x-x0)^3+g0*(x-x0)^4+h0*(x-x0)^5+i0*(x-x0)^6,y0) -> 0.319
C75: -1.124 | D75: 0.32 | E75: =IF(Sheet1!D$20=TRUE,x,x0) -> -1.12 | F75: =IF(Sheet1!D$20=TRUE,y0+d0*(x-x0),y0) -> -0.131 | H75: =IF(Sheet1!$D$23=TRUE,x,x0) -> -1.12 | I75: =IF(Sheet1!$D$23=TRUE,y0+d0*(x-x0)+e0*(x-x0)^2,y0) -> 0.509 | K75: =IF(Sheet1!$D$25=TRUE,x,x0) -> 0.00 | L75: =IF(Sheet1!$D$25=TRUE,y0+d0*(x-x0)+e0*(x-x0)^2+f0*(x-x0)^3,y0) -> 1.000 | N75: =IF(Sheet1!$D$27=TRUE,x,x0) -> -1.12 | O75: =IF(Sheet1!$D$27=TRUE,y0+d0*(x-x0)+e0*(x-x0)^2+f0*(x-x0)^3+g0*(x-x0)^4,y0) -> 0.336 | Q75: =IF(Sheet1!$D$30=TRUE,x,x0) -> -1.12 | R75: =IF(Sheet1!$D$30=TRUE,y0+d0*(x-x0)+e0*(x-x0)^2+f0*(x-x0)^3+g0*(x-x0)^4+h0*(x-x0)^5,y0) -> 0.320 | T75: =IF(Sheet1!$D$33=TRUE,x,x0) -> -1.12 | U75: =IF(Sheet1!$D$33=TRUE,y0+d0*(x-x0)+e0*(x-x0)^2+f0*(x-x0)^3+g0*(x-x0)^4+h0*(x-x0)^5+i0*(x-x0)^6,y0) -> 0.323
C76: -1.112 | D76: 0.33 | E76: =IF(Sheet1!D$20=TRUE,x,x0) -> -1.11 | F76: =IF(Sheet1!D$20=TRUE,y0+d0*(x-x0),y0) -> -0.119 | H76: =IF(Sheet1!$D$23=TRUE,x,x0) -> -1.11 | I76: =IF(Sheet1!$D$23=TRUE,y0+d0*(x-x0)+e0*(x-x0)^2,y0) -> 0.507 | K76: =IF(Sheet1!$D$25=TRUE,x,x0) -> 0.00 | L76: =IF(Sheet1!$D$25=TRUE,y0+d0*(x-x0)+e0*(x-x0)^2+f0*(x-x0)^3,y0) -> 1.000 | N76: =IF(Sheet1!$D$27=TRUE,x,x0) -> -1.11 | O76: =IF(Sheet1!$D$27=TRUE,y0+d0*(x-x0)+e0*(x-x0)^2+f0*(x-x0)^3+g0*(x-x0)^4,y0) -> 0.339 | Q76: =IF(Sheet1!$D$30=TRUE,x,x0) -> -1.11 | R76: =IF(Sheet1!$D$30=TRUE,y0+d0*(x-x0)+e0*(x-x0)^2+f0*(x-x0)^3+g0*(x-x0)^4+h0*(x-x0)^5,y0) -> 0.324 | T76: =IF(Sheet1!$D$33=TRUE,x,x0) -> -1.11 | U76: =IF(Sheet1!$D$33=TRUE,y0+d0*(x-x0)+e0*(x-x0)^2+f0*(x-x0)^3+g0*(x-x0)^4+h0*(x-x0)^5+i0*(x-x0)^6,y0) -> 0.327
C77: -1.100 | D77: 0.33 | E77: =IF(Sheet1!D$20=TRUE,x,x0) -> -1.10 | F77: =IF(Sheet1!D$20=TRUE,y0+d0*(x-x0),y0) -> -0.107 | H77: =IF(Sheet1!$D$23=TRUE,x,x0) -> -1.10 | I77: =IF(Sheet1!$D$23=TRUE,y0+d0*(x-x0)+e0*(x-x0)^2,y0) -> 0.506 | K77: =IF(Sheet1!$D$25=TRUE,x,x0) -> 0.00 | L77: =IF(Sheet1!$D$25=TRUE,y0+d0*(x-x0)+e0*(x-x0)^2+f0*(x-x0)^3,y0) -> 1.000 | N77: =IF(Sheet1!$D$27=TRUE,x,x0) -> -1.10 | O77: =IF(Sheet1!$D$27=TRUE,y0+d0*(x-x0)+e0*(x-x0)^2+f0*(x-x0)^3+g0*(x-x0)^4,y0) -> 0.342 | Q77: =IF(Sheet1!$D$30=TRUE,x,x0) -> -1.10 | R77: =IF(Sheet1!$D$30=TRUE,y0+d0*(x-x0)+e0*(x-x0)^2+f0*(x-x0)^3+g0*(x-x0)^4+h0*(x-x0)^5,y0) -> 0.328 | T77: =IF(Sheet1!$D$33=TRUE,x,x0) -> -1.10 | U77: =IF(Sheet1!$D$33=TRUE,y0+d0*(x-x0)+e0*(x-x0)^2+f0*(x-x0)^3+g0*(x-x0)^4+h0*(x-x0)^5+i0*(x-x0)^6,y0) -> 0.331
C78: -1.088 | D78: 0.34 | E78: =IF(Sheet1!D$20=TRUE,x,x0) -> -1.09 | F78: =IF(Sheet1!D$20=TRUE,y0+d0*(x-x0),y0) -> -0.095 | H78: =IF(Sheet1!$D$23=TRUE,x,x0) -> -1.09 | I78: =IF(Sheet1!$D$23=TRUE,y0+d0*(x-x0)+e0*(x-x0)^2,y0) -> 0.504 | K78: =IF(Sheet1!$D$25=TRUE,x,x0) -> 0.00 | L78: =IF(Sheet1!$D$25=TRUE,y0+d0*(x-x0)+e0*(x-x0)^2+f0*(x-x0)^3,y0) -> 1.000 | N78: =IF(Sheet1!$D$27=TRUE,x,x0) -> -1.09 | O78: =IF(Sheet1!$D$27=TRUE,y0+d0*(x-x0)+e0*(x-x0)^2+f0*(x-x0)^3+g0*(x-x0)^4,y0) -> 0.346 | Q78: =IF(Sheet1!$D$30=TRUE,x,x0) -> -1.09 | R78: =IF(Sheet1!$D$30=TRUE,y0+d0*(x-x0)+e0*(x-x0)^2+f0*(x-x0)^3+g0*(x-x0)^4+h0*(x-x0)^5,y0) -> 0.333 | T78: =IF(Sheet1!$D$33=TRUE,x,x0) -> -1.09 | U78: =IF(Sheet1!$D$33=TRUE,y0+d0*(x-x0)+e0*(x-x0)^2+f0*(x-x0)^3+g0*(x-x0)^4+h0*(x-x0)^5+i0*(x-x0)^6,y0) -> 0.335
C79: -1.076 | D79: 0.34 | E79: =IF(Sheet1!D$20=TRUE,x,x0) -> -1.08 | F79: =IF(Sheet1!D$20=TRUE,y0+d0*(x-x0),y0) -> -0.082 | H79: =IF(Sheet1!$D$23=TRUE,x,x0) -> -1.08 | I79: =IF(Sheet1!$D$23=TRUE,y0+d0*(x-x0)+e0*(x-x0)^2,y0) -> 0.503 | K79: =IF(Sheet1!$D$25=TRUE,x,x0) -> 0.00 | L79: =IF(Sheet1!$D$25=TRUE,y0+d0*(x-x0)+e0*(x-x0)^2+f0*(x-x0)^3,y0) -> 1.000 | N79: =IF(Sheet1!$D$27=TRUE,x,x0) -> -1.08 | O79: =IF(Sheet1!$D$27=TRUE,y0+d0*(x-x0)+e0*(x-x0)^2+f0*(x-x0)^3+g0*(x-x0)^4,y0) -> 0.349 | Q79: =IF(Sheet1!$D$30=TRUE,x,x0) -> -1.08 | R79: =IF(Sheet1!$D$30=TRUE,y0+d0*(x-x0)+e0*(x-x0)^2+f0*(x-x0)^3+g0*(x-x0)^4+h0*(x-x0)^5,y0) -> 0.337 | T79: =IF(Sheet1!$D$33=TRUE,x,x0) -> -1.08 | U79: =IF(Sheet1!$D$33=TRUE,y0+d0*(x-x0)+e0*(x-x0)^2+f0*(x-x0)^3+g0*(x-x0)^4+h0*(x-x0)^5+i0*(x-x0)^6,y0) -> 0.339
C80: -1.064 | D80: 0.35 | E80: =IF(Sheet1!D$20=TRUE,x,x0) -> -1.06 | F80: =IF(Sheet1!D$20=TRUE,y0+d0*(x-x0),y0) -> -0.070 | H80: =IF(Sheet1!$D$23=TRUE,x,x0) -> -1.06 | I80: =IF(Sheet1!$D$23=TRUE,y0+d0*(x-x0)+e0*(x-x0)^2,y0) -> 0.502 | K80: =IF(Sheet1!$D$25=TRUE,x,x0) -> 0.00 | L80: =IF(Sheet1!$D$25=TRUE,y0+d0*(x-x0)+e0*(x-x0)^2+f0*(x-x0)^3,y0) -> 1.000 | N80: =IF(Sheet1!$D$27=TRUE,x,x0) -> -1.06 | O80: =IF(Sheet1!$D$27=TRUE,y0+d0*(x-x0)+e0*(x-x0)^2+f0*(x-x0)^3+g0*(x-x0)^4,y0) -> 0.353 | Q80: =IF(Sheet1!$D$30=TRUE,x,x0) -> -1.06 | R80: =IF(Sheet1!$D$30=TRUE,y0+d0*(x-x0)+e0*(x-x0)^2+f0*(x-x0)^3+g0*(x-x0)^4+h0*(x-x0)^5,y0) -> 0.341 | T80: =IF(Sheet1!$D$33=TRUE,x,x0) -> -1.06 | U80: =IF(Sheet1!$D$33=TRUE,y0+d0*(x-x0)+e0*(x-x0)^2+f0*(x-x0)^3+g0*(x-x0)^4+h0*(x-x0)^5+i0*(x-x0)^6,y0) -> 0.343
C81: -1.052 | D81: 0.35 | E81: =IF(Sheet1!D$20=TRUE,x,x0) -> -1.05 | F81: =IF(Sheet1!D$20=TRUE,y0+d0*(x-x0),y0) -> -0.058 | H81: =IF(Sheet1!$D$23=TRUE,x,x0) -> -1.05 | I81: =IF(Sheet1!$D$23=TRUE,y0+d0*(x-x0)+e0*(x-x0)^2,y0) -> 0.502 | K81: =IF(Sheet1!$D$25=TRUE,x,x0) -> 0.00 | L81: =IF(Sheet1!$D$25=TRUE,y0+d0*(x-x0)+e0*(x-x0)^2+f0*(x-x0)^3,y0) -> 1.000 | N81: =IF(Sheet1!$D$27=TRUE,x,x0) -> -1.05 | O81: =IF(Sheet1!$D$27=TRUE,y0+d0*(x-x0)+e0*(x-x0)^2+f0*(x-x0)^3+g0*(x-x0)^4,y0) -> 0.356 | Q81: =IF(Sheet1!$D$30=TRUE,x,x0) -> -1.05 | R81: =IF(Sheet1!$D$30=TRUE,y0+d0*(x-x0)+e0*(x-x0)^2+f0*(x-x0)^3+g0*(x-x0)^4+h0*(x-x0)^5,y0) -> 0.345 | T81: =IF(Sheet1!$D$33=TRUE,x,x0) -> -1.05 | U81: =IF(Sheet1!$D$33=TRUE,y0+d0*(x-x0)+e0*(x-x0)^2+f0*(x-x0)^3+g0*(x-x0)^4+h0*(x-x0)^5+i0*(x-x0)^6,y0) -> 0.347
C82: -1.040 | D82: 0.35 | E82: =IF(Sheet1!D$20=TRUE,x,x0) -> -1.04 | F82: =IF(Sheet1!D$20=TRUE,y0+d0*(x-x0),y0) -> -0.046 | H82: =IF(Sheet1!$D$23=TRUE,x,x0) -> -1.04 | I82: =IF(Sheet1!$D$23=TRUE,y0+d0*(x-x0)+e0*(x-x0)^2,y0) -> 0.501 | K82: =IF(Sheet1!$D$25=TRUE,x,x0) -> 0.00 | L82: =IF(Sheet1!$D$25=TRUE,y0+d0*(x-x0)+e0*(x-x0)^2+f0*(x-x0)^3,y0) -> 1.000 | N82: =IF(Sheet1!$D$27=TRUE,x,x0) -> -1.04 | O82: =IF(Sheet1!$D$27=TRUE,y0+d0*(x-x0)+e0*(x-x0)^2+f0*(x-x0)^3+g0*(x-x0)^4,y0) -> 0.360 | Q82: =IF(Sheet1!$D$30=TRUE,x,x0) -> -1.04 | R82: =IF(Sheet1!$D$30=TRUE,y0+d0*(x-x0)+e0*(x-x0)^2+f0*(x-x0)^3+g0*(x-x0)^4+h0*(x-x0)^5,y0) -> 0.350 | T82: =IF(Sheet1!$D$33=TRUE,x,x0) -> -1.04 | U82: =IF(Sheet1!$D$33=TRUE,y0+d0*(x-x0)+e0*(x-x0)^2+f0*(x-x0)^3+g0*(x-x0)^4+h0*(x-x0)^5+i0*(x-x0)^6,y0) -> 0.351
C83: -1.028 | D83: 0.36 | E83: =IF(Sheet1!D$20=TRUE,x,x0) -> -1.03 | F83: =IF(Sheet1!D$20=TRUE,y0+d0*(x-x0),y0) -> -0.034 | H83: =IF(Sheet1!$D$23=TRUE,x,x0) -> -1.03 | I83: =IF(Sheet1!$D$23=TRUE,y0+d0*(x-x0)+e0*(x-x0)^2,y0) -> 0.501 | K83: =IF(Sheet1!$D$25=TRUE,x,x0) -> 0.00 | L83: =IF(Sheet1!$D$25=TRUE,y0+d0*(x-x0)+e0*(x-x0)^2+f0*(x-x0)^3,y0) -> 1.000 | N83: =IF(Sheet1!$D$27=TRUE,x,x0) -> -1.03 | O83: =IF(Sheet1!$D$27=TRUE,y0+d0*(x-x0)+e0*(x-x0)^2+f0*(x-x0)^3+g0*(x-x0)^4,y0) -> 0.364 | Q83: =IF(Sheet1!$D$30=TRUE,x,x0) -> -1.03 | R83: =IF(Sheet1!$D$30=TRUE,y0+d0*(x-x0)+e0*(x-x0)^2+f0*(x-x0)^3+g0*(x-x0)^4+h0*(x-x0)^5,y0) -> 0.354 | T83: =IF(Sheet1!$D$33=TRUE,x,x0) -> -1.03 | U83: =IF(Sheet1!$D$33=TRUE,y0+d0*(x-x0)+e0*(x-x0)^2+f0*(x-x0)^3+g0*(x-x0)^4+h0*(x-x0)^5+i0*(x-x0)^6,y0) -> 0.356
C84: -1.016 | D84: 0.36 | E84: =IF(Sheet1!D$20=TRUE,x,x0) -> -1.02 | F84: =IF(Sheet1!D$20=TRUE,y0+d0*(x-x0),y0) -> -0.022 | H84: =IF(Sheet1!$D$23=TRUE,x,x0) -> -1.02 | I84: =IF(Sheet1!$D$23=TRUE,y0+d0*(x-x0)+e0*(x-x0)^2,y0) -> 0.500 | K84: =IF(Sheet1!$D$25=TRUE,x,x0) -> 0.00 | L84: =IF(Sheet1!$D$25=TRUE,y0+d0*(x-x0)+e0*(x-x0)^2+f0*(x-x0)^3,y0) -> 1.000 | N84: =IF(Sheet1!$D$27=TRUE,x,x0) -> -1.02 | O84: =IF(Sheet1!$D$27=TRUE,y0+d0*(x-x0)+e0*(x-x0)^2+f0*(x-x0)^3+g0*(x-x0)^4,y0) -> 0.368 | Q84: =IF(Sheet1!$D$30=TRUE,x,x0) -> -1.02 | R84: =IF(Sheet1!$D$30=TRUE,y0+d0*(x-x0)+e0*(x-x0)^2+f0*(x-x0)^3+g0*(x-x0)^4+h0*(x-x0)^5,y0) -> 0.358 | T84: =IF(Sheet1!$D$33=TRUE,x,x0) -> -1.02 | U84: =IF(Sheet1!$D$33=TRUE,y0+d0*(x-x0)+e0*(x-x0)^2+f0*(x-x0)^3+g0*(x-x0)^4+h0*(x-x0)^5+i0*(x-x0)^6,y0) -> 0.360
C85: -1.004 | D85: 0.37 | E85: =IF(Sheet1!D$20=TRUE,x,x0) -> -1.00 | F85: =IF(Sheet1!D$20=TRUE,y0+d0*(x-x0),y0) -> -0.010 | H85: =IF(Sheet1!$D$23=TRUE,x,x0) -> -1.00 | I85: =IF(Sheet1!$D$23=TRUE,y0+d0*(x-x0)+e0*(x-x0)^2,y0) -> 0.500 | K85: =IF(Sheet1!$D$25=TRUE,x,x0) -> 0.00 | L85: =IF(Sheet1!$D$25=TRUE,y0+d0*(x-x0)+e0*(x-x0)^2+f0*(x-x0)^3,y0) -> 1.000 | N85: =IF(Sheet1!$D$27=TRUE,x,x0) -> -1.00 | O85: =IF(Sheet1!$D$27=TRUE,y0+d0*(x-x0)+e0*(x-x0)^2+f0*(x-x0)^3+g0*(x-x0)^4,y0) -> 0.372 | Q85: =IF(Sheet1!$D$30=TRUE,x,x0) -> -1.00 | R85: =IF(Sheet1!$D$30=TRUE,y0+d0*(x-x0)+e0*(x-x0)^2+f0*(x-x0)^3+g0*(x-x0)^4+h0*(x-x0)^5,y0) -> 0.363 | T85: =IF(Sheet1!$D$33=TRUE,x,x0) -> -1.00 | U85: =IF(Sheet1!$D$33=TRUE,y0+d0*(x-x0)+e0*(x-x0)^2+f0*(x-x0)^3+g0*(x-x0)^4+h0*(x-x0)^5+i0*(x-x0)^6,y0) -> 0.364
C86: -0.992 | D86: 0.37 | E86: =IF(Sheet1!D$20=TRUE,x,x0) -> -0.99 | F86: =IF(Sheet1!D$20=TRUE,y0+d0*(x-x0),y0) -> 0.002 | H86: =IF(Sheet1!$D$23=TRUE,x,x0) -> -0.99 | I86: =IF(Sheet1!$D$23=TRUE,y0+d0*(x-x0)+e0*(x-x0)^2,y0) -> 0.500 | K86: =IF(Sheet1!$D$25=TRUE,x,x0) -> 0.00 | L86: =IF(Sheet1!$D$25=TRUE,y0+d0*(x-x0)+e0*(x-x0)^2+f0*(x-x0)^3,y0) -> 1.000 | N86: =IF(Sheet1!$D$27=TRUE,x,x0) -> -0.99 | O86: =IF(Sheet1!$D$27=TRUE,y0+d0*(x-x0)+e0*(x-x0)^2+f0*(x-x0)^3+g0*(x-x0)^4,y0) -> 0.376 | Q86: =IF(Sheet1!$D$30=TRUE,x,x0) -> -0.99 | R86: =IF(Sheet1!$D$30=TRUE,y0+d0*(x-x0)+e0*(x-x0)^2+f0*(x-x0)^3+g0*(x-x0)^4+h0*(x-x0)^5,y0) -> 0.367 | T86: =IF(Sheet1!$D$33=TRUE,x,x0) -> -0.99 | U86: =IF(Sheet1!$D$33=TRUE,y0+d0*(x-x0)+e0*(x-x0)^2+f0*(x-x0)^3+g0*(x-x0)^4+h0*(x-x0)^5+i0*(x-x0)^6,y0) -> 0.369
C87: -0.980 | D87: 0.38 | E87: =IF(Sheet1!D$20=TRUE,x,x0) -> -0.98 | F87: =IF(Sheet1!D$20=TRUE,y0+d0*(x-x0),y0) -> 0.014 | H87: =IF(Sheet1!$D$23=TRUE,x,x0) -> -0.98 | I87: =IF(Sheet1!$D$23=TRUE,y0+d0*(x-x0)+e0*(x-x0)^2,y0) -> 0.500 | K87: =IF(Sheet1!$D$25=TRUE,x,x0) -> 0.00 | L87: =IF(Sheet1!$D$25=TRUE,y0+d0*(x-x0)+e0*(x-x0)^2+f0*(x-x0)^3,y0) -> 1.000 | N87: =IF(Sheet1!$D$27=TRUE,x,x0) -> -0.98 | O87: =IF(Sheet1!$D$27=TRUE,y0+d0*(x-x0)+e0*(x-x0)^2+f0*(x-x0)^3+g0*(x-x0)^4,y0) -> 0.380 | Q87: =IF(Sheet1!$D$30=TRUE,x,x0) -> -0.98 | R87: =IF(Sheet1!$D$30=TRUE,y0+d0*(x-x0)+e0*(x-x0)^2+f0*(x-x0)^3+g0*(x-x0)^4+h0*(x-x0)^5,y0) -> 0.372 | T87: =IF(Sheet1!$D$33=TRUE,x,x0) -> -0.98 | U87: =IF(Sheet1!$D$33=TRUE,y0+d0*(x-x0)+e0*(x-x0)^2+f0*(x-x0)^3+g0*(x-x0)^4+h0*(x-x0)^5+i0*(x-x0)^6,y0) -> 0.373
C88: -0.968 | D88: 0.38 | E88: =IF(Sheet1!D$20=TRUE,x,x0) -> -0.97 | F88: =IF(Sheet1!D$20=TRUE,y0+d0*(x-x0),y0) -> 0.026 | H88: =IF(Sheet1!$D$23=TRUE,x,x0) -> -0.97 | I88: =IF(Sheet1!$D$23=TRUE,y0+d0*(x-x0)+e0*(x-x0)^2,y0) -> 0.500 | K88: =IF(Sheet1!$D$25=TRUE,x,x0) -> 0.00 | L88: =IF(Sheet1!$D$25=TRUE,y0+d0*(x-x0)+e0*(x-x0)^2+f0*(x-x0)^3,y0) -> 1.000 | N88: =IF(Sheet1!$D$27=TRUE,x,x0) -> -0.97 | O88: =IF(Sheet1!$D$27=TRUE,y0+d0*(x-x0)+e0*(x-x0)^2+f0*(x-x0)^3+g0*(x-x0)^4,y0) -> 0.384 | Q88: =IF(Sheet1!$D$30=TRUE,x,x0) -> -0.97 | R88: =IF(Sheet1!$D$30=TRUE,y0+d0*(x-x0)+e0*(x-x0)^2+f0*(x-x0)^3+g0*(x-x0)^4+h0*(x-x0)^5,y0) -> 0.377 | T88: =IF(Sheet1!$D$33=TRUE,x,x0) -> -0.97 | U88: =IF(Sheet1!$D$33=TRUE,y0+d0*(x-x0)+e0*(x-x0)^2+f0*(x-x0)^3+g0*(x-x0)^4+h0*(x-x0)^5+i0*(x-x0)^6,y0) -> 0.378
C89: -0.956 | D89: 0.38 | E89: =IF(Sheet1!D$20=TRUE,x,x0) -> -0.96 | F89: =IF(Sheet1!D$20=TRUE,y0+d0*(x-x0),y0) -> 0.038 | H89: =IF(Sheet1!$D$23=TRUE,x,x0) -> -0.96 | I89: =IF(Sheet1!$D$23=TRUE,y0+d0*(x-x0)+e0*(x-x0)^2,y0) -> 0.501 | K89: =IF(Sheet1!$D$25=TRUE,x,x0) -> 0.00 | L89: =IF(Sheet1!$D$25=TRUE,y0+d0*(x-x0)+e0*(x-x0)^2+f0*(x-x0)^3,y0) -> 1.000 | N89: =IF(Sheet1!$D$27=TRUE,x,x0) -> -0.96 | O89: =IF(Sheet1!$D$27=TRUE,y0+d0*(x-x0)+e0*(x-x0)^2+f0*(x-x0)^3+g0*(x-x0)^4,y0) -> 0.388 | Q89: =IF(Sheet1!$D$30=TRUE,x,x0) -> -0.96 | R89: =IF(Sheet1!$D$30=TRUE,y0+d0*(x-x0)+e0*(x-x0)^2+f0*(x-x0)^3+g0*(x-x0)^4+h0*(x-x0)^5,y0) -> 0.381 | T89: =IF(Sheet1!$D$33=TRUE,x,x0) -> -0.96 | U89: =IF(Sheet1!$D$33=TRUE,y0+d0*(x-x0)+e0*(x-x0)^2+f0*(x-x0)^3+g0*(x-x0)^4+h0*(x-x0)^5+i0*(x-x0)^6,y0) -> 0.382
C90: -0.944 | D90: 0.39 | E90: =IF(Sheet1!D$20=TRUE,x,x0) -> -0.94 | F90: =IF(Sheet1!D$20=TRUE,y0+d0*(x-x0),y0) -> 0.050 | H90: =IF(Sheet1!$D$23=TRUE,x,x0) -> -0.94 | I90: =IF(Sheet1!$D$23=TRUE,y0+d0*(x-x0)+e0*(x-x0)^2,y0) -> 0.501 | K90: =IF(Sheet1!$D$25=TRUE,x,x0) -> 0.00 | L90: =IF(Sheet1!$D$25=TRUE,y0+d0*(x-x0)+e0*(x-x0)^2+f0*(x-x0)^3,y0) -> 1.000 | N90: =IF(Sheet1!$D$27=TRUE,x,x0) -> -0.94 | O90: =IF(Sheet1!$D$27=TRUE,y0+d0*(x-x0)+e0*(x-x0)^2+f0*(x-x0)^3+g0*(x-x0)^4,y0) -> 0.392 | Q90: =IF(Sheet1!$D$30=TRUE,x,x0) -> -0.94 | R90: =IF(Sheet1!$D$30=TRUE,y0+d0*(x-x0)+e0*(x-x0)^2+f0*(x-x0)^3+g0*(x-x0)^4+h0*(x-x0)^5,y0) -> 0.386 | T90: =IF(Sheet1!$D$33=TRUE,x,x0) -> -0.94 | U90: =IF(Sheet1!$D$33=TRUE,y0+d0*(x-x0)+e0*(x-x0)^2+f0*(x-x0)^3+g0*(x-x0)^4+h0*(x-x0)^5+i0*(x-x0)^6,y0) -> 0.387
C91: -0.932 | D91: 0.39 | E91: =IF(Sheet1!D$20=TRUE,x,x0) -> -0.93 | F91: =IF(Sheet1!D$20=TRUE,y0+d0*(x-x0),y0) -> 0.062 | H91: =IF(Sheet1!$D$23=TRUE,x,x0) -> -0.93 | I91: =IF(Sheet1!$D$23=TRUE,y0+d0*(x-x0)+e0*(x-x0)^2,y0) -> 0.502 | K91: =IF(Sheet1!$D$25=TRUE,x,x0) -> 0.00 | L91: =IF(Sheet1!$D$25=TRUE,y0+d0*(x-x0)+e0*(x-x0)^2+f0*(x-x0)^3,y0) -> 1.000 | N91: =IF(Sheet1!$D$27=TRUE,x,x0) -> -0.93 | O91: =IF(Sheet1!$D$27=TRUE,y0+d0*(x-x0)+e0*(x-x0)^2+f0*(x-x0)^3+g0*(x-x0)^4,y0) -> 0.397 | Q91: =IF(Sheet1!$D$30=TRUE,x,x0) -> -0.93 | R91: =IF(Sheet1!$D$30=TRUE,y0+d0*(x-x0)+e0*(x-x0)^2+f0*(x-x0)^3+g0*(x-x0)^4+h0*(x-x0)^5,y0) -> 0.391 | T91: =IF(Sheet1!$D$33=TRUE,x,x0) -> -0.93 | U91: =IF(Sheet1!$D$33=TRUE,y0+d0*(x-x0)+e0*(x-x0)^2+f0*(x-x0)^3+g0*(x-x0)^4+h0*(x-x0)^5+i0*(x-x0)^6,y0) -> 0.392
C92: -0.920 | D92: 0.40 | E92: =IF(Sheet1!D$20=TRUE,x,x0) -> -0.92 | F92: =IF(Sheet1!D$20=TRUE,y0+d0*(x-x0),y0) -> 0.074 | H92: =IF(Sheet1!$D$23=TRUE,x,x0) -> -0.92 | I92: =IF(Sheet1!$D$23=TRUE,y0+d0*(x-x0)+e0*(x-x0)^2,y0) -> 0.503 | K92: =IF(Sheet1!$D$25=TRUE,x,x0) -> 0.00 | L92: =IF(Sheet1!$D$25=TRUE,y0+d0*(x-x0)+e0*(x-x0)^2+f0*(x-x0)^3,y0) -> 1.000 | N92: =IF(Sheet1!$D$27=TRUE,x,x0) -> -0.92 | O92: =IF(Sheet1!$D$27=TRUE,y0+d0*(x-x0)+e0*(x-x0)^2+f0*(x-x0)^3+g0*(x-x0)^4,y0) -> 0.401 | Q92: =IF(Sheet1!$D$30=TRUE,x,x0) -> -0.92 | R92: =IF(Sheet1!$D$30=TRUE,y0+d0*(x-x0)+e0*(x-x0)^2+f0*(x-x0)^3+g0*(x-x0)^4+h0*(x-x0)^5,y0) -> 0.396 | T92: =IF(Sheet1!$D$33=TRUE,x,x0) -> -0.92 | U92: =IF(Sheet1!$D$33=TRUE,y0+d0*(x-x0)+e0*(x-x0)^2+f0*(x-x0)^3+g0*(x-x0)^4+h0*(x-x0)^5+i0*(x-x0)^6,y0) -> 0.396
C93: -0.908 | D93: 0.40 | E93: =IF(Sheet1!D$20=TRUE,x,x0) -> -0.91 | F93: =IF(Sheet1!D$20=TRUE,y0+d0*(x-x0),y0) -> 0.087 | H93: =IF(Sheet1!$D$23=TRUE,x,x0) -> -0.91 | I93: =IF(Sheet1!$D$23=TRUE,y0+d0*(x-x0)+e0*(x-x0)^2,y0) -> 0.504 | K93: =IF(Sheet1!$D$25=TRUE,x,x0) -> 0.00 | L93: =IF(Sheet1!$D$25=TRUE,y0+d0*(x-x0)+e0*(x-x0)^2+f0*(x-x0)^3,y0) -> 1.000 | N93: =IF(Sheet1!$D$27=TRUE,x,x0) -> -0.91 | O93: =IF(Sheet1!$D$27=TRUE,y0+d0*(x-x0)+e0*(x-x0)^2+f0*(x-x0)^3+g0*(x-x0)^4,y0) -> 0.406 | Q93: =IF(Sheet1!$D$30=TRUE,x,x0) -> -0.91 | R93: =IF(Sheet1!$D$30=TRUE,y0+d0*(x-x0)+e0*(x-x0)^2+f0*(x-x0)^3+g0*(x-x0)^4+h0*(x-x0)^5,y0) -> 0.400 | T93: =IF(Sheet1!$D$33=TRUE,x,x0) -> -0.91 | U93: =IF(Sheet1!$D$33=TRUE,y0+d0*(x-x0)+e0*(x-x0)^2+f0*(x-x0)^3+g0*(x-x0)^4+h0*(x-x0)^5+i0*(x-x0)^6,y0) -> 0.401
C94: -0.896 | D94: 0.41 | E94: =IF(Sheet1!D$20=TRUE,x,x0) -> -0.90 | F94: =IF(Sheet1!D$20=TRUE,y0+d0*(x-x0),y0) -> 0.099 | H94: =IF(Sheet1!$D$23=TRUE,x,x0) -> -0.90 | I94: =IF(Sheet1!$D$23=TRUE,y0+d0*(x-x0)+e0*(x-x0)^2,y0) -> 0.505 | K94: =IF(Sheet1!$D$25=TRUE,x,x0) -> 0.00 | L94: =IF(Sheet1!$D$25=TRUE,y0+d0*(x-x0)+e0*(x-x0)^2+f0*(x-x0)^3,y0) -> 1.000 | N94: =IF(Sheet1!$D$27=TRUE,x,x0) -> -0.90 | O94: =IF(Sheet1!$D$27=TRUE,y0+d0*(x-x0)+e0*(x-x0)^2+f0*(x-x0)^3+g0*(x-x0)^4,y0) -> 0.410 | Q94: =IF(Sheet1!$D$30=TRUE,x,x0) -> -0.90 | R94: =IF(Sheet1!$D$30=TRUE,y0+d0*(x-x0)+e0*(x-x0)^2+f0*(x-x0)^3+g0*(x-x0)^4+h0*(x-x0)^5,y0) -> 0.405 | T94: =IF(Sheet1!$D$33=TRUE,x,x0) -> -0.90 | U94: =IF(Sheet1!$D$33=TRUE,y0+d0*(x-x0)+e0*(x-x0)^2+f0*(x-x0)^3+g0*(x-x0)^4+h0*(x-x0)^5+i0*(x-x0)^6,y0) -> 0.406
C95: -0.884 | D95: 0.41 | E95: =IF(Sheet1!D$20=TRUE,x,x0) -> -0.88 | F95: =IF(Sheet1!D$20=TRUE,y0+d0*(x-x0),y0) -> 0.111 | H95: =IF(Sheet1!$D$23=TRUE,x,x0) -> -0.88 | I95: =IF(Sheet1!$D$23=TRUE,y0+d0*(x-x0)+e0*(x-x0)^2,y0) -> 0.506 | K95: =IF(Sheet1!$D$25=TRUE,x,x0) -> 0.00 | L95: =IF(Sheet1!$D$25=TRUE,y0+d0*(x-x0)+e0*(x-x0)^2+f0*(x-x0)^3,y0) -> 1.000 | N95: =IF(Sheet1!$D$27=TRUE,x,x0) -> -0.88 | O95: =IF(Sheet1!$D$27=TRUE,y0+d0*(x-x0)+e0*(x-x0)^2+f0*(x-x0)^3+g0*(x-x0)^4,y0) -> 0.415 | Q95: =IF(Sheet1!$D$30=TRUE,x,x0) -> -0.88 | R95: =IF(Sheet1!$D$30=TRUE,y0+d0*(x-x0)+e0*(x-x0)^2+f0*(x-x0)^3+g0*(x-x0)^4+h0*(x-x0)^5,y0) -> 0.410 | T95: =IF(Sheet1!$D$33=TRUE,x,x0) -> -0.88 | U95: =IF(Sheet1!$D$33=TRUE,y0+d0*(x-x0)+e0*(x-x0)^2+f0*(x-x0)^3+g0*(x-x0)^4+h0*(x-x0)^5+i0*(x-x0)^6,y0) -> 0.411
C96: -0.872 | D96: 0.42 | E96: =IF(Sheet1!D$20=TRUE,x,x0) -> -0.87 | F96: =IF(Sheet1!D$20=TRUE,y0+d0*(x-x0),y0) -> 0.123 | H96: =IF(Sheet1!$D$23=TRUE,x,x0) -> -0.87 | I96: =IF(Sheet1!$D$23=TRUE,y0+d0*(x-x0)+e0*(x-x0)^2,y0) -> 0.508 | K96: =IF(Sheet1!$D$25=TRUE,x,x0) -> 0.00 | L96: =IF(Sheet1!$D$25=TRUE,y0+d0*(x-x0)+e0*(x-x0)^2+f0*(x-x0)^3,y0) -> 1.000 | N96: =IF(Sheet1!$D$27=TRUE,x,x0) -> -0.87 | O96: =IF(Sheet1!$D$27=TRUE,y0+d0*(x-x0)+e0*(x-x0)^2+f0*(x-x0)^3+g0*(x-x0)^4,y0) -> 0.420 | Q96: =IF(Sheet1!$D$30=TRUE,x,x0) -> -0.87 | R96: =IF(Sheet1!$D$30=TRUE,y0+d0*(x-x0)+e0*(x-x0)^2+f0*(x-x0)^3+g0*(x-x0)^4+h0*(x-x0)^5,y0) -> 0.415 | T96: =IF(Sheet1!$D$33=TRUE,x,x0) -> -0.87 | U96: =IF(Sheet1!$D$33=TRUE,y0+d0*(x-x0)+e0*(x-x0)^2+f0*(x-x0)^3+g0*(x-x0)^4+h0*(x-x0)^5+i0*(x-x0)^6,y0) -> 0.416
C97: -0.860 | D97: 0.42 | E97: =IF(Sheet1!D$20=TRUE,x,x0) -> -0.86 | F97: =IF(Sheet1!D$20=TRUE,y0+d0*(x-x0),y0) -> 0.135 | H97: =IF(Sheet1!$D$23=TRUE,x,x0) -> -0.86 | I97: =IF(Sheet1!$D$23=TRUE,y0+d0*(x-x0)+e0*(x-x0)^2,y0) -> 0.509 | K97: =IF(Sheet1!$D$25=TRUE,x,x0) -> 0.00 | L97: =IF(Sheet1!$D$25=TRUE,y0+d0*(x-x0)+e0*(x-x0)^2+f0*(x-x0)^3,y0) -> 1.000 | N97: =IF(Sheet1!$D$27=TRUE,x,x0) -> -0.86 | O97: =IF(Sheet1!$D$27=TRUE,y0+d0*(x-x0)+e0*(x-x0)^2+f0*(x-x0)^3+g0*(x-x0)^4,y0) -> 0.424 | Q97: =IF(Sheet1!$D$30=TRUE,x,x0) -> -0.86 | R97: =IF(Sheet1!$D$30=TRUE,y0+d0*(x-x0)+e0*(x-x0)^2+f0*(x-x0)^3+g0*(x-x0)^4+h0*(x-x0)^5,y0) -> 0.420 | T97: =IF(Sheet1!$D$33=TRUE,x,x0) -> -0.86 | U97: =IF(Sheet1!$D$33=TRUE,y0+d0*(x-x0)+e0*(x-x0)^2+f0*(x-x0)^3+g0*(x-x0)^4+h0*(x-x0)^5+i0*(x-x0)^6,y0) -> 0.421
C98: -0.848 | D98: 0.43 | E98: =IF(Sheet1!D$20=TRUE,x,x0) -> -0.85 | F98: =IF(Sheet1!D$20=TRUE,y0+d0*(x-x0),y0) -> 0.147 | H98: =IF(Sheet1!$D$23=TRUE,x,x0) -> -0.85 | I98: =IF(Sheet1!$D$23=TRUE,y0+d0*(x-x0)+e0*(x-x0)^2,y0) -> 0.511 | K98: =IF(Sheet1!$D$25=TRUE,x,x0) -> 0.00 | L98: =IF(Sheet1!$D$25=TRUE,y0+d0*(x-x0)+e0*(x-x0)^2+f0*(x-x0)^3,y0) -> 1.000 | N98: =IF(Sheet1!$D$27=TRUE,x,x0) -> -0.85 | O98: =IF(Sheet1!$D$27=TRUE,y0+d0*(x-x0)+e0*(x-x0)^2+f0*(x-x0)^3+g0*(x-x0)^4,y0) -> 0.429 | Q98: =IF(Sheet1!$D$30=TRUE,x,x0) -> -0.85 | R98: =IF(Sheet1!$D$30=TRUE,y0+d0*(x-x0)+e0*(x-x0)^2+f0*(x-x0)^3+g0*(x-x0)^4+h0*(x-x0)^5,y0) -> 0.426 | T98: =IF(Sheet1!$D$33=TRUE,x,x0) -> -0.85 | U98: =IF(Sheet1!$D$33=TRUE,y0+d0*(x-x0)+e0*(x-x0)^2+f0*(x-x0)^3+g0*(x-x0)^4+h0*(x-x0)^5+i0*(x-x0)^6,y0) -> 0.426
C99: -0.836 | D99: 0.43 | E99: =IF(Sheet1!D$20=TRUE,x,x0) -> -0.84 | F99: =IF(Sheet1!D$20=TRUE,y0+d0*(x-x0),y0) -> 0.159 | H99: =IF(Sheet1!$D$23=TRUE,x,x0) -> -0.84 | I99: =IF(Sheet1!$D$23=TRUE,y0+d0*(x-x0)+e0*(x-x0)^2,y0) -> 0.513 | K99: =IF(Sheet1!$D$25=TRUE,x,x0) -> 0.00 | L99: =IF(Sheet1!$D$25=TRUE,y0+d0*(x-x0)+e0*(x-x0)^2+f0*(x-x0)^3,y0) -> 1.000 | N99: =IF(Sheet1!$D$27=TRUE,x,x0) -> -0.84 | O99: =IF(Sheet1!$D$27=TRUE,y0+d0*(x-x0)+e0*(x-x0)^2+f0*(x-x0)^3+g0*(x-x0)^4,y0) -> 0.434 | Q99: =IF(Sheet1!$D$30=TRUE,x,x0) -> -0.84 | R99: =IF(Sheet1!$D$30=TRUE,y0+d0*(x-x0)+e0*(x-x0)^2+f0*(x-x0)^3+g0*(x-x0)^4+h0*(x-x0)^5,y0) -> 0.431 | T99: =IF(Sheet1!$D$33=TRUE,x,x0) -> -0.84 | U99: =IF(Sheet1!$D$33=TRUE,y0+d0*(x-x0)+e0*(x-x0)^2+f0*(x-x0)^3+g0*(x-x0)^4+h0*(x-x0)^5+i0*(x-x0)^6,y0) -> 0.431
C100: -0.824 | D100: 0.44 | E100: =IF(Sheet1!D$20=TRUE,x,x0) -> -0.82 | F100: =IF(Sheet1!D$20=TRUE,y0+d0*(x-x0),y0) -> 0.171 | H100: =IF(Sheet1!$D$23=TRUE,x,x0) -> -0.82 | I100: =IF(Sheet1!$D$23=TRUE,y0+d0*(x-x0)+e0*(x-x0)^2,y0) -> 0.515 | K100: =IF(Sheet1!$D$25=TRUE,x,x0) -> 0.00 | L100: =IF(Sheet1!$D$25=TRUE,y0+d0*(x-x0)+e0*(x-x0)^2+f0*(x-x0)^3,y0) -> 1.000 | N100: =IF(Sheet1!$D$27=TRUE,x,x0) -> -0.82 | O100: =IF(Sheet1!$D$27=TRUE,y0+d0*(x-x0)+e0*(x-x0)^2+f0*(x-x0)^3+g0*(x-x0)^4,y0) -> 0.439 | Q100: =IF(Sheet1!$D$30=TRUE,x,x0) -> -0.82 | R100: =IF(Sheet1!$D$30=TRUE,y0+d0*(x-x0)+e0*(x-x0)^2+f0*(x-x0)^3+g0*(x-x0)^4+h0*(x-x0)^5,y0) -> 0.436 | T100: =IF(Sheet1!$D$33=TRUE,x,x0) -> -0.82 | U100: =IF(Sheet1!$D$33=TRUE,y0+d0*(x-x0)+e0*(x-x0)^2+f0*(x-x0)^3+g0*(x-x0)^4+h0*(x-x0)^5+i0*(x-x0)^6,y0) -> 0.437
C101: -0.812 | D101: 0.44 | E101: =IF(Sheet1!D$20=TRUE,x,x0) -> -0.81 | F101: =IF(Sheet1!D$20=TRUE,y0+d0*(x-x0),y0) -> 0.183 | H101: =IF(Sheet1!$D$23=TRUE,x,x0) -> -0.81 | I101: =IF(Sheet1!$D$23=TRUE,y0+d0*(x-x0)+e0*(x-x0)^2,y0) -> 0.517 | K101: =IF(Sheet1!$D$25=TRUE,x,x0) -> 0.00 | L101: =IF(Sheet1!$D$25=TRUE,y0+d0*(x-x0)+e0*(x-x0)^2+f0*(x-x0)^3,y0) -> 1.000 | N101: =IF(Sheet1!$D$27=TRUE,x,x0) -> -0.81 | O101: =IF(Sheet1!$D$27=TRUE,y0+d0*(x-x0)+e0*(x-x0)^2+f0*(x-x0)^3+g0*(x-x0)^4,y0) -> 0.444 | Q101: =IF(Sheet1!$D$30=TRUE,x,x0) -> -0.81 | R101: =IF(Sheet1!$D$30=TRUE,y0+d0*(x-x0)+e0*(x-x0)^2+f0*(x-x0)^3+g0*(x-x0)^4+h0*(x-x0)^5,y0) -> 0.441 | T101: =IF(Sheet1!$D$33=TRUE,x,x0) -> -0.81 | U101: =IF(Sheet1!$D$33=TRUE,y0+d0*(x-x0)+e0*(x-x0)^2+f0*(x-x0)^3+g0*(x-x0)^4+h0*(x-x0)^5+i0*(x-x0)^6,y0) -> 0.442
C102: -0.800 | D102: 0.45 | E102: =IF(Sheet1!D$20=TRUE,x,x0) -> -0.80 | F102: =IF(Sheet1!D$20=TRUE,y0+d0*(x-x0),y0) -> 0.195 | H102: =IF(Sheet1!$D$23=TRUE,x,x0) -> -0.80 | I102: =IF(Sheet1!$D$23=TRUE,y0+d0*(x-x0)+e0*(x-x0)^2,y0) -> 0.519 | K102: =IF(Sheet1!$D$25=TRUE,x,x0) -> 0.00 | L102: =IF(Sheet1!$D$25=TRUE,y0+d0*(x-x0)+e0*(x-x0)^2+f0*(x-x0)^3,y0) -> 1.000 | N102: =IF(Sheet1!$D$27=TRUE,x,x0) -> -0.80 | O102: =IF(Sheet1!$D$27=TRUE,y0+d0*(x-x0)+e0*(x-x0)^2+f0*(x-x0)^3+g0*(x-x0)^4,y0) -> 0.450 | Q102: =IF(Sheet1!$D$30=TRUE,x,x0) -> -0.80 | R102: =IF(Sheet1!$D$30=TRUE,y0+d0*(x-x0)+e0*(x-x0)^2+f0*(x-x0)^3+g0*(x-x0)^4+h0*(x-x0)^5,y0) -> 0.447 | T102: =IF(Sheet1!$D$33=TRUE,x,x0) -> -0.80 | U102: =IF(Sheet1!$D$33=TRUE,y0+d0*(x-x0)+e0*(x-x0)^2+f0*(x-x0)^3+g0*(x-x0)^4+h0*(x-x0)^5+i0*(x-x0)^6,y0) -> 0.447
C103: -0.788 | D103: 0.45 | E103: =IF(Sheet1!D$20=TRUE,x,x0) -> -0.79 | F103: =IF(Sheet1!D$20=TRUE,y0+d0*(x-x0),y0) -> 0.207 | H103: =IF(Sheet1!$D$23=TRUE,x,x0) -> -0.79 | I103: =IF(Sheet1!$D$23=TRUE,y0+d0*(x-x0)+e0*(x-x0)^2,y0) -> 0.521 | K103: =IF(Sheet1!$D$25=TRUE,x,x0) -> 0.00 | L103: =IF(Sheet1!$D$25=TRUE,y0+d0*(x-x0)+e0*(x-x0)^2+f0*(x-x0)^3,y0) -> 1.000 | N103: =IF(Sheet1!$D$27=TRUE,x,x0) -> -0.79 | O103: =IF(Sheet1!$D$27=TRUE,y0+d0*(x-x0)+e0*(x-x0)^2+f0*(x-x0)^3+g0*(x-x0)^4,y0) -> 0.455 | Q103: =IF(Sheet1!$D$30=TRUE,x,x0) -> -0.79 | R103: =IF(Sheet1!$D$30=TRUE,y0+d0*(x-x0)+e0*(x-x0)^2+f0*(x-x0)^3+g0*(x-x0)^4+h0*(x-x0)^5,y0) -> 0.452 | T103: =IF(Sheet1!$D$33=TRUE,x,x0) -> -0.79 | U103: =IF(Sheet1!$D$33=TRUE,y0+d0*(x-x0)+e0*(x-x0)^2+f0*(x-x0)^3+g0*(x-x0)^4+h0*(x-x0)^5+i0*(x-x0)^6,y0) -> 0.453
C104: -0.776 | D104: 0.46 | E104: =IF(Sheet1!D$20=TRUE,x,x0) -> -0.78 | F104: =IF(Sheet1!D$20=TRUE,y0+d0*(x-x0),y0) -> 0.219 | H104: =IF(Sheet1!$D$23=TRUE,x,x0) -> -0.78 | I104: =IF(Sheet1!$D$23=TRUE,y0+d0*(x-x0)+e0*(x-x0)^2,y0) -> 0.524 | K104: =IF(Sheet1!$D$25=TRUE,x,x0) -> 0.00 | L104: =IF(Sheet1!$D$25=TRUE,y0+d0*(x-x0)+e0*(x-x0)^2+f0*(x-x0)^3,y0) -> 1.000 | N104: =IF(Sheet1!$D$27=TRUE,x,x0) -> -0.78 | O104: =IF(Sheet1!$D$27=TRUE,y0+d0*(x-x0)+e0*(x-x0)^2+f0*(x-x0)^3+g0*(x-x0)^4,y0) -> 0.460 | Q104: =IF(Sheet1!$D$30=TRUE,x,x0) -> -0.78 | R104: =IF(Sheet1!$D$30=TRUE,y0+d0*(x-x0)+e0*(x-x0)^2+f0*(x-x0)^3+g0*(x-x0)^4+h0*(x-x0)^5,y0) -> 0.458 | T104: =IF(Sheet1!$D$33=TRUE,x,x0) -> -0.78 | U104: =IF(Sheet1!$D$33=TRUE,y0+d0*(x-x0)+e0*(x-x0)^2+f0*(x-x0)^3+g0*(x-x0)^4+h0*(x-x0)^5+i0*(x-x0)^6,y0) -> 0.458
C105: -0.764 | D105: 0.47 | E105: =IF(Sheet1!D$20=TRUE,x,x0) -> -0.76 | F105: =IF(Sheet1!D$20=TRUE,y0+d0*(x-x0),y0) -> 0.231 | H105: =IF(Sheet1!$D$23=TRUE,x,x0) -> -0.76 | I105: =IF(Sheet1!$D$23=TRUE,y0+d0*(x-x0)+e0*(x-x0)^2,y0) -> 0.527 | K105: =IF(Sheet1!$D$25=TRUE,x,x0) -> 0.00 | L105: =IF(Sheet1!$D$25=TRUE,y0+d0*(x-x0)+e0*(x-x0)^2+f0*(x-x0)^3,y0) -> 1.000 | N105: =IF(Sheet1!$D$27=TRUE,x,x0) -> -0.76 | O105: =IF(Sheet1!$D$27=TRUE,y0+d0*(x-x0)+e0*(x-x0)^2+f0*(x-x0)^3+g0*(x-x0)^4,y0) -> 0.466 | Q105: =IF(Sheet1!$D$30=TRUE,x,x0) -> -0.76 | R105: =IF(Sheet1!$D$30=TRUE,y0+d0*(x-x0)+e0*(x-x0)^2+f0*(x-x0)^3+g0*(x-x0)^4+h0*(x-x0)^5,y0) -> 0.463 | T105: =IF(Sheet1!$D$33=TRUE,x,x0) -> -0.76 | U105: =IF(Sheet1!$D$33=TRUE,y0+d0*(x-x0)+e0*(x-x0)^2+f0*(x-x0)^3+g0*(x-x0)^4+h0*(x-x0)^5+i0*(x-x0)^6,y0) -> 0.464
C106: -0.752 | D106: 0.47 | E106: =IF(Sheet1!D$20=TRUE,x,x0) -> -0.75 | F106: =IF(Sheet1!D$20=TRUE,y0+d0*(x-x0),y0) -> 0.243 | H106: =IF(Sheet1!$D$23=TRUE,x,x0) -> -0.75 | I106: =IF(Sheet1!$D$23=TRUE,y0+d0*(x-x0)+e0*(x-x0)^2,y0) -> 0.530 | K106: =IF(Sheet1!$D$25=TRUE,x,x0) -> 0.00 | L106: =IF(Sheet1!$D$25=TRUE,y0+d0*(x-x0)+e0*(x-x0)^2+f0*(x-x0)^3,y0) -> 1.000 | N106: =IF(Sheet1!$D$27=TRUE,x,x0) -> -0.75 | O106: =IF(Sheet1!$D$27=TRUE,y0+d0*(x-x0)+e0*(x-x0)^2+f0*(x-x0)^3+g0*(x-x0)^4,y0) -> 0.471 | Q106: =IF(Sheet1!$D$30=TRUE,x,x0) -> -0.75 | R106: =IF(Sheet1!$D$30=TRUE,y0+d0*(x-x0)+e0*(x-x0)^2+f0*(x-x0)^3+g0*(x-x0)^4+h0*(x-x0)^5,y0) -> 0.469 | T106: =IF(Sheet1!$D$33=TRUE,x,x0) -> -0.75 | U106: =IF(Sheet1!$D$33=TRUE,y0+d0*(x-x0)+e0*(x-x0)^2+f0*(x-x0)^3+g0*(x-x0)^4+h0*(x-x0)^5+i0*(x-x0)^6,y0) -> 0.469
C107: -0.740 | D107: 0.48 | E107: =IF(Sheet1!D$20=TRUE,x,x0) -> -0.74 | F107: =IF(Sheet1!D$20=TRUE,y0+d0*(x-x0),y0) -> 0.256 | H107: =IF(Sheet1!$D$23=TRUE,x,x0) -> -0.74 | I107: =IF(Sheet1!$D$23=TRUE,y0+d0*(x-x0)+e0*(x-x0)^2,y0) -> 0.533 | K107: =IF(Sheet1!$D$25=TRUE,x,x0) -> 0.00 | L107: =IF(Sheet1!$D$25=TRUE,y0+d0*(x-x0)+e0*(x-x0)^2+f0*(x-x0)^3,y0) -> 1.000 | N107: =IF(Sheet1!$D$27=TRUE,x,x0) -> -0.74 | O107: =IF(Sheet1!$D$27=TRUE,y0+d0*(x-x0)+e0*(x-x0)^2+f0*(x-x0)^3+g0*(x-x0)^4,y0) -> 0.477 | Q107: =IF(Sheet1!$D$30=TRUE,x,x0) -> -0.74 | R107: =IF(Sheet1!$D$30=TRUE,y0+d0*(x-x0)+e0*(x-x0)^2+f0*(x-x0)^3+g0*(x-x0)^4+h0*(x-x0)^5,y0) -> 0.475 | T107: =IF(Sheet1!$D$33=TRUE,x,x0) -> -0.74 | U107: =IF(Sheet1!$D$33=TRUE,y0+d0*(x-x0)+e0*(x-x0)^2+f0*(x-x0)^3+g0*(x-x0)^4+h0*(x-x0)^5+i0*(x-x0)^6,y0) -> 0.475
C108: -0.728 | D108: 0.48 | E108: =IF(Sheet1!D$20=TRUE,x,x0) -> -0.73 | F108: =IF(Sheet1!D$20=TRUE,y0+d0*(x-x0),y0) -> 0.268 | H108: =IF(Sheet1!$D$23=TRUE,x,x0) -> -0.73 | I108: =IF(Sheet1!$D$23=TRUE,y0+d0*(x-x0)+e0*(x-x0)^2,y0) -> 0.536 | K108: =IF(Sheet1!$D$25=TRUE,x,x0) -> 0.00 | L108: =IF(Sheet1!$D$25=TRUE,y0+d0*(x-x0)+e0*(x-x0)^2+f0*(x-x0)^3,y0) -> 1.000 | N108: =IF(Sheet1!$D$27=TRUE,x,x0) -> -0.73 | O108: =IF(Sheet1!$D$27=TRUE,y0+d0*(x-x0)+e0*(x-x0)^2+f0*(x-x0)^3+g0*(x-x0)^4,y0) -> 0.482 | Q108: =IF(Sheet1!$D$30=TRUE,x,x0) -> -0.73 | R108: =IF(Sheet1!$D$30=TRUE,y0+d0*(x-x0)+e0*(x-x0)^2+f0*(x-x0)^3+g0*(x-x0)^4+h0*(x-x0)^5,y0) -> 0.481 | T108: =IF(Sheet1!$D$33=TRUE,x,x0) -> -0.73 | U108: =IF(Sheet1!$D$33=TRUE,y0+d0*(x-x0)+e0*(x-x0)^2+f0*(x-x0)^3+g0*(x-x0)^4+h0*(x-x0)^5+i0*(x-x0)^6,y0) -> 0.481
C109: -0.716 | D109: 0.49 | E109: =IF(Sheet1!D$20=TRUE,x,x0) -> -0.72 | F109: =IF(Sheet1!D$20=TRUE,y0+d0*(x-x0),y0) -> 0.280 | H109: =IF(Sheet1!$D$23=TRUE,x,x0) -> -0.72 | I109: =IF(Sheet1!$D$23=TRUE,y0+d0*(x-x0)+e0*(x-x0)^2,y0) -> 0.539 | K109: =IF(Sheet1!$D$25=TRUE,x,x0) -> 0.00 | L109: =IF(Sheet1!$D$25=TRUE,y0+d0*(x-x0)+e0*(x-x0)^2+f0*(x-x0)^3,y0) -> 1.000 | N109: =IF(Sheet1!$D$27=TRUE,x,x0) -> -0.72 | O109: =IF(Sheet1!$D$27=TRUE,y0+d0*(x-x0)+e0*(x-x0)^2+f0*(x-x0)^3+g0*(x-x0)^4,y0) -> 0.488 | Q109: =IF(Sheet1!$D$30=TRUE,x,x0) -> -0.72 | R109: =IF(Sheet1!$D$30=TRUE,y0+d0*(x-x0)+e0*(x-x0)^2+f0*(x-x0)^3+g0*(x-x0)^4+h0*(x-x0)^5,y0) -> 0.486 | T109: =IF(Sheet1!$D$33=TRUE,x,x0) -> -0.72 | U109: =IF(Sheet1!$D$33=TRUE,y0+d0*(x-x0)+e0*(x-x0)^2+f0*(x-x0)^3+g0*(x-x0)^4+h0*(x-x0)^5+i0*(x-x0)^6,y0) -> 0.487
C110: -0.704 | D110: 0.49 | E110: =IF(Sheet1!D$20=TRUE,x,x0) -> -0.70 | F110: =IF(Sheet1!D$20=TRUE,y0+d0*(x-x0),y0) -> 0.292 | H110: =IF(Sheet1!$D$23=TRUE,x,x0) -> -0.70 | I110: =IF(Sheet1!$D$23=TRUE,y0+d0*(x-x0)+e0*(x-x0)^2,y0) -> 0.543 | K110: =IF(Sheet1!$D$25=TRUE,x,x0) -> 0.00 | L110: =IF(Sheet1!$D$25=TRUE,y0+d0*(x-x0)+e0*(x-x0)^2+f0*(x-x0)^3,y0) -> 1.000 | N110: =IF(Sheet1!$D$27=TRUE,x,x0) -> -0.70 | O110: =IF(Sheet1!$D$27=TRUE,y0+d0*(x-x0)+e0*(x-x0)^2+f0*(x-x0)^3+g0*(x-x0)^4,y0) -> 0.494 | Q110: =IF(Sheet1!$D$30=TRUE,x,x0) -> -0.70 | R110: =IF(Sheet1!$D$30=TRUE,y0+d0*(x-x0)+e0*(x-x0)^2+f0*(x-x0)^3+g0*(x-x0)^4+h0*(x-x0)^5,y0) -> 0.492 | T110: =IF(Sheet1!$D$33=TRUE,x,x0) -> -0.70 | U110: =IF(Sheet1!$D$33=TRUE,y0+d0*(x-x0)+e0*(x-x0)^2+f0*(x-x0)^3+g0*(x-x0)^4+h0*(x-x0)^5+i0*(x-x0)^6,y0) -> 0.493
C111: -0.692 | D111: 0.50 | E111: =IF(Sheet1!D$20=TRUE,x,x0) -> -0.69 | F111: =IF(Sheet1!D$20=TRUE,y0+d0*(x-x0),y0) -> 0.304 | H111: =IF(Sheet1!$D$23=TRUE,x,x0) -> -0.69 | I111: =IF(Sheet1!$D$23=TRUE,y0+d0*(x-x0)+e0*(x-x0)^2,y0) -> 0.546 | K111: =IF(Sheet1!$D$25=TRUE,x,x0) -> 0.00 | L111: =IF(Sheet1!$D$25=TRUE,y0+d0*(x-x0)+e0*(x-x0)^2+f0*(x-x0)^3,y0) -> 1.000 | N111: =IF(Sheet1!$D$27=TRUE,x,x0) -> -0.69 | O111: =IF(Sheet1!$D$27=TRUE,y0+d0*(x-x0)+e0*(x-x0)^2+f0*(x-x0)^3+g0*(x-x0)^4,y0) -> 0.500 | Q111: =IF(Sheet1!$D$30=TRUE,x,x0) -> -0.69 | R111: =IF(Sheet1!$D$30=TRUE,y0+d0*(x-x0)+e0*(x-x0)^2+f0*(x-x0)^3+g0*(x-x0)^4+h0*(x-x0)^5,y0) -> 0.498 | T111: =IF(Sheet1!$D$33=TRUE,x,x0) -> -0.69 | U111: =IF(Sheet1!$D$33=TRUE,y0+d0*(x-x0)+e0*(x-x0)^2+f0*(x-x0)^3+g0*(x-x0)^4+h0*(x-x0)^5+i0*(x-x0)^6,y0) -> 0.499
C112: -0.680 | D112: 0.51 | E112: =IF(Sheet1!D$20=TRUE,x,x0) -> -0.68 | F112: =IF(Sheet1!D$20=TRUE,y0+d0*(x-x0),y0) -> 0.316 | H112: =IF(Sheet1!$D$23=TRUE,x,x0) -> -0.68 | I112: =IF(Sheet1!$D$23=TRUE,y0+d0*(x-x0)+e0*(x-x0)^2,y0) -> 0.550 | K112: =IF(Sheet1!$D$25=TRUE,x,x0) -> 0.00 | L112: =IF(Sheet1!$D$25=TRUE,y0+d0*(x-x0)+e0*(x-x0)^2+f0*(x-x0)^3,y0) -> 1.000 | N112: =IF(Sheet1!$D$27=TRUE,x,x0) -> -0.68 | O112: =IF(Sheet1!$D$27=TRUE,y0+d0*(x-x0)+e0*(x-x0)^2+f0*(x-x0)^3+g0*(x-x0)^4,y0) -> 0.506 | Q112: =IF(Sheet1!$D$30=TRUE,x,x0) -> -0.68 | R112: =IF(Sheet1!$D$30=TRUE,y0+d0*(x-x0)+e0*(x-x0)^2+f0*(x-x0)^3+g0*(x-x0)^4+h0*(x-x0)^5,y0) -> 0.504 | T112: =IF(Sheet1!$D$33=TRUE,x,x0) -> -0.68 | U112: =IF(Sheet1!$D$33=TRUE,y0+d0*(x-x0)+e0*(x-x0)^2+f0*(x-x0)^3+g0*(x-x0)^4+h0*(x-x0)^5+i0*(x-x0)^6,y0) -> 0.505
C113: -0.668 | D113: 0.51 | E113: =IF(Sheet1!D$20=TRUE,x,x0) -> -0.67 | F113: =IF(Sheet1!D$20=TRUE,y0+d0*(x-x0),y0) -> 0.328 | H113: =IF(Sheet1!$D$23=TRUE,x,x0) -> -0.67 | I113: =IF(Sheet1!$D$23=TRUE,y0+d0*(x-x0)+e0*(x-x0)^2,y0) -> 0.554 | K113: =IF(Sheet1!$D$25=TRUE,x,x0) -> 0.00 | L113: =IF(Sheet1!$D$25=TRUE,y0+d0*(x-x0)+e0*(x-x0)^2+f0*(x-x0)^3,y0) -> 1.000 | N113: =IF(Sheet1!$D$27=TRUE,x,x0) -> -0.67 | O113: =IF(Sheet1!$D$27=TRUE,y0+d0*(x-x0)+e0*(x-x0)^2+f0*(x-x0)^3+g0*(x-x0)^4,y0) -> 0.512 | Q113: =IF(Sheet1!$D$30=TRUE,x,x0) -> -0.67 | R113: =IF(Sheet1!$D$30=TRUE,y0+d0*(x-x0)+e0*(x-x0)^2+f0*(x-x0)^3+g0*(x-x0)^4+h0*(x-x0)^5,y0) -> 0.511 | T113: =IF(Sheet1!$D$33=TRUE,x,x0) -> -0.67 | U113: =IF(Sheet1!$D$33=TRUE,y0+d0*(x-x0)+e0*(x-x0)^2+f0*(x-x0)^3+g0*(x-x0)^4+h0*(x-x0)^5+i0*(x-x0)^6,y0) -> 0.511
C114: -0.656 | D114: 0.52 | E114: =IF(Sheet1!D$20=TRUE,x,x0) -> -0.66 | F114: =IF(Sheet1!D$20=TRUE,y0+d0*(x-x0),y0) -> 0.340 | H114: =IF(Sheet1!$D$23=TRUE,x,x0) -> -0.66 | I114: =IF(Sheet1!$D$23=TRUE,y0+d0*(x-x0)+e0*(x-x0)^2,y0) -> 0.558 | K114: =IF(Sheet1!$D$25=TRUE,x,x0) -> 0.00 | L114: =IF(Sheet1!$D$25=TRUE,y0+d0*(x-x0)+e0*(x-x0)^2+f0*(x-x0)^3,y0) -> 1.000 | N114: =IF(Sheet1!$D$27=TRUE,x,x0) -> -0.66 | O114: =IF(Sheet1!$D$27=TRUE,y0+d0*(x-x0)+e0*(x-x0)^2+f0*(x-x0)^3+g0*(x-x0)^4,y0) -> 0.518 | Q114: =IF(Sheet1!$D$30=TRUE,x,x0) -> -0.66 | R114: =IF(Sheet1!$D$30=TRUE,y0+d0*(x-x0)+e0*(x-x0)^2+f0*(x-x0)^3+g0*(x-x0)^4+h0*(x-x0)^5,y0) -> 0.517 | T114: =IF(Sheet1!$D$33=TRUE,x,x0) -> -0.66 | U114: =IF(Sheet1!$D$33=TRUE,y0+d0*(x-x0)+e0*(x-x0)^2+f0*(x-x0)^3+g0*(x-x0)^4+h0*(x-x0)^5+i0*(x-x0)^6,y0) -> 0.517
C115: -0.644 | D115: 0.53 | E115: =IF(Sheet1!D$20=TRUE,x,x0) -> -0.64 | F115: =IF(Sheet1!D$20=TRUE,y0+d0*(x-x0),y0) -> 0.352 | H115: =IF(Sheet1!$D$23=TRUE,x,x0) -> -0.64 | I115: =IF(Sheet1!$D$23=TRUE,y0+d0*(x-x0)+e0*(x-x0)^2,y0) -> 0.562 | K115: =IF(Sheet1!$D$25=TRUE,x,x0) -> 0.00 | L115: =IF(Sheet1!$D$25=TRUE,y0+d0*(x-x0)+e0*(x-x0)^2+f0*(x-x0)^3,y0) -> 1.000 | N115: =IF(Sheet1!$D$27=TRUE,x,x0) -> -0.64 | O115: =IF(Sheet1!$D$27=TRUE,y0+d0*(x-x0)+e0*(x-x0)^2+f0*(x-x0)^3+g0*(x-x0)^4,y0) -> 0.524 | Q115: =IF(Sheet1!$D$30=TRUE,x,x0) -> -0.64 | R115: =IF(Sheet1!$D$30=TRUE,y0+d0*(x-x0)+e0*(x-x0)^2+f0*(x-x0)^3+g0*(x-x0)^4+h0*(x-x0)^5,y0) -> 0.523 | T115: =IF(Sheet1!$D$33=TRUE,x,x0) -> -0.64 | U115: =IF(Sheet1!$D$33=TRUE,y0+d0*(x-x0)+e0*(x-x0)^2+f0*(x-x0)^3+g0*(x-x0)^4+h0*(x-x0)^5+i0*(x-x0)^6,y0) -> 0.523
C116: -0.632 | D116: 0.53 | E116: =IF(Sheet1!D$20=TRUE,x,x0) -> -0.63 | F116: =IF(Sheet1!D$20=TRUE,y0+d0*(x-x0),y0) -> 0.364 | H116: =IF(Sheet1!$D$23=TRUE,x,x0) -> -0.63 | I116: =IF(Sheet1!$D$23=TRUE,y0+d0*(x-x0)+e0*(x-x0)^2,y0) -> 0.566 | K116: =IF(Sheet1!$D$25=TRUE,x,x0) -> 0.00 | L116: =IF(Sheet1!$D$25=TRUE,y0+d0*(x-x0)+e0*(x-x0)^2+f0*(x-x0)^3,y0) -> 1.000 | N116: =IF(Sheet1!$D$27=TRUE,x,x0) -> -0.63 | O116: =IF(Sheet1!$D$27=TRUE,y0+d0*(x-x0)+e0*(x-x0)^2+f0*(x-x0)^3+g0*(x-x0)^4,y0) -> 0.530 | Q116: =IF(Sheet1!$D$30=TRUE,x,x0) -> -0.63 | R116: =IF(Sheet1!$D$30=TRUE,y0+d0*(x-x0)+e0*(x-x0)^2+f0*(x-x0)^3+g0*(x-x0)^4+h0*(x-x0)^5,y0) -> 0.529 | T116: =IF(Sheet1!$D$33=TRUE,x,x0) -> -0.63 | U116: =IF(Sheet1!$D$33=TRUE,y0+d0*(x-x0)+e0*(x-x0)^2+f0*(x-x0)^3+g0*(x-x0)^4+h0*(x-x0)^5+i0*(x-x0)^6,y0) -> 0.530
C117: -0.620 | D117: 0.54 | E117: =IF(Sheet1!D$20=TRUE,x,x0) -> -0.62 | F117: =IF(Sheet1!D$20=TRUE,y0+d0*(x-x0),y0) -> 0.376 | H117: =IF(Sheet1!$D$23=TRUE,x,x0) -> -0.62 | I117: =IF(Sheet1!$D$23=TRUE,y0+d0*(x-x0)+e0*(x-x0)^2,y0) -> 0.571 | K117: =IF(Sheet1!$D$25=TRUE,x,x0) -> 0.00 | L117: =IF(Sheet1!$D$25=TRUE,y0+d0*(x-x0)+e0*(x-x0)^2+f0*(x-x0)^3,y0) -> 1.000 | N117: =IF(Sheet1!$D$27=TRUE,x,x0) -> -0.62 | O117: =IF(Sheet1!$D$27=TRUE,y0+d0*(x-x0)+e0*(x-x0)^2+f0*(x-x0)^3+g0*(x-x0)^4,y0) -> 0.537 | Q117: =IF(Sheet1!$D$30=TRUE,x,x0) -> -0.62 | R117: =IF(Sheet1!$D$30=TRUE,y0+d0*(x-x0)+e0*(x-x0)^2+f0*(x-x0)^3+g0*(x-x0)^4+h0*(x-x0)^5,y0) -> 0.536 | T117: =IF(Sheet1!$D$33=TRUE,x,x0) -> -0.62 | U117: =IF(Sheet1!$D$33=TRUE,y0+d0*(x-x0)+e0*(x-x0)^2+f0*(x-x0)^3+g0*(x-x0)^4+h0*(x-x0)^5+i0*(x-x0)^6,y0) -> 0.536
C118: -0.608 | D118: 0.54 | E118: =IF(Sheet1!D$20=TRUE,x,x0) -> -0.61 | F118: =IF(Sheet1!D$20=TRUE,y0+d0*(x-x0),y0) -> 0.388 | H118: =IF(Sheet1!$D$23=TRUE,x,x0) -> -0.61 | I118: =IF(Sheet1!$D$23=TRUE,y0+d0*(x-x0)+e0*(x-x0)^2,y0) -> 0.575 | K118: =IF(Sheet1!$D$25=TRUE,x,x0) -> 0.00 | L118: =IF(Sheet1!$D$25=TRUE,y0+d0*(x-x0)+e0*(x-x0)^2+f0*(x-x0)^3,y0) -> 1.000 | N118: =IF(Sheet1!$D$27=TRUE,x,x0) -> -0.61 | O118: =IF(Sheet1!$D$27=TRUE,y0+d0*(x-x0)+e0*(x-x0)^2+f0*(x-x0)^3+g0*(x-x0)^4,y0) -> 0.543 | Q118: =IF(Sheet1!$D$30=TRUE,x,x0) -> -0.61 | R118: =IF(Sheet1!$D$30=TRUE,y0+d0*(x-x0)+e0*(x-x0)^2+f0*(x-x0)^3+g0*(x-x0)^4+h0*(x-x0)^5,y0) -> 0.542 | T118: =IF(Sheet1!$D$33=TRUE,x,x0) -> -0.61 | U118: =IF(Sheet1!$D$33=TRUE,y0+d0*(x-x0)+e0*(x-x0)^2+f0*(x-x0)^3+g0*(x-x0)^4+h0*(x-x0)^5+i0*(x-x0)^6,y0) -> 0.542
C119: -0.596 | D119: 0.55 | E119: =IF(Sheet1!D$20=TRUE,x,x0) -> -0.60 | F119: =IF(Sheet1!D$20=TRUE,y0+d0*(x-x0),y0) -> 0.400 | H119: =IF(Sheet1!$D$23=TRUE,x,x0) -> -0.60 | I119: =IF(Sheet1!$D$23=TRUE,y0+d0*(x-x0)+e0*(x-x0)^2,y0) -> 0.580 | K119: =IF(Sheet1!$D$25=TRUE,x,x0) -> 0.00 | L119: =IF(Sheet1!$D$25=TRUE,y0+d0*(x-x0)+e0*(x-x0)^2+f0*(x-x0)^3,y0) -> 1.000 | N119: =IF(Sheet1!$D$27=TRUE,x,x0) -> -0.60 | O119: =IF(Sheet1!$D$27=TRUE,y0+d0*(x-x0)+e0*(x-x0)^2+f0*(x-x0)^3+g0*(x-x0)^4,y0) -> 0.550 | Q119: =IF(Sheet1!$D$30=TRUE,x,x0) -> -0.60 | R119: =IF(Sheet1!$D$30=TRUE,y0+d0*(x-x0)+e0*(x-x0)^2+f0*(x-x0)^3+g0*(x-x0)^4+h0*(x-x0)^5,y0) -> 0.549 | T119: =IF(Sheet1!$D$33=TRUE,x,x0) -> -0.60 | U119: =IF(Sheet1!$D$33=TRUE,y0+d0*(x-x0)+e0*(x-x0)^2+f0*(x-x0)^3+g0*(x-x0)^4+h0*(x-x0)^5+i0*(x-x0)^6,y0) -> 0.549
C120: -0.584 | D120: 0.56 | E120: =IF(Sheet1!D$20=TRUE,x,x0) -> -0.58 | F120: =IF(Sheet1!D$20=TRUE,y0+d0*(x-x0),y0) -> 0.412 | H120: =IF(Sheet1!$D$23=TRUE,x,x0) -> -0.58 | I120: =IF(Sheet1!$D$23=TRUE,y0+d0*(x-x0)+e0*(x-x0)^2,y0) -> 0.585 | K120: =IF(Sheet1!$D$25=TRUE,x,x0) -> 0.00 | L120: =IF(Sheet1!$D$25=TRUE,y0+d0*(x-x0)+e0*(x-x0)^2+f0*(x-x0)^3,y0) -> 1.000 | N120: =IF(Sheet1!$D$27=TRUE,x,x0) -> -0.58 | O120: =IF(Sheet1!$D$27=TRUE,y0+d0*(x-x0)+e0*(x-x0)^2+f0*(x-x0)^3+g0*(x-x0)^4,y0) -> 0.556 | Q120: =IF(Sheet1!$D$30=TRUE,x,x0) -> -0.58 | R120: =IF(Sheet1!$D$30=TRUE,y0+d0*(x-x0)+e0*(x-x0)^2+f0*(x-x0)^3+g0*(x-x0)^4+h0*(x-x0)^5,y0) -> 0.556 | T120: =IF(Sheet1!$D$33=TRUE,x,x0) -> -0.58 | U120: =IF(Sheet1!$D$33=TRUE,y0+d0*(x-x0)+e0*(x-x0)^2+f0*(x-x0)^3+g0*(x-x0)^4+h0*(x-x0)^5+i0*(x-x0)^6,y0) -> 0.556
C121: -0.572 | D121: 0.56 | E121: =IF(Sheet1!D$20=TRUE,x,x0) -> -0.57 | F121: =IF(Sheet1!D$20=TRUE,y0+d0*(x-x0),y0) -> 0.425 | H121: =IF(Sheet1!$D$23=TRUE,x,x0) -> -0.57 | I121: =IF(Sheet1!$D$23=TRUE,y0+d0*(x-x0)+e0*(x-x0)^2,y0) -> 0.590 | K121: =IF(Sheet1!$D$25=TRUE,x,x0) -> 0.00 | L121: =IF(Sheet1!$D$25=TRUE,y0+d0*(x-x0)+e0*(x-x0)^2+f0*(x-x0)^3,y0) -> 1.000 | N121: =IF(Sheet1!$D$27=TRUE,x,x0) -> -0.57 | O121: =IF(Sheet1!$D$27=TRUE,y0+d0*(x-x0)+e0*(x-x0)^2+f0*(x-x0)^3+g0*(x-x0)^4,y0) -> 0.563 | Q121: =IF(Sheet1!$D$30=TRUE,x,x0) -> -0.57 | R121: =IF(Sheet1!$D$30=TRUE,y0+d0*(x-x0)+e0*(x-x0)^2+f0*(x-x0)^3+g0*(x-x0)^4+h0*(x-x0)^5,y0) -> 0.562 | T121: =IF(Sheet1!$D$33=TRUE,x,x0) -> -0.57 | U121: =IF(Sheet1!$D$33=TRUE,y0+d0*(x-x0)+e0*(x-x0)^2+f0*(x-x0)^3+g0*(x-x0)^4+h0*(x-x0)^5+i0*(x-x0)^6,y0) -> 0.562
C122: -0.560 | D122: 0.57 | E122: =IF(Sheet1!D$20=TRUE,x,x0) -> -0.56 | F122: =IF(Sheet1!D$20=TRUE,y0+d0*(x-x0),y0) -> 0.437 | H122: =IF(Sheet1!$D$23=TRUE,x,x0) -> -0.56 | I122: =IF(Sheet1!$D$23=TRUE,y0+d0*(x-x0)+e0*(x-x0)^2,y0) -> 0.595 | K122: =IF(Sheet1!$D$25=TRUE,x,x0) -> 0.00 | L122: =IF(Sheet1!$D$25=TRUE,y0+d0*(x-x0)+e0*(x-x0)^2+f0*(x-x0)^3,y0) -> 1.000 | N122: =IF(Sheet1!$D$27=TRUE,x,x0) -> -0.56 | O122: =IF(Sheet1!$D$27=TRUE,y0+d0*(x-x0)+e0*(x-x0)^2+f0*(x-x0)^3+g0*(x-x0)^4,y0) -> 0.570 | Q122: =IF(Sheet1!$D$30=TRUE,x,x0) -> -0.56 | R122: =IF(Sheet1!$D$30=TRUE,y0+d0*(x-x0)+e0*(x-x0)^2+f0*(x-x0)^3+g0*(x-x0)^4+h0*(x-x0)^5,y0) -> 0.569 | T122: =IF(Sheet1!$D$33=TRUE,x,x0) -> -0.56 | U122: =IF(Sheet1!$D$33=TRUE,y0+d0*(x-x0)+e0*(x-x0)^2+f0*(x-x0)^3+g0*(x-x0)^4+h0*(x-x0)^5+i0*(x-x0)^6,y0) -> 0.569
C123: -0.548 | D123: 0.58 | E123: =IF(Sheet1!D$20=TRUE,x,x0) -> -0.55 | F123: =IF(Sheet1!D$20=TRUE,y0+d0*(x-x0),y0) -> 0.449 | H123: =IF(Sheet1!$D$23=TRUE,x,x0) -> -0.55 | I123: =IF(Sheet1!$D$23=TRUE,y0+d0*(x-x0)+e0*(x-x0)^2,y0) -> 0.601 | K123: =IF(Sheet1!$D$25=TRUE,x,x0) -> 0.00 | L123: =IF(Sheet1!$D$25=TRUE,y0+d0*(x-x0)+e0*(x-x0)^2+f0*(x-x0)^3,y0) -> 1.000 | N123: =IF(Sheet1!$D$27=TRUE,x,x0) -> -0.55 | O123: =IF(Sheet1!$D$27=TRUE,y0+d0*(x-x0)+e0*(x-x0)^2+f0*(x-x0)^3+g0*(x-x0)^4,y0) -> 0.577 | Q123: =IF(Sheet1!$D$30=TRUE,x,x0) -> -0.55 | R123: =IF(Sheet1!$D$30=TRUE,y0+d0*(x-x0)+e0*(x-x0)^2+f0*(x-x0)^3+g0*(x-x0)^4+h0*(x-x0)^5,y0) -> 0.576 | T123: =IF(Sheet1!$D$33=TRUE,x,x0) -> -0.55 | U123: =IF(Sheet1!$D$33=TRUE,y0+d0*(x-x0)+e0*(x-x0)^2+f0*(x-x0)^3+g0*(x-x0)^4+h0*(x-x0)^5+i0*(x-x0)^6,y0) -> 0.576
C124: -0.536 | D124: 0.59 | E124: =IF(Sheet1!D$20=TRUE,x,x0) -> -0.54 | F124: =IF(Sheet1!D$20=TRUE,y0+d0*(x-x0),y0) -> 0.461 | H124: =IF(Sheet1!$D$23=TRUE,x,x0) -> -0.54 | I124: =IF(Sheet1!$D$23=TRUE,y0+d0*(x-x0)+e0*(x-x0)^2,y0) -> 0.606 | K124: =IF(Sheet1!$D$25=TRUE,x,x0) -> 0.00 | L124: =IF(Sheet1!$D$25=TRUE,y0+d0*(x-x0)+e0*(x-x0)^2+f0*(x-x0)^3,y0) -> 1.000 | N124: =IF(Sheet1!$D$27=TRUE,x,x0) -> -0.54 | O124: =IF(Sheet1!$D$27=TRUE,y0+d0*(x-x0)+e0*(x-x0)^2+f0*(x-x0)^3+g0*(x-x0)^4,y0) -> 0.584 | Q124: =IF(Sheet1!$D$30=TRUE,x,x0) -> -0.54 | R124: =IF(Sheet1!$D$30=TRUE,y0+d0*(x-x0)+e0*(x-x0)^2+f0*(x-x0)^3+g0*(x-x0)^4+h0*(x-x0)^5,y0) -> 0.583 | T124: =IF(Sheet1!$D$33=TRUE,x,x0) -> -0.54 | U124: =IF(Sheet1!$D$33=TRUE,y0+d0*(x-x0)+e0*(x-x0)^2+f0*(x-x0)^3+g0*(x-x0)^4+h0*(x-x0)^5+i0*(x-x0)^6,y0) -> 0.583
C125: -0.524 | D125: 0.59 | E125: =IF(Sheet1!D$20=TRUE,x,x0) -> -0.52 | F125: =IF(Sheet1!D$20=TRUE,y0+d0*(x-x0),y0) -> 0.473 | H125: =IF(Sheet1!$D$23=TRUE,x,x0) -> -0.52 | I125: =IF(Sheet1!$D$23=TRUE,y0+d0*(x-x0)+e0*(x-x0)^2,y0) -> 0.612 | K125: =IF(Sheet1!$D$25=TRUE,x,x0) -> 0.00 | L125: =IF(Sheet1!$D$25=TRUE,y0+d0*(x-x0)+e0*(x-x0)^2+f0*(x-x0)^3,y0) -> 1.000 | N125: =IF(Sheet1!$D$27=TRUE,x,x0) -> -0.52 | O125: =IF(Sheet1!$D$27=TRUE,y0+d0*(x-x0)+e0*(x-x0)^2+f0*(x-x0)^3+g0*(x-x0)^4,y0) -> 0.591 | Q125: =IF(Sheet1!$D$30=TRUE,x,x0) -> -0.52 | R125: =IF(Sheet1!$D$30=TRUE,y0+d0*(x-x0)+e0*(x-x0)^2+f0*(x-x0)^3+g0*(x-x0)^4+h0*(x-x0)^5,y0) -> 0.590 | T125: =IF(Sheet1!$D$33=TRUE,x,x0) -> -0.52 | U125: =IF(Sheet1!$D$33=TRUE,y0+d0*(x-x0)+e0*(x-x0)^2+f0*(x-x0)^3+g0*(x-x0)^4+h0*(x-x0)^5+i0*(x-x0)^6,y0) -> 0.590
C126: -0.512 | D126: 0.60 | E126: =IF(Sheet1!D$20=TRUE,x,x0) -> -0.51 | F126: =IF(Sheet1!D$20=TRUE,y0+d0*(x-x0),y0) -> 0.485 | H126: =IF(Sheet1!$D$23=TRUE,x,x0) -> -0.51 | I126: =IF(Sheet1!$D$23=TRUE,y0+d0*(x-x0)+e0*(x-x0)^2,y0) -> 0.618 | K126: =IF(Sheet1!$D$25=TRUE,x,x0) -> 0.00 | L126: =IF(Sheet1!$D$25=TRUE,y0+d0*(x-x0)+e0*(x-x0)^2+f0*(x-x0)^3,y0) -> 1.000 | N126: =IF(Sheet1!$D$27=TRUE,x,x0) -> -0.51 | O126: =IF(Sheet1!$D$27=TRUE,y0+d0*(x-x0)+e0*(x-x0)^2+f0*(x-x0)^3+g0*(x-x0)^4,y0) -> 0.598 | Q126: =IF(Sheet1!$D$30=TRUE,x,x0) -> -0.51 | R126: =IF(Sheet1!$D$30=TRUE,y0+d0*(x-x0)+e0*(x-x0)^2+f0*(x-x0)^3+g0*(x-x0)^4+h0*(x-x0)^5,y0) -> 0.597 | T126: =IF(Sheet1!$D$33=TRUE,x,x0) -> -0.51 | U126: =IF(Sheet1!$D$33=TRUE,y0+d0*(x-x0)+e0*(x-x0)^2+f0*(x-x0)^3+g0*(x-x0)^4+h0*(x-x0)^5+i0*(x-x0)^6,y0) -> 0.597
C127: -0.500 | D127: 0.61 | E127: =IF(Sheet1!D$20=TRUE,x,x0) -> -0.50 | F127: =IF(Sheet1!D$20=TRUE,y0+d0*(x-x0),y0) -> 0.497 | H127: =IF(Sheet1!$D$23=TRUE,x,x0) -> -0.50 | I127: =IF(Sheet1!$D$23=TRUE,y0+d0*(x-x0)+e0*(x-x0)^2,y0) -> 0.623 | K127: =IF(Sheet1!$D$25=TRUE,x,x0) -> 0.00 | L127: =IF(Sheet1!$D$25=TRUE,y0+d0*(x-x0)+e0*(x-x0)^2+f0*(x-x0)^3,y0) -> 1.000 | N127: =IF(Sheet1!$D$27=TRUE,x,x0) -> -0.50 | O127: =IF(Sheet1!$D$27=TRUE,y0+d0*(x-x0)+e0*(x-x0)^2+f0*(x-x0)^3+g0*(x-x0)^4,y0) -> 0.605 | Q127: =IF(Sheet1!$D$30=TRUE,x,x0) -> -0.50 | R127: =IF(Sheet1!$D$30=TRUE,y0+d0*(x-x0)+e0*(x-x0)^2+f0*(x-x0)^3+g0*(x-x0)^4+h0*(x-x0)^5,y0) -> 0.605 | T127: =IF(Sheet1!$D$33=TRUE,x,x0) -> -0.50 | U127: =IF(Sheet1!$D$33=TRUE,y0+d0*(x-x0)+e0*(x-x0)^2+f0*(x-x0)^3+g0*(x-x0)^4+h0*(x-x0)^5+i0*(x-x0)^6,y0) -> 0.605
C128: -0.488 | D128: 0.61 | E128: =IF(Sheet1!D$20=TRUE,x,x0) -> -0.49 | F128: =IF(Sheet1!D$20=TRUE,y0+d0*(x-x0),y0) -> 0.509 | H128: =IF(Sheet1!$D$23=TRUE,x,x0) -> -0.49 | I128: =IF(Sheet1!$D$23=TRUE,y0+d0*(x-x0)+e0*(x-x0)^2,y0) -> 0.630 | K128: =IF(Sheet1!$D$25=TRUE,x,x0) -> 0.00 | L128: =IF(Sheet1!$D$25=TRUE,y0+d0*(x-x0)+e0*(x-x0)^2+f0*(x-x0)^3,y0) -> 1.000 | N128: =IF(Sheet1!$D$27=TRUE,x,x0) -> -0.49 | O128: =IF(Sheet1!$D$27=TRUE,y0+d0*(x-x0)+e0*(x-x0)^2+f0*(x-x0)^3+g0*(x-x0)^4,y0) -> 0.612 | Q128: =IF(Sheet1!$D$30=TRUE,x,x0) -> -0.49 | R128: =IF(Sheet1!$D$30=TRUE,y0+d0*(x-x0)+e0*(x-x0)^2+f0*(x-x0)^3+g0*(x-x0)^4+h0*(x-x0)^5,y0) -> 0.612 | T128: =IF(Sheet1!$D$33=TRUE,x,x0) -> -0.49 | U128: =IF(Sheet1!$D$33=TRUE,y0+d0*(x-x0)+e0*(x-x0)^2+f0*(x-x0)^3+g0*(x-x0)^4+h0*(x-x0)^5+i0*(x-x0)^6,y0) -> 0.612
C129: -0.476 | D129: 0.62 | E129: =IF(Sheet1!D$20=TRUE,x,x0) -> -0.48 | F129: =IF(Sheet1!D$20=TRUE,y0+d0*(x-x0),y0) -> 0.521 | H129: =IF(Sheet1!$D$23=TRUE,x,x0) -> -0.48 | I129: =IF(Sheet1!$D$23=TRUE,y0+d0*(x-x0)+e0*(x-x0)^2,y0) -> 0.636 | K129: =IF(Sheet1!$D$25=TRUE,x,x0) -> 0.00 | L129: =IF(Sheet1!$D$25=TRUE,y0+d0*(x-x0)+e0*(x-x0)^2+f0*(x-x0)^3,y0) -> 1.000 | N129: =IF(Sheet1!$D$27=TRUE,x,x0) -> -0.48 | O129: =IF(Sheet1!$D$27=TRUE,y0+d0*(x-x0)+e0*(x-x0)^2+f0*(x-x0)^3+g0*(x-x0)^4,y0) -> 0.620 | Q129: =IF(Sheet1!$D$30=TRUE,x,x0) -> -0.48 | R129: =IF(Sheet1!$D$30=TRUE,y0+d0*(x-x0)+e0*(x-x0)^2+f0*(x-x0)^3+g0*(x-x0)^4+h0*(x-x0)^5,y0) -> 0.619 | T129: =IF(Sheet1!$D$33=TRUE,x,x0) -> -0.48 | U129: =IF(Sheet1!$D$33=TRUE,y0+d0*(x-x0)+e0*(x-x0)^2+f0*(x-x0)^3+g0*(x-x0)^4+h0*(x-x0)^5+i0*(x-x0)^6,y0) -> 0.619
C130: -0.464 | D130: =EXP(x) -> 0.63 | E130: =IF(Sheet1!D$20=TRUE,x,x0) -> -0.46 | F130: =IF(Sheet1!D$20=TRUE,y0+d0*(x-x0),y0) -> 0.533 | H130: =IF(Sheet1!$D$23=TRUE,x,x0) -> -0.46 | I130: =IF(Sheet1!$D$23=TRUE,y0+d0*(x-x0)+e0*(x-x0)^2,y0) -> 0.642 | K130: =IF(Sheet1!$D$25=TRUE,x,x0) -> 0.00 | L130: =IF(Sheet1!$D$25=TRUE,y0+d0*(x-x0)+e0*(x-x0)^2+f0*(x-x0)^3,y0) -> 1.000 | N130: =IF(Sheet1!$D$27=TRUE,x,x0) -> -0.46 | O130: =IF(Sheet1!$D$27=TRUE,y0+d0*(x-x0)+e0*(x-x0)^2+f0*(x-x0)^3+g0*(x-x0)^4,y0) -> 0.627 | Q130: =IF(Sheet1!$D$30=TRUE,x,x0) -> -0.46 | R130: =IF(Sheet1!$D$30=TRUE,y0+d0*(x-x0)+e0*(x-x0)^2+f0*(x-x0)^3+g0*(x-x0)^4+h0*(x-x0)^5,y0) -> 0.627 | T130: =IF(Sheet1!$D$33=TRUE,x,x0) -> -0.46 | U130: =IF(Sheet1!$D$33=TRUE,y0+d0*(x-x0)+e0*(x-x0)^2+f0*(x-x0)^3+g0*(x-x0)^4+h0*(x-x0)^5+i0*(x-x0)^6,y0) -> 0.627
C131: -0.452 | D131: 0.64 | E131: =IF(Sheet1!D$20=TRUE,x,x0) -> -0.45 | F131: =IF(Sheet1!D$20=TRUE,y0+d0*(x-x0),y0) -> 0.545 | H131: =IF(Sheet1!$D$23=TRUE,x,x0) -> -0.45 | I131: =IF(Sheet1!$D$23=TRUE,y0+d0*(x-x0)+e0*(x-x0)^2,y0) -> 0.649 | K131: =IF(Sheet1!$D$25=TRUE,x,x0) -> 0.00 | L131: =IF(Sheet1!$D$25=TRUE,y0+d0*(x-x0)+e0*(x-x0)^2+f0*(x-x0)^3,y0) -> 1.000 | N131: =IF(Sheet1!$D$27=TRUE,x,x0) -> -0.45 | O131: =IF(Sheet1!$D$27=TRUE,y0+d0*(x-x0)+e0*(x-x0)^2+f0*(x-x0)^3+g0*(x-x0)^4,y0) -> 0.635 | Q131: =IF(Sheet1!$D$30=TRUE,x,x0) -> -0.45 | R131: =IF(Sheet1!$D$30=TRUE,y0+d0*(x-x0)+e0*(x-x0)^2+f0*(x-x0)^3+g0*(x-x0)^4+h0*(x-x0)^5,y0) -> 0.635 | T131: =IF(Sheet1!$D$33=TRUE,x,x0) -> -0.45 | U131: =IF(Sheet1!$D$33=TRUE,y0+d0*(x-x0)+e0*(x-x0)^2+f0*(x-x0)^3+g0*(x-x0)^4+h0*(x-x0)^5+i0*(x-x0)^6,y0) -> 0.635
C132: =C131+dx -> -0.440 | D132: 0.64 | E132: =IF(Sheet1!D$20=TRUE,x,x0) -> -0.44 | F132: =IF(Sheet1!D$20=TRUE,y0+d0*(x-x0),y0) -> 0.557 | H132: =IF(Sheet1!$D$23=TRUE,x,x0) -> -0.44 | I132: =IF(Sheet1!$D$23=TRUE,y0+d0*(x-x0)+e0*(x-x0)^2,y0) -> 0.655 | K132: =IF(Sheet1!$D$25=TRUE,x,x0) -> 0.00 | L132: =IF(Sheet1!$D$25=TRUE,y0+d0*(x-x0)+e0*(x-x0)^2+f0*(x-x0)^3,y0) -> 1.000 | N132: =IF(Sheet1!$D$27=TRUE,x,x0) -> -0.44 | O132: =IF(Sheet1!$D$27=TRUE,y0+d0*(x-x0)+e0*(x-x0)^2+f0*(x-x0)^3+g0*(x-x0)^4,y0) -> 0.642 | Q132: =IF(Sheet1!$D$30=TRUE,x,x0) -> -0.44 | R132: =IF(Sheet1!$D$30=TRUE,y0+d0*(x-x0)+e0*(x-x0)^2+f0*(x-x0)^3+g0*(x-x0)^4+h0*(x-x0)^5,y0) -> 0.642 | T132: =IF(Sheet1!$D$33=TRUE,x,x0) -> -0.44 | U132: =IF(Sheet1!$D$33=TRUE,y0+d0*(x-x0)+e0*(x-x0)^2+f0*(x-x0)^3+g0*(x-x0)^4+h0*(x-x0)^5+i0*(x-x0)^6,y0) -> 0.642
C133: -0.428 | D133: 0.65 | E133: =IF(Sheet1!D$20=TRUE,x,x0) -> -0.43 | F133: =IF(Sheet1!D$20=TRUE,y0+d0*(x-x0),y0) -> 0.569 | H133: =IF(Sheet1!$D$23=TRUE,x,x0) -> -0.43 | I133: =IF(Sheet1!$D$23=TRUE,y0+d0*(x-x0)+e0*(x-x0)^2,y0) -> 0.662 | K133: =IF(Sheet1!$D$25=TRUE,x,x0) -> 0.00 | L133: =IF(Sheet1!$D$25=TRUE,y0+d0*(x-x0)+e0*(x-x0)^2+f0*(x-x0)^3,y0) -> 1.000 | N133: =IF(Sheet1!$D$27=TRUE,x,x0) -> -0.43 | O133: =IF(Sheet1!$D$27=TRUE,y0+d0*(x-x0)+e0*(x-x0)^2+f0*(x-x0)^3+g0*(x-x0)^4,y0) -> 0.650 | Q133: =IF(Sheet1!$D$30=TRUE,x,x0) -> -0.43 | R133: =IF(Sheet1!$D$30=TRUE,y0+d0*(x-x0)+e0*(x-x0)^2+f0*(x-x0)^3+g0*(x-x0)^4+h0*(x-x0)^5,y0) -> 0.650 | T133: =IF(Sheet1!$D$33=TRUE,x,x0) -> -0.43 | U133: =IF(Sheet1!$D$33=TRUE,y0+d0*(x-x0)+e0*(x-x0)^2+f0*(x-x0)^3+g0*(x-x0)^4+h0*(x-x0)^5+i0*(x-x0)^6,y0) -> 0.650
C134: -0.416 | D134: 0.66 | E134: =IF(Sheet1!D$20=TRUE,x,x0) -> -0.42 | F134: =IF(Sheet1!D$20=TRUE,y0+d0*(x-x0),y0) -> 0.581 | H134: =IF(Sheet1!$D$23=TRUE,x,x0) -> -0.42 | I134: =IF(Sheet1!$D$23=TRUE,y0+d0*(x-x0)+e0*(x-x0)^2,y0) -> 0.669 | K134: =IF(Sheet1!$D$25=TRUE,x,x0) -> 0.00 | L134: =IF(Sheet1!$D$25=TRUE,y0+d0*(x-x0)+e0*(x-x0)^2+f0*(x-x0)^3,y0) -> 1.000 | N134: =IF(Sheet1!$D$27=TRUE,x,x0) -> -0.42 | O134: =IF(Sheet1!$D$27=TRUE,y0+d0*(x-x0)+e0*(x-x0)^2+f0*(x-x0)^3+g0*(x-x0)^4,y0) -> 0.658 | Q134: =IF(Sheet1!$D$30=TRUE,x,x0) -> -0.42 | R134: =IF(Sheet1!$D$30=TRUE,y0+d0*(x-x0)+e0*(x-x0)^2+f0*(x-x0)^3+g0*(x-x0)^4+h0*(x-x0)^5,y0) -> 0.658 | T134: =IF(Sheet1!$D$33=TRUE,x,x0) -> -0.42 | U134: =IF(Sheet1!$D$33=TRUE,y0+d0*(x-x0)+e0*(x-x0)^2+f0*(x-x0)^3+g0*(x-x0)^4+h0*(x-x0)^5+i0*(x-x0)^6,y0) -> 0.658
C135: -0.404 | D135: 0.67 | E135: =IF(Sheet1!D$20=TRUE,x,x0) -> -0.40 | F135: =IF(Sheet1!D$20=TRUE,y0+d0*(x-x0),y0) -> 0.594 | H135: =IF(Sheet1!$D$23=TRUE,x,x0) -> -0.40 | I135: =IF(Sheet1!$D$23=TRUE,y0+d0*(x-x0)+e0*(x-x0)^2,y0) -> 0.676 | K135: =IF(Sheet1!$D$25=TRUE,x,x0) -> 0.00 | L135: =IF(Sheet1!$D$25=TRUE,y0+d0*(x-x0)+e0*(x-x0)^2+f0*(x-x0)^3,y0) -> 1.000 | N135: =IF(Sheet1!$D$27=TRUE,x,x0) -> -0.40 | O135: =IF(Sheet1!$D$27=TRUE,y0+d0*(x-x0)+e0*(x-x0)^2+f0*(x-x0)^3+g0*(x-x0)^4,y0) -> 0.666 | Q135: =IF(Sheet1!$D$30=TRUE,x,x0) -> -0.40 | R135: =IF(Sheet1!$D$30=TRUE,y0+d0*(x-x0)+e0*(x-x0)^2+f0*(x-x0)^3+g0*(x-x0)^4+h0*(x-x0)^5,y0) -> 0.666 | T135: =IF(Sheet1!$D$33=TRUE,x,x0) -> -0.40 | U135: =IF(Sheet1!$D$33=TRUE,y0+d0*(x-x0)+e0*(x-x0)^2+f0*(x-x0)^3+g0*(x-x0)^4+h0*(x-x0)^5+i0*(x-x0)^6,y0) -> 0.666
C136: -0.392 | D136: 0.68 | E136: =IF(Sheet1!D$20=TRUE,x,x0) -> -0.39 | F136: =IF(Sheet1!D$20=TRUE,y0+d0*(x-x0),y0) -> 0.606 | H136: =IF(Sheet1!$D$23=TRUE,x,x0) -> -0.39 | I136: =IF(Sheet1!$D$23=TRUE,y0+d0*(x-x0)+e0*(x-x0)^2,y0) -> 0.683 | K136: =IF(Sheet1!$D$25=TRUE,x,x0) -> 0.00 | L136: =IF(Sheet1!$D$25=TRUE,y0+d0*(x-x0)+e0*(x-x0)^2+f0*(x-x0)^3,y0) -> 1.000 | N136: =IF(Sheet1!$D$27=TRUE,x,x0) -> -0.39 | O136: =IF(Sheet1!$D$27=TRUE,y0+d0*(x-x0)+e0*(x-x0)^2+f0*(x-x0)^3+g0*(x-x0)^4,y0) -> 0.674 | Q136: =IF(Sheet1!$D$30=TRUE,x,x0) -> -0.39 | R136: =IF(Sheet1!$D$30=TRUE,y0+d0*(x-x0)+e0*(x-x0)^2+f0*(x-x0)^3+g0*(x-x0)^4+h0*(x-x0)^5,y0) -> 0.674 | T136: =IF(Sheet1!$D$33=TRUE,x,x0) -> -0.39 | U136: =IF(Sheet1!$D$33=TRUE,y0+d0*(x-x0)+e0*(x-x0)^2+f0*(x-x0)^3+g0*(x-x0)^4+h0*(x-x0)^5+i0*(x-x0)^6,y0) -> 0.674
C137: -0.380 | D137: 0.68 | E137: =IF(Sheet1!D$20=TRUE,x,x0) -> -0.38 | F137: =IF(Sheet1!D$20=TRUE,y0+d0*(x-x0),y0) -> 0.618 | H137: =IF(Sheet1!$D$23=TRUE,x,x0) -> -0.38 | I137: =IF(Sheet1!$D$23=TRUE,y0+d0*(x-x0)+e0*(x-x0)^2,y0) -> 0.691 | K137: =IF(Sheet1!$D$25=TRUE,x,x0) -> 0.00 | L137: =IF(Sheet1!$D$25=TRUE,y0+d0*(x-x0)+e0*(x-x0)^2+f0*(x-x0)^3,y0) -> 1.000 | N137: =IF(Sheet1!$D$27=TRUE,x,x0) -> -0.38 | O137: =IF(Sheet1!$D$27=TRUE,y0+d0*(x-x0)+e0*(x-x0)^2+f0*(x-x0)^3+g0*(x-x0)^4,y0) -> 0.682 | Q137: =IF(Sheet1!$D$30=TRUE,x,x0) -> -0.38 | R137: =IF(Sheet1!$D$30=TRUE,y0+d0*(x-x0)+e0*(x-x0)^2+f0*(x-x0)^3+g0*(x-x0)^4+h0*(x-x0)^5,y0) -> 0.682 | T137: =IF(Sheet1!$D$33=TRUE,x,x0) -> -0.38 | U137: =IF(Sheet1!$D$33=TRUE,y0+d0*(x-x0)+e0*(x-x0)^2+f0*(x-x0)^3+g0*(x-x0)^4+h0*(x-x0)^5+i0*(x-x0)^6,y0) -> 0.682
C138: -0.368 | D138: 0.69 | E138: =IF(Sheet1!D$20=TRUE,x,x0) -> -0.37 | F138: =IF(Sheet1!D$20=TRUE,y0+d0*(x-x0),y0) -> 0.630 | H138: =IF(Sheet1!$D$23=TRUE,x,x0) -> -0.37 | I138: =IF(Sheet1!$D$23=TRUE,y0+d0*(x-x0)+e0*(x-x0)^2,y0) -> 0.698 | K138: =IF(Sheet1!$D$25=TRUE,x,x0) -> 0.00 | L138: =IF(Sheet1!$D$25=TRUE,y0+d0*(x-x0)+e0*(x-x0)^2+f0*(x-x0)^3,y0) -> 1.000 | N138: =IF(Sheet1!$D$27=TRUE,x,x0) -> -0.37 | O138: =IF(Sheet1!$D$27=TRUE,y0+d0*(x-x0)+e0*(x-x0)^2+f0*(x-x0)^3+g0*(x-x0)^4,y0) -> 0.691 | Q138: =IF(Sheet1!$D$30=TRUE,x,x0) -> -0.37 | R138: =IF(Sheet1!$D$30=TRUE,y0+d0*(x-x0)+e0*(x-x0)^2+f0*(x-x0)^3+g0*(x-x0)^4+h0*(x-x0)^5,y0) -> 0.691 | T138: =IF(Sheet1!$D$33=TRUE,x,x0) -> -0.37 | U138: =IF(Sheet1!$D$33=TRUE,y0+d0*(x-x0)+e0*(x-x0)^2+f0*(x-x0)^3+g0*(x-x0)^4+h0*(x-x0)^5+i0*(x-x0)^6,y0) -> 0.691
C139: -0.356 | D139: 0.70 | E139: =IF(Sheet1!D$20=TRUE,x,x0) -> -0.36 | F139: =IF(Sheet1!D$20=TRUE,y0+d0*(x-x0),y0) -> 0.642 | H139: =IF(Sheet1!$D$23=TRUE,x,x0) -> -0.36 | I139: =IF(Sheet1!$D$23=TRUE,y0+d0*(x-x0)+e0*(x-x0)^2,y0) -> 0.706 | K139: =IF(Sheet1!$D$25=TRUE,x,x0) -> 0.00 | L139: =IF(Sheet1!$D$25=TRUE,y0+d0*(x-x0)+e0*(x-x0)^2+f0*(x-x0)^3,y0) -> 1.000 | N139: =IF(Sheet1!$D$27=TRUE,x,x0) -> -0.36 | O139: =IF(Sheet1!$D$27=TRUE,y0+d0*(x-x0)+e0*(x-x0)^2+f0*(x-x0)^3+g0*(x-x0)^4,y0) -> 0.699 | Q139: =IF(Sheet1!$D$30=TRUE,x,x0) -> -0.36 | R139: =IF(Sheet1!$D$30=TRUE,y0+d0*(x-x0)+e0*(x-x0)^2+f0*(x-x0)^3+g0*(x-x0)^4+h0*(x-x0)^5,y0) -> 0.699 | T139: =IF(Sheet1!$D$33=TRUE,x,x0) -> -0.36 | U139: =IF(Sheet1!$D$33=TRUE,y0+d0*(x-x0)+e0*(x-x0)^2+f0*(x-x0)^3+g0*(x-x0)^4+h0*(x-x0)^5+i0*(x-x0)^6,y0) -> 0.699
C140: -0.344 | D140: 0.71 | E140: =IF(Sheet1!D$20=TRUE,x,x0) -> -0.34 | F140: =IF(Sheet1!D$20=TRUE,y0+d0*(x-x0),y0) -> 0.654 | H140: =IF(Sheet1!$D$23=TRUE,x,x0) -> -0.34 | I140: =IF(Sheet1!$D$23=TRUE,y0+d0*(x-x0)+e0*(x-x0)^2,y0) -> 0.714 | K140: =IF(Sheet1!$D$25=TRUE,x,x0) -> 0.00 | L140: =IF(Sheet1!$D$25=TRUE,y0+d0*(x-x0)+e0*(x-x0)^2+f0*(x-x0)^3,y0) -> 1.000 | N140: =IF(Sheet1!$D$27=TRUE,x,x0) -> -0.34 | O140: =IF(Sheet1!$D$27=TRUE,y0+d0*(x-x0)+e0*(x-x0)^2+f0*(x-x0)^3+g0*(x-x0)^4,y0) -> 0.708 | Q140: =IF(Sheet1!$D$30=TRUE,x,x0) -> -0.34 | R140: =IF(Sheet1!$D$30=TRUE,y0+d0*(x-x0)+e0*(x-x0)^2+f0*(x-x0)^3+g0*(x-x0)^4+h0*(x-x0)^5,y0) -> 0.707 | T140: =IF(Sheet1!$D$33=TRUE,x,x0) -> -0.34 | U140: =IF(Sheet1!$D$33=TRUE,y0+d0*(x-x0)+e0*(x-x0)^2+f0*(x-x0)^3+g0*(x-x0)^4+h0*(x-x0)^5+i0*(x-x0)^6,y0) -> 0.707
C141: -0.332 | D141: 0.72 | E141: =IF(Sheet1!D$20=TRUE,x,x0) -> -0.33 | F141: =IF(Sheet1!D$20=TRUE,y0+d0*(x-x0),y0) -> 0.666 | H141: =IF(Sheet1!$D$23=TRUE,x,x0) -> -0.33 | I141: =IF(Sheet1!$D$23=TRUE,y0+d0*(x-x0)+e0*(x-x0)^2,y0) -> 0.722 | K141: =IF(Sheet1!$D$25=TRUE,x,x0) -> 0.00 | L141: =IF(Sheet1!$D$25=TRUE,y0+d0*(x-x0)+e0*(x-x0)^2+f0*(x-x0)^3,y0) -> 1.000 | N141: =IF(Sheet1!$D$27=TRUE,x,x0) -> -0.33 | O141: =IF(Sheet1!$D$27=TRUE,y0+d0*(x-x0)+e0*(x-x0)^2+f0*(x-x0)^3+g0*(x-x0)^4,y0) -> 0.716 | Q141: =IF(Sheet1!$D$30=TRUE,x,x0) -> -0.33 | R141: =IF(Sheet1!$D$30=TRUE,y0+d0*(x-x0)+e0*(x-x0)^2+f0*(x-x0)^3+g0*(x-x0)^4+h0*(x-x0)^5,y0) -> 0.716 | T141: =IF(Sheet1!$D$33=TRUE,x,x0) -> -0.33 | U141: =IF(Sheet1!$D$33=TRUE,y0+d0*(x-x0)+e0*(x-x0)^2+f0*(x-x0)^3+g0*(x-x0)^4+h0*(x-x0)^5+i0*(x-x0)^6,y0) -> 0.716
C142: -0.320 | D142: 0.73 | E142: =IF(Sheet1!D$20=TRUE,x,x0) -> -0.32 | F142: =IF(Sheet1!D$20=TRUE,y0+d0*(x-x0),y0) -> 0.678 | H142: =IF(Sheet1!$D$23=TRUE,x,x0) -> -0.32 | I142: =IF(Sheet1!$D$23=TRUE,y0+d0*(x-x0)+e0*(x-x0)^2,y0) -> 0.730 | K142: =IF(Sheet1!$D$25=TRUE,x,x0) -> 0.00 | L142: =IF(Sheet1!$D$25=TRUE,y0+d0*(x-x0)+e0*(x-x0)^2+f0*(x-x0)^3,y0) -> 1.000 | N142: =IF(Sheet1!$D$27=TRUE,x,x0) -> -0.32 | O142: =IF(Sheet1!$D$27=TRUE,y0+d0*(x-x0)+e0*(x-x0)^2+f0*(x-x0)^3+g0*(x-x0)^4,y0) -> 0.725 | Q142: =IF(Sheet1!$D$30=TRUE,x,x0) -> -0.32 | R142: =IF(Sheet1!$D$30=TRUE,y0+d0*(x-x0)+e0*(x-x0)^2+f0*(x-x0)^3+g0*(x-x0)^4+h0*(x-x0)^5,y0) -> 0.725 | T142: =IF(Sheet1!$D$33=TRUE,x,x0) -> -0.32 | U142: =IF(Sheet1!$D$33=TRUE,y0+d0*(x-x0)+e0*(x-x0)^2+f0*(x-x0)^3+g0*(x-x0)^4+h0*(x-x0)^5+i0*(x-x0)^6,y0) -> 0.725
C143: -0.308 | D143: 0.73 | E143: =IF(Sheet1!D$20=TRUE,x,x0) -> -0.31 | F143: =IF(Sheet1!D$20=TRUE,y0+d0*(x-x0),y0) -> 0.690 | H143: =IF(Sheet1!$D$23=TRUE,x,x0) -> -0.31 | I143: =IF(Sheet1!$D$23=TRUE,y0+d0*(x-x0)+e0*(x-x0)^2,y0) -> 0.738 | K143: =IF(Sheet1!$D$25=TRUE,x,x0) -> 0.00 | L143: =IF(Sheet1!$D$25=TRUE,y0+d0*(x-x0)+e0*(x-x0)^2+f0*(x-x0)^3,y0) -> 1.000 | N143: =IF(Sheet1!$D$27=TRUE,x,x0) -> -0.31 | O143: =IF(Sheet1!$D$27=TRUE,y0+d0*(x-x0)+e0*(x-x0)^2+f0*(x-x0)^3+g0*(x-x0)^4,y0) -> 0.734 | Q143: =IF(Sheet1!$D$30=TRUE,x,x0) -> -0.31 | R143: =IF(Sheet1!$D$30=TRUE,y0+d0*(x-x0)+e0*(x-x0)^2+f0*(x-x0)^3+g0*(x-x0)^4+h0*(x-x0)^5,y0) -> 0.734 | T143: =IF(Sheet1!$D$33=TRUE,x,x0) -> -0.31 | U143: =IF(Sheet1!$D$33=TRUE,y0+d0*(x-x0)+e0*(x-x0)^2+f0*(x-x0)^3+g0*(x-x0)^4+h0*(x-x0)^5+i0*(x-x0)^6,y0) -> 0.734
C144: -0.296 | D144: 0.74 | E144: =IF(Sheet1!D$20=TRUE,x,x0) -> -0.30 | F144: =IF(Sheet1!D$20=TRUE,y0+d0*(x-x0),y0) -> 0.702 | H144: =IF(Sheet1!$D$23=TRUE,x,x0) -> -0.30 | I144: =IF(Sheet1!$D$23=TRUE,y0+d0*(x-x0)+e0*(x-x0)^2,y0) -> 0.747 | K144: =IF(Sheet1!$D$25=TRUE,x,x0) -> 0.00 | L144: =IF(Sheet1!$D$25=TRUE,y0+d0*(x-x0)+e0*(x-x0)^2+f0*(x-x0)^3,y0) -> 1.000 | N144: =IF(Sheet1!$D$27=TRUE,x,x0) -> -0.30 | O144: =IF(Sheet1!$D$27=TRUE,y0+d0*(x-x0)+e0*(x-x0)^2+f0*(x-x0)^3+g0*(x-x0)^4,y0) -> 0.742 | Q144: =IF(Sheet1!$D$30=TRUE,x,x0) -> -0.30 | R144: =IF(Sheet1!$D$30=TRUE,y0+d0*(x-x0)+e0*(x-x0)^2+f0*(x-x0)^3+g0*(x-x0)^4+h0*(x-x0)^5,y0) -> 0.742 | T144: =IF(Sheet1!$D$33=TRUE,x,x0) -> -0.30 | U144: =IF(Sheet1!$D$33=TRUE,y0+d0*(x-x0)+e0*(x-x0)^2+f0*(x-x0)^3+g0*(x-x0)^4+h0*(x-x0)^5+i0*(x-x0)^6,y0) -> 0.742
C145: -0.284 | D145: 0.75 | E145: =IF(Sheet1!D$20=TRUE,x,x0) -> -0.28 | F145: =IF(Sheet1!D$20=TRUE,y0+d0*(x-x0),y0) -> 0.714 | H145: =IF(Sheet1!$D$23=TRUE,x,x0) -> -0.28 | I145: =IF(Sheet1!$D$23=TRUE,y0+d0*(x-x0)+e0*(x-x0)^2,y0) -> 0.755 | K145: =IF(Sheet1!$D$25=TRUE,x,x0) -> 0.00 | L145: =IF(Sheet1!$D$25=TRUE,y0+d0*(x-x0)+e0*(x-x0)^2+f0*(x-x0)^3,y0) -> 1.000 | N145: =IF(Sheet1!$D$27=TRUE,x,x0) -> -0.28 | O145: =IF(Sheet1!$D$27=TRUE,y0+d0*(x-x0)+e0*(x-x0)^2+f0*(x-x0)^3+g0*(x-x0)^4,y0) -> 0.751 | Q145: =IF(Sheet1!$D$30=TRUE,x,x0) -> -0.28 | R145: =IF(Sheet1!$D$30=TRUE,y0+d0*(x-x0)+e0*(x-x0)^2+f0*(x-x0)^3+g0*(x-x0)^4+h0*(x-x0)^5,y0) -> 0.751 | T145: =IF(Sheet1!$D$33=TRUE,x,x0) -> -0.28 | U145: =IF(Sheet1!$D$33=TRUE,y0+d0*(x-x0)+e0*(x-x0)^2+f0*(x-x0)^3+g0*(x-x0)^4+h0*(x-x0)^5+i0*(x-x0)^6,y0) -> 0.751
C146: -0.272 | D146: 0.76 | E146: =IF(Sheet1!D$20=TRUE,x,x0) -> -0.27 | F146: =IF(Sheet1!D$20=TRUE,y0+d0*(x-x0),y0) -> 0.726 | H146: =IF(Sheet1!$D$23=TRUE,x,x0) -> -0.27 | I146: =IF(Sheet1!$D$23=TRUE,y0+d0*(x-x0)+e0*(x-x0)^2,y0) -> 0.764 | K146: =IF(Sheet1!$D$25=TRUE,x,x0) -> 0.00 | L146: =IF(Sheet1!$D$25=TRUE,y0+d0*(x-x0)+e0*(x-x0)^2+f0*(x-x0)^3,y0) -> 1.000 | N146: =IF(Sheet1!$D$27=TRUE,x,x0) -> -0.27 | O146: =IF(Sheet1!$D$27=TRUE,y0+d0*(x-x0)+e0*(x-x0)^2+f0*(x-x0)^3+g0*(x-x0)^4,y0) -> 0.761 | Q146: =IF(Sheet1!$D$30=TRUE,x,x0) -> -0.27 | R146: =IF(Sheet1!$D$30=TRUE,y0+d0*(x-x0)+e0*(x-x0)^2+f0*(x-x0)^3+g0*(x-x0)^4+h0*(x-x0)^5,y0) -> 0.761 | T146: =IF(Sheet1!$D$33=TRUE,x,x0) -> -0.27 | U146: =IF(Sheet1!$D$33=TRUE,y0+d0*(x-x0)+e0*(x-x0)^2+f0*(x-x0)^3+g0*(x-x0)^4+h0*(x-x0)^5+i0*(x-x0)^6,y0) -> 0.761
C147: -0.260 | D147: 0.77 | E147: =IF(Sheet1!D$20=TRUE,x,x0) -> -0.26 | F147: =IF(Sheet1!D$20=TRUE,y0+d0*(x-x0),y0) -> 0.738 | H147: =IF(Sheet1!$D$23=TRUE,x,x0) -> -0.26 | I147: =IF(Sheet1!$D$23=TRUE,y0+d0*(x-x0)+e0*(x-x0)^2,y0) -> 0.773 | K147: =IF(Sheet1!$D$25=TRUE,x,x0) -> 0.00 | L147: =IF(Sheet1!$D$25=TRUE,y0+d0*(x-x0)+e0*(x-x0)^2+f0*(x-x0)^3,y0) -> 1.000 | N147: =IF(Sheet1!$D$27=TRUE,x,x0) -> -0.26 | O147: =IF(Sheet1!$D$27=TRUE,y0+d0*(x-x0)+e0*(x-x0)^2+f0*(x-x0)^3+g0*(x-x0)^4,y0) -> 0.770 | Q147: =IF(Sheet1!$D$30=TRUE,x,x0) -> -0.26 | R147: =IF(Sheet1!$D$30=TRUE,y0+d0*(x-x0)+e0*(x-x0)^2+f0*(x-x0)^3+g0*(x-x0)^4+h0*(x-x0)^5,y0) -> 0.770 | T147: =IF(Sheet1!$D$33=TRUE,x,x0) -> -0.26 | U147: =IF(Sheet1!$D$33=TRUE,y0+d0*(x-x0)+e0*(x-x0)^2+f0*(x-x0)^3+g0*(x-x0)^4+h0*(x-x0)^5+i0*(x-x0)^6,y0) -> 0.770
C148: -0.248 | D148: 0.78 | E148: =IF(Sheet1!D$20=TRUE,x,x0) -> -0.25 | F148: =IF(Sheet1!D$20=TRUE,y0+d0*(x-x0),y0) -> 0.751 | H148: =IF(Sheet1!$D$23=TRUE,x,x0) -> -0.25 | I148: =IF(Sheet1!$D$23=TRUE,y0+d0*(x-x0)+e0*(x-x0)^2,y0) -> 0.782 | K148: =IF(Sheet1!$D$25=TRUE,x,x0) -> 0.00 | L148: =IF(Sheet1!$D$25=TRUE,y0+d0*(x-x0)+e0*(x-x0)^2+f0*(x-x0)^3,y0) -> 1.000 | N148: =IF(Sheet1!$D$27=TRUE,x,x0) -> -0.25 | O148: =IF(Sheet1!$D$27=TRUE,y0+d0*(x-x0)+e0*(x-x0)^2+f0*(x-x0)^3+g0*(x-x0)^4,y0) -> 0.779 | Q148: =IF(Sheet1!$D$30=TRUE,x,x0) -> -0.25 | R148: =IF(Sheet1!$D$30=TRUE,y0+d0*(x-x0)+e0*(x-x0)^2+f0*(x-x0)^3+g0*(x-x0)^4+h0*(x-x0)^5,y0) -> 0.779 | T148: =IF(Sheet1!$D$33=TRUE,x,x0) -> -0.25 | U148: =IF(Sheet1!$D$33=TRUE,y0+d0*(x-x0)+e0*(x-x0)^2+f0*(x-x0)^3+g0*(x-x0)^4+h0*(x-x0)^5+i0*(x-x0)^6,y0) -> 0.779
C149: -0.236 | D149: 0.79 | E149: =IF(Sheet1!D$20=TRUE,x,x0) -> -0.24 | F149: =IF(Sheet1!D$20=TRUE,y0+d0*(x-x0),y0) -> 0.763 | H149: =IF(Sheet1!$D$23=TRUE,x,x0) -> -0.24 | I149: =IF(Sheet1!$D$23=TRUE,y0+d0*(x-x0)+e0*(x-x0)^2,y0) -> 0.791 | K149: =IF(Sheet1!$D$25=TRUE,x,x0) -> 0.00 | L149: =IF(Sheet1!$D$25=TRUE,y0+d0*(x-x0)+e0*(x-x0)^2+f0*(x-x0)^3,y0) -> 1.000 | N149: =IF(Sheet1!$D$27=TRUE,x,x0) -> -0.24 | O149: =IF(Sheet1!$D$27=TRUE,y0+d0*(x-x0)+e0*(x-x0)^2+f0*(x-x0)^3+g0*(x-x0)^4,y0) -> 0.789 | Q149: =IF(Sheet1!$D$30=TRUE,x,x0) -> -0.24 | R149: =IF(Sheet1!$D$30=TRUE,y0+d0*(x-x0)+e0*(x-x0)^2+f0*(x-x0)^3+g0*(x-x0)^4+h0*(x-x0)^5,y0) -> 0.789 | T149: =IF(Sheet1!$D$33=TRUE,x,x0) -> -0.24 | U149: =IF(Sheet1!$D$33=TRUE,y0+d0*(x-x0)+e0*(x-x0)^2+f0*(x-x0)^3+g0*(x-x0)^4+h0*(x-x0)^5+i0*(x-x0)^6,y0) -> 0.789
C150: -0.224 | D150: 0.80 | E150: =IF(Sheet1!D$20=TRUE,x,x0) -> -0.22 | F150: =IF(Sheet1!D$20=TRUE,y0+d0*(x-x0),y0) -> 0.775 | H150: =IF(Sheet1!$D$23=TRUE,x,x0) -> -0.22 | I150: =IF(Sheet1!$D$23=TRUE,y0+d0*(x-x0)+e0*(x-x0)^2,y0) -> 0.800 | K150: =IF(Sheet1!$D$25=TRUE,x,x0) -> 0.00 | L150: =IF(Sheet1!$D$25=TRUE,y0+d0*(x-x0)+e0*(x-x0)^2+f0*(x-x0)^3,y0) -> 1.000 | N150: =IF(Sheet1!$D$27=TRUE,x,x0) -> -0.22 | O150: =IF(Sheet1!$D$27=TRUE,y0+d0*(x-x0)+e0*(x-x0)^2+f0*(x-x0)^3+g0*(x-x0)^4,y0) -> 0.798 | Q150: =IF(Sheet1!$D$30=TRUE,x,x0) -> -0.22 | R150: =IF(Sheet1!$D$30=TRUE,y0+d0*(x-x0)+e0*(x-x0)^2+f0*(x-x0)^3+g0*(x-x0)^4+h0*(x-x0)^5,y0) -> 0.798 | T150: =IF(Sheet1!$D$33=TRUE,x,x0) -> -0.22 | U150: =IF(Sheet1!$D$33=TRUE,y0+d0*(x-x0)+e0*(x-x0)^2+f0*(x-x0)^3+g0*(x-x0)^4+h0*(x-x0)^5+i0*(x-x0)^6,y0) -> 0.798
C151: -0.212 | D151: 0.81 | E151: =IF(Sheet1!D$20=TRUE,x,x0) -> -0.21 | F151: =IF(Sheet1!D$20=TRUE,y0+d0*(x-x0),y0) -> 0.787 | H151: =IF(Sheet1!$D$23=TRUE,x,x0) -> -0.21 | I151: =IF(Sheet1!$D$23=TRUE,y0+d0*(x-x0)+e0*(x-x0)^2,y0) -> 0.809 | K151: =IF(Sheet1!$D$25=TRUE,x,x0) -> 0.00 | L151: =IF(Sheet1!$D$25=TRUE,y0+d0*(x-x0)+e0*(x-x0)^2+f0*(x-x0)^3,y0) -> 1.000 | N151: =IF(Sheet1!$D$27=TRUE,x,x0) -> -0.21 | O151: =IF(Sheet1!$D$27=TRUE,y0+d0*(x-x0)+e0*(x-x0)^2+f0*(x-x0)^3+g0*(x-x0)^4,y0) -> 0.808 | Q151: =IF(Sheet1!$D$30=TRUE,x,x0) -> -0.21 | R151: =IF(Sheet1!$D$30=TRUE,y0+d0*(x-x0)+e0*(x-x0)^2+f0*(x-x0)^3+g0*(x-x0)^4+h0*(x-x0)^5,y0) -> 0.808 | T151: =IF(Sheet1!$D$33=TRUE,x,x0) -> -0.21 | U151: =IF(Sheet1!$D$33=TRUE,y0+d0*(x-x0)+e0*(x-x0)^2+f0*(x-x0)^3+g0*(x-x0)^4+h0*(x-x0)^5+i0*(x-x0)^6,y0) -> 0.808
C152: -0.200 | D152: 0.82 | E152: =IF(Sheet1!D$20=TRUE,x,x0) -> -0.20 | F152: =IF(Sheet1!D$20=TRUE,y0+d0*(x-x0),y0) -> 0.799 | H152: =IF(Sheet1!$D$23=TRUE,x,x0) -> -0.20 | I152: =IF(Sheet1!$D$23=TRUE,y0+d0*(x-x0)+e0*(x-x0)^2,y0) -> 0.819 | K152: =IF(Sheet1!$D$25=TRUE,x,x0) -> 0.00 | L152: =IF(Sheet1!$D$25=TRUE,y0+d0*(x-x0)+e0*(x-x0)^2+f0*(x-x0)^3,y0) -> 1.000 | N152: =IF(Sheet1!$D$27=TRUE,x,x0) -> -0.20 | O152: =IF(Sheet1!$D$27=TRUE,y0+d0*(x-x0)+e0*(x-x0)^2+f0*(x-x0)^3+g0*(x-x0)^4,y0) -> 0.818 | Q152: =IF(Sheet1!$D$30=TRUE,x,x0) -> -0.20 | R152: =IF(Sheet1!$D$30=TRUE,y0+d0*(x-x0)+e0*(x-x0)^2+f0*(x-x0)^3+g0*(x-x0)^4+h0*(x-x0)^5,y0) -> 0.818 | T152: =IF(Sheet1!$D$33=TRUE,x,x0) -> -0.20 | U152: =IF(Sheet1!$D$33=TRUE,y0+d0*(x-x0)+e0*(x-x0)^2+f0*(x-x0)^3+g0*(x-x0)^4+h0*(x-x0)^5+i0*(x-x0)^6,y0) -> 0.818
C153: -0.188 | D153: 0.83 | E153: =IF(Sheet1!D$20=TRUE,x,x0) -> -0.19 | F153: =IF(Sheet1!D$20=TRUE,y0+d0*(x-x0),y0) -> 0.811 | H153: =IF(Sheet1!$D$23=TRUE,x,x0) -> -0.19 | I153: =IF(Sheet1!$D$23=TRUE,y0+d0*(x-x0)+e0*(x-x0)^2,y0) -> 0.829 | K153: =IF(Sheet1!$D$25=TRUE,x,x0) -> 0.00 | L153: =IF(Sheet1!$D$25=TRUE,y0+d0*(x-x0)+e0*(x-x0)^2+f0*(x-x0)^3,y0) -> 1.000 | N153: =IF(Sheet1!$D$27=TRUE,x,x0) -> -0.19 | O153: =IF(Sheet1!$D$27=TRUE,y0+d0*(x-x0)+e0*(x-x0)^2+f0*(x-x0)^3+g0*(x-x0)^4,y0) -> 0.828 | Q153: =IF(Sheet1!$D$30=TRUE,x,x0) -> -0.19 | R153: =IF(Sheet1!$D$30=TRUE,y0+d0*(x-x0)+e0*(x-x0)^2+f0*(x-x0)^3+g0*(x-x0)^4+h0*(x-x0)^5,y0) -> 0.828 | T153: =IF(Sheet1!$D$33=TRUE,x,x0) -> -0.19 | U153: =IF(Sheet1!$D$33=TRUE,y0+d0*(x-x0)+e0*(x-x0)^2+f0*(x-x0)^3+g0*(x-x0)^4+h0*(x-x0)^5+i0*(x-x0)^6,y0) -> 0.828
C154: -0.176 | D154: 0.84 | E154: =IF(Sheet1!D$20=TRUE,x,x0) -> -0.18 | F154: =IF(Sheet1!D$20=TRUE,y0+d0*(x-x0),y0) -> 0.823 | H154: =IF(Sheet1!$D$23=TRUE,x,x0) -> -0.18 | I154: =IF(Sheet1!$D$23=TRUE,y0+d0*(x-x0)+e0*(x-x0)^2,y0) -> 0.839 | K154: =IF(Sheet1!$D$25=TRUE,x,x0) -> 0.00 | L154: =IF(Sheet1!$D$25=TRUE,y0+d0*(x-x0)+e0*(x-x0)^2+f0*(x-x0)^3,y0) -> 1.000 | N154: =IF(Sheet1!$D$27=TRUE,x,x0) -> -0.18 | O154: =IF(Sheet1!$D$27=TRUE,y0+d0*(x-x0)+e0*(x-x0)^2+f0*(x-x0)^3+g0*(x-x0)^4,y0) -> 0.838 | Q154: =IF(Sheet1!$D$30=TRUE,x,x0) -> -0.18 | R154: =IF(Sheet1!$D$30=TRUE,y0+d0*(x-x0)+e0*(x-x0)^2+f0*(x-x0)^3+g0*(x-x0)^4+h0*(x-x0)^5,y0) -> 0.838 | T154: =IF(Sheet1!$D$33=TRUE,x,x0) -> -0.18 | U154: =IF(Sheet1!$D$33=TRUE,y0+d0*(x-x0)+e0*(x-x0)^2+f0*(x-x0)^3+g0*(x-x0)^4+h0*(x-x0)^5+i0*(x-x0)^6,y0) -> 0.838
C155: -0.164 | D155: 0.85 | E155: =IF(Sheet1!D$20=TRUE,x,x0) -> -0.16 | F155: =IF(Sheet1!D$20=TRUE,y0+d0*(x-x0),y0) -> 0.835 | H155: =IF(Sheet1!$D$23=TRUE,x,x0) -> -0.16 | I155: =IF(Sheet1!$D$23=TRUE,y0+d0*(x-x0)+e0*(x-x0)^2,y0) -> 0.849 | K155: =IF(Sheet1!$D$25=TRUE,x,x0) -> 0.00 | L155: =IF(Sheet1!$D$25=TRUE,y0+d0*(x-x0)+e0*(x-x0)^2+f0*(x-x0)^3,y0) -> 1.000 | N155: =IF(Sheet1!$D$27=TRUE,x,x0) -> -0.16 | O155: =IF(Sheet1!$D$27=TRUE,y0+d0*(x-x0)+e0*(x-x0)^2+f0*(x-x0)^3+g0*(x-x0)^4,y0) -> 0.848 | Q155: =IF(Sheet1!$D$30=TRUE,x,x0) -> -0.16 | R155: =IF(Sheet1!$D$30=TRUE,y0+d0*(x-x0)+e0*(x-x0)^2+f0*(x-x0)^3+g0*(x-x0)^4+h0*(x-x0)^5,y0) -> 0.848 | T155: =IF(Sheet1!$D$33=TRUE,x,x0) -> -0.16 | U155: =IF(Sheet1!$D$33=TRUE,y0+d0*(x-x0)+e0*(x-x0)^2+f0*(x-x0)^3+g0*(x-x0)^4+h0*(x-x0)^5+i0*(x-x0)^6,y0) -> 0.848
C156: -0.152 | D156: 0.86 | E156: =IF(Sheet1!D$20=TRUE,x,x0) -> -0.15 | F156: =IF(Sheet1!D$20=TRUE,y0+d0*(x-x0),y0) -> 0.847 | H156: =IF(Sheet1!$D$23=TRUE,x,x0) -> -0.15 | I156: =IF(Sheet1!$D$23=TRUE,y0+d0*(x-x0)+e0*(x-x0)^2,y0) -> 0.859 | K156: =IF(Sheet1!$D$25=TRUE,x,x0) -> 0.00 | L156: =IF(Sheet1!$D$25=TRUE,y0+d0*(x-x0)+e0*(x-x0)^2+f0*(x-x0)^3,y0) -> 1.000 | N156: =IF(Sheet1!$D$27=TRUE,x,x0) -> -0.15 | O156: =IF(Sheet1!$D$27=TRUE,y0+d0*(x-x0)+e0*(x-x0)^2+f0*(x-x0)^3+g0*(x-x0)^4,y0) -> 0.858 | Q156: =IF(Sheet1!$D$30=TRUE,x,x0) -> -0.15 | R156: =IF(Sheet1!$D$30=TRUE,y0+d0*(x-x0)+e0*(x-x0)^2+f0*(x-x0)^3+g0*(x-x0)^4+h0*(x-x0)^5,y0) -> 0.858 | T156: =IF(Sheet1!$D$33=TRUE,x,x0) -> -0.15 | U156: =IF(Sheet1!$D$33=TRUE,y0+d0*(x-x0)+e0*(x-x0)^2+f0*(x-x0)^3+g0*(x-x0)^4+h0*(x-x0)^5+i0*(x-x0)^6,y0) -> 0.858
C157: -0.140 | D157: 0.87 | E157: =IF(Sheet1!D$20=TRUE,x,x0) -> -0.14 | F157: =IF(Sheet1!D$20=TRUE,y0+d0*(x-x0),y0) -> 0.859 | H157: =IF(Sheet1!$D$23=TRUE,x,x0) -> -0.14 | I157: =IF(Sheet1!$D$23=TRUE,y0+d0*(x-x0)+e0*(x-x0)^2,y0) -> 0.869 | K157: =IF(Sheet1!$D$25=TRUE,x,x0) -> 0.00 | L157: =IF(Sheet1!$D$25=TRUE,y0+d0*(x-x0)+e0*(x-x0)^2+f0*(x-x0)^3,y0) -> 1.000 | N157: =IF(Sheet1!$D$27=TRUE,x,x0) -> -0.14 | O157: =IF(Sheet1!$D$27=TRUE,y0+d0*(x-x0)+e0*(x-x0)^2+f0*(x-x0)^3+g0*(x-x0)^4,y0) -> 0.869 | Q157: =IF(Sheet1!$D$30=TRUE,x,x0) -> -0.14 | R157: =IF(Sheet1!$D$30=TRUE,y0+d0*(x-x0)+e0*(x-x0)^2+f0*(x-x0)^3+g0*(x-x0)^4+h0*(x-x0)^5,y0) -> 0.869 | T157: =IF(Sheet1!$D$33=TRUE,x,x0) -> -0.14 | U157: =IF(Sheet1!$D$33=TRUE,y0+d0*(x-x0)+e0*(x-x0)^2+f0*(x-x0)^3+g0*(x-x0)^4+h0*(x-x0)^5+i0*(x-x0)^6,y0) -> 0.869
C158: -0.128 | D158: 0.88 | E158: =IF(Sheet1!D$20=TRUE,x,x0) -> -0.13 | F158: =IF(Sheet1!D$20=TRUE,y0+d0*(x-x0),y0) -> 0.871 | H158: =IF(Sheet1!$D$23=TRUE,x,x0) -> -0.13 | I158: =IF(Sheet1!$D$23=TRUE,y0+d0*(x-x0)+e0*(x-x0)^2,y0) -> 0.880 | K158: =IF(Sheet1!$D$25=TRUE,x,x0) -> 0.00 | L158: =IF(Sheet1!$D$25=TRUE,y0+d0*(x-x0)+e0*(x-x0)^2+f0*(x-x0)^3,y0) -> 1.000 | N158: =IF(Sheet1!$D$27=TRUE,x,x0) -> -0.13 | O158: =IF(Sheet1!$D$27=TRUE,y0+d0*(x-x0)+e0*(x-x0)^2+f0*(x-x0)^3+g0*(x-x0)^4,y0) -> 0.879 | Q158: =IF(Sheet1!$D$30=TRUE,x,x0) -> -0.13 | R158: =IF(Sheet1!$D$30=TRUE,y0+d0*(x-x0)+e0*(x-x0)^2+f0*(x-x0)^3+g0*(x-x0)^4+h0*(x-x0)^5,y0) -> 0.879 | T158: =IF(Sheet1!$D$33=TRUE,x,x0) -> -0.13 | U158: =IF(Sheet1!$D$33=TRUE,y0+d0*(x-x0)+e0*(x-x0)^2+f0*(x-x0)^3+g0*(x-x0)^4+h0*(x-x0)^5+i0*(x-x0)^6,y0) -> 0.879
C159: -0.116 | D159: 0.89 | E159: =IF(Sheet1!D$20=TRUE,x,x0) -> -0.12 | F159: =IF(Sheet1!D$20=TRUE,y0+d0*(x-x0),y0) -> 0.883 | H159: =IF(Sheet1!$D$23=TRUE,x,x0) -> -0.12 | I159: =IF(Sheet1!$D$23=TRUE,y0+d0*(x-x0)+e0*(x-x0)^2,y0) -> 0.890 | K159: =IF(Sheet1!$D$25=TRUE,x,x0) -> 0.00 | L159: =IF(Sheet1!$D$25=TRUE,y0+d0*(x-x0)+e0*(x-x0)^2+f0*(x-x0)^3,y0) -> 1.000 | N159: =IF(Sheet1!$D$27=TRUE,x,x0) -> -0.12 | O159: =IF(Sheet1!$D$27=TRUE,y0+d0*(x-x0)+e0*(x-x0)^2+f0*(x-x0)^3+g0*(x-x0)^4,y0) -> 0.890 | Q159: =IF(Sheet1!$D$30=TRUE,x,x0) -> -0.12 | R159: =IF(Sheet1!$D$30=TRUE,y0+d0*(x-x0)+e0*(x-x0)^2+f0*(x-x0)^3+g0*(x-x0)^4+h0*(x-x0)^5,y0) -> 0.890 | T159: =IF(Sheet1!$D$33=TRUE,x,x0) -> -0.12 | U159: =IF(Sheet1!$D$33=TRUE,y0+d0*(x-x0)+e0*(x-x0)^2+f0*(x-x0)^3+g0*(x-x0)^4+h0*(x-x0)^5+i0*(x-x0)^6,y0) -> 0.890
C160: -0.104 | D160: 0.90 | E160: =IF(Sheet1!D$20=TRUE,x,x0) -> -0.10 | F160: =IF(Sheet1!D$20=TRUE,y0+d0*(x-x0),y0) -> 0.895 | H160: =IF(Sheet1!$D$23=TRUE,x,x0) -> -0.10 | I160: =IF(Sheet1!$D$23=TRUE,y0+d0*(x-x0)+e0*(x-x0)^2,y0) -> 0.901 | K160: =IF(Sheet1!$D$25=TRUE,x,x0) -> 0.00 | L160: =IF(Sheet1!$D$25=TRUE,y0+d0*(x-x0)+e0*(x-x0)^2+f0*(x-x0)^3,y0) -> 1.000 | N160: =IF(Sheet1!$D$27=TRUE,x,x0) -> -0.10 | O160: =IF(Sheet1!$D$27=TRUE,y0+d0*(x-x0)+e0*(x-x0)^2+f0*(x-x0)^3+g0*(x-x0)^4,y0) -> 0.901 | Q160: =IF(Sheet1!$D$30=TRUE,x,x0) -> -0.10 | R160: =IF(Sheet1!$D$30=TRUE,y0+d0*(x-x0)+e0*(x-x0)^2+f0*(x-x0)^3+g0*(x-x0)^4+h0*(x-x0)^5,y0) -> 0.901 | T160: =IF(Sheet1!$D$33=TRUE,x,x0) -> -0.10 | U160: =IF(Sheet1!$D$33=TRUE,y0+d0*(x-x0)+e0*(x-x0)^2+f0*(x-x0)^3+g0*(x-x0)^4+h0*(x-x0)^5+i0*(x-x0)^6,y0) -> 0.901
C161: -0.092 | D161: 0.91 | E161: =IF(Sheet1!D$20=TRUE,x,x0) -> -0.09 | F161: =IF(Sheet1!D$20=TRUE,y0+d0*(x-x0),y0) -> 0.907 | H161: =IF(Sheet1!$D$23=TRUE,x,x0) -> -0.09 | I161: =IF(Sheet1!$D$23=TRUE,y0+d0*(x-x0)+e0*(x-x0)^2,y0) -> 0.912 | K161: =IF(Sheet1!$D$25=TRUE,x,x0) -> 0.00 | L161: =IF(Sheet1!$D$25=TRUE,y0+d0*(x-x0)+e0*(x-x0)^2+f0*(x-x0)^3,y0) -> 1.000 | N161: =IF(Sheet1!$D$27=TRUE,x,x0) -> -0.09 | O161: =IF(Sheet1!$D$27=TRUE,y0+d0*(x-x0)+e0*(x-x0)^2+f0*(x-x0)^3+g0*(x-x0)^4,y0) -> 0.912 | Q161: =IF(Sheet1!$D$30=TRUE,x,x0) -> -0.09 | R161: =IF(Sheet1!$D$30=TRUE,y0+d0*(x-x0)+e0*(x-x0)^2+f0*(x-x0)^3+g0*(x-x0)^4+h0*(x-x0)^5,y0) -> 0.912 | T161: =IF(Sheet1!$D$33=TRUE,x,x0) -> -0.09 | U161: =IF(Sheet1!$D$33=TRUE,y0+d0*(x-x0)+e0*(x-x0)^2+f0*(x-x0)^3+g0*(x-x0)^4+h0*(x-x0)^5+i0*(x-x0)^6,y0) -> 0.912
C162: -0.080 | D162: 0.92 | E162: =IF(Sheet1!D$20=TRUE,x,x0) -> -0.08 | F162: =IF(Sheet1!D$20=TRUE,y0+d0*(x-x0),y0) -> 0.920 | H162: =IF(Sheet1!$D$23=TRUE,x,x0) -> -0.08 | I162: =IF(Sheet1!$D$23=TRUE,y0+d0*(x-x0)+e0*(x-x0)^2,y0) -> 0.923 | K162: =IF(Sheet1!$D$25=TRUE,x,x0) -> 0.00 | L162: =IF(Sheet1!$D$25=TRUE,y0+d0*(x-x0)+e0*(x-x0)^2+f0*(x-x0)^3,y0) -> 1.000 | N162: =IF(Sheet1!$D$27=TRUE,x,x0) -> -0.08 | O162: =IF(Sheet1!$D$27=TRUE,y0+d0*(x-x0)+e0*(x-x0)^2+f0*(x-x0)^3+g0*(x-x0)^4,y0) -> 0.923 | Q162: =IF(Sheet1!$D$30=TRUE,x,x0) -> -0.08 | R162: =IF(Sheet1!$D$30=TRUE,y0+d0*(x-x0)+e0*(x-x0)^2+f0*(x-x0)^3+g0*(x-x0)^4+h0*(x-x0)^5,y0) -> 0.923 | T162: =IF(Sheet1!$D$33=TRUE,x,x0) -> -0.08 | U162: =IF(Sheet1!$D$33=TRUE,y0+d0*(x-x0)+e0*(x-x0)^2+f0*(x-x0)^3+g0*(x-x0)^4+h0*(x-x0)^5+i0*(x-x0)^6,y0) -> 0.923
C163: -0.068 | D163: 0.93 | E163: =IF(Sheet1!D$20=TRUE,x,x0) -> -0.07 | F163: =IF(Sheet1!D$20=TRUE,y0+d0*(x-x0),y0) -> 0.932 | H163: =IF(Sheet1!$D$23=TRUE,x,x0) -> -0.07 | I163: =IF(Sheet1!$D$23=TRUE,y0+d0*(x-x0)+e0*(x-x0)^2,y0) -> 0.934 | K163: =IF(Sheet1!$D$25=TRUE,x,x0) -> 0.00 | L163: =IF(Sheet1!$D$25=TRUE,y0+d0*(x-x0)+e0*(x-x0)^2+f0*(x-x0)^3,y0) -> 1.000 | N163: =IF(Sheet1!$D$27=TRUE,x,x0) -> -0.07 | O163: =IF(Sheet1!$D$27=TRUE,y0+d0*(x-x0)+e0*(x-x0)^2+f0*(x-x0)^3+g0*(x-x0)^4,y0) -> 0.934 | Q163: =IF(Sheet1!$D$30=TRUE,x,x0) -> -0.07 | R163: =IF(Sheet1!$D$30=TRUE,y0+d0*(x-x0)+e0*(x-x0)^2+f0*(x-x0)^3+g0*(x-x0)^4+h0*(x-x0)^5,y0) -> 0.934 | T163: =IF(Sheet1!$D$33=TRUE,x,x0) -> -0.07 | U163: =IF(Sheet1!$D$33=TRUE,y0+d0*(x-x0)+e0*(x-x0)^2+f0*(x-x0)^3+g0*(x-x0)^4+h0*(x-x0)^5+i0*(x-x0)^6,y0) -> 0.934
C164: -0.056 | D164: 0.95 | E164: =IF(Sheet1!D$20=TRUE,x,x0) -> -0.06 | F164: =IF(Sheet1!D$20=TRUE,y0+d0*(x-x0),y0) -> 0.944 | H164: =IF(Sheet1!$D$23=TRUE,x,x0) -> -0.06 | I164: =IF(Sheet1!$D$23=TRUE,y0+d0*(x-x0)+e0*(x-x0)^2,y0) -> 0.945 | K164: =IF(Sheet1!$D$25=TRUE,x,x0) -> 0.00 | L164: =IF(Sheet1!$D$25=TRUE,y0+d0*(x-x0)+e0*(x-x0)^2+f0*(x-x0)^3,y0) -> 1.000 | N164: =IF(Sheet1!$D$27=TRUE,x,x0) -> -0.06 | O164: =IF(Sheet1!$D$27=TRUE,y0+d0*(x-x0)+e0*(x-x0)^2+f0*(x-x0)^3+g0*(x-x0)^4,y0) -> 0.945 | Q164: =IF(Sheet1!$D$30=TRUE,x,x0) -> -0.06 | R164: =IF(Sheet1!$D$30=TRUE,y0+d0*(x-x0)+e0*(x-x0)^2+f0*(x-x0)^3+g0*(x-x0)^4+h0*(x-x0)^5,y0) -> 0.945 | T164: =IF(Sheet1!$D$33=TRUE,x,x0) -> -0.06 | U164: =IF(Sheet1!$D$33=TRUE,y0+d0*(x-x0)+e0*(x-x0)^2+f0*(x-x0)^3+g0*(x-x0)^4+h0*(x-x0)^5+i0*(x-x0)^6,y0) -> 0.945
C165: -0.044 | D165: 0.96 | E165: =IF(Sheet1!D$20=TRUE,x,x0) -> -0.04 | F165: =IF(Sheet1!D$20=TRUE,y0+d0*(x-x0),y0) -> 0.956 | H165: =IF(Sheet1!$D$23=TRUE,x,x0) -> -0.04 | I165: =IF(Sheet1!$D$23=TRUE,y0+d0*(x-x0)+e0*(x-x0)^2,y0) -> 0.957 | K165: =IF(Sheet1!$D$25=TRUE,x,x0) -> 0.00 | L165: =IF(Sheet1!$D$25=TRUE,y0+d0*(x-x0)+e0*(x-x0)^2+f0*(x-x0)^3,y0) -> 1.000 | N165: =IF(Sheet1!$D$27=TRUE,x,x0) -> -0.04 | O165: =IF(Sheet1!$D$27=TRUE,y0+d0*(x-x0)+e0*(x-x0)^2+f0*(x-x0)^3+g0*(x-x0)^4,y0) -> 0.957 | Q165: =IF(Sheet1!$D$30=TRUE,x,x0) -> -0.04 | R165: =IF(Sheet1!$D$30=TRUE,y0+d0*(x-x0)+e0*(x-x0)^2+f0*(x-x0)^3+g0*(x-x0)^4+h0*(x-x0)^5,y0) -> 0.957 | T165: =IF(Sheet1!$D$33=TRUE,x,x0) -> -0.04 | U165: =IF(Sheet1!$D$33=TRUE,y0+d0*(x-x0)+e0*(x-x0)^2+f0*(x-x0)^3+g0*(x-x0)^4+h0*(x-x0)^5+i0*(x-x0)^6,y0) -> 0.957
C166: -0.032 | D166: 0.97 | E166: =IF(Sheet1!D$20=TRUE,x,x0) -> -0.03 | F166: =IF(Sheet1!D$20=TRUE,y0+d0*(x-x0),y0) -> 0.968 | H166: =IF(Sheet1!$D$23=TRUE,x,x0) -> -0.03 | I166: =IF(Sheet1!$D$23=TRUE,y0+d0*(x-x0)+e0*(x-x0)^2,y0) -> 0.968 | K166: =IF(Sheet1!$D$25=TRUE,x,x0) -> 0.00 | L166: =IF(Sheet1!$D$25=TRUE,y0+d0*(x-x0)+e0*(x-x0)^2+f0*(x-x0)^3,y0) -> 1.000 | N166: =IF(Sheet1!$D$27=TRUE,x,x0) -> -0.03 | O166: =IF(Sheet1!$D$27=TRUE,y0+d0*(x-x0)+e0*(x-x0)^2+f0*(x-x0)^3+g0*(x-x0)^4,y0) -> 0.968 | Q166: =IF(Sheet1!$D$30=TRUE,x,x0) -> -0.03 | R166: =IF(Sheet1!$D$30=TRUE,y0+d0*(x-x0)+e0*(x-x0)^2+f0*(x-x0)^3+g0*(x-x0)^4+h0*(x-x0)^5,y0) -> 0.968 | T166: =IF(Sheet1!$D$33=TRUE,x,x0) -> -0.03 | U166: =IF(Sheet1!$D$33=TRUE,y0+d0*(x-x0)+e0*(x-x0)^2+f0*(x-x0)^3+g0*(x-x0)^4+h0*(x-x0)^5+i0*(x-x0)^6,y0) -> 0.968
C167: -0.020 | D167: 0.98 | E167: =IF(Sheet1!D$20=TRUE,x,x0) -> -0.02 | F167: =IF(Sheet1!D$20=TRUE,y0+d0*(x-x0),y0) -> 0.980 | H167: =IF(Sheet1!$D$23=TRUE,x,x0) -> -0.02 | I167: =IF(Sheet1!$D$23=TRUE,y0+d0*(x-x0)+e0*(x-x0)^2,y0) -> 0.980 | K167: =IF(Sheet1!$D$25=TRUE,x,x0) -> 0.00 | L167: =IF(Sheet1!$D$25=TRUE,y0+d0*(x-x0)+e0*(x-x0)^2+f0*(x-x0)^3,y0) -> 1.000 | N167: =IF(Sheet1!$D$27=TRUE,x,x0) -> -0.02 | O167: =IF(Sheet1!$D$27=TRUE,y0+d0*(x-x0)+e0*(x-x0)^2+f0*(x-x0)^3+g0*(x-x0)^4,y0) -> 0.980 | Q167: =IF(Sheet1!$D$30=TRUE,x,x0) -> -0.02 | R167: =IF(Sheet1!$D$30=TRUE,y0+d0*(x-x0)+e0*(x-x0)^2+f0*(x-x0)^3+g0*(x-x0)^4+h0*(x-x0)^5,y0) -> 0.980 | T167: =IF(Sheet1!$D$33=TRUE,x,x0) -> -0.02 | U167: =IF(Sheet1!$D$33=TRUE,y0+d0*(x-x0)+e0*(x-x0)^2+f0*(x-x0)^3+g0*(x-x0)^4+h0*(x-x0)^5+i0*(x-x0)^6,y0) -> 0.980
C168: -0.008 | D168: 0.99 | E168: =IF(Sheet1!D$20=TRUE,x,x0) -> -0.01 | F168: =IF(Sheet1!D$20=TRUE,y0+d0*(x-x0),y0) -> 0.992 | H168: =IF(Sheet1!$D$23=TRUE,x,x0) -> -0.01 | I168: =IF(Sheet1!$D$23=TRUE,y0+d0*(x-x0)+e0*(x-x0)^2,y0) -> 0.992 | K168: =IF(Sheet1!$D$25=TRUE,x,x0) -> 0.00 | L168: =IF(Sheet1!$D$25=TRUE,y0+d0*(x-x0)+e0*(x-x0)^2+f0*(x-x0)^3,y0) -> 1.000 | N168: =IF(Sheet1!$D$27=TRUE,x,x0) -> -0.01 | O168: =IF(Sheet1!$D$27=TRUE,y0+d0*(x-x0)+e0*(x-x0)^2+f0*(x-x0)^3+g0*(x-x0)^4,y0) -> 0.992 | Q168: =IF(Sheet1!$D$30=TRUE,x,x0) -> -0.01 | R168: =IF(Sheet1!$D$30=TRUE,y0+d0*(x-x0)+e0*(x-x0)^2+f0*(x-x0)^3+g0*(x-x0)^4+h0*(x-x0)^5,y0) -> 0.992 | T168: =IF(Sheet1!$D$33=TRUE,x,x0) -> -0.01 | U168: =IF(Sheet1!$D$33=TRUE,y0+d0*(x-x0)+e0*(x-x0)^2+f0*(x-x0)^3+g0*(x-x0)^4+h0*(x-x0)^5+i0*(x-x0)^6,y0) -> 0.992
C169: 0.004 | D169: 1.00 | E169: =IF(Sheet1!D$20=TRUE,x,x0) -> 0.00 | F169: =IF(Sheet1!D$20=TRUE,y0+d0*(x-x0),y0) -> 1.004 | H169: =IF(Sheet1!$D$23=TRUE,x,x0) -> 0.00 | I169: =IF(Sheet1!$D$23=TRUE,y0+d0*(x-x0)+e0*(x-x0)^2,y0) -> 1.004 | K169: =IF(Sheet1!$D$25=TRUE,x,x0) -> 0.00 | L169: =IF(Sheet1!$D$25=TRUE,y0+d0*(x-x0)+e0*(x-x0)^2+f0*(x-x0)^3,y0) -> 1.000 | N169: =IF(Sheet1!$D$27=TRUE,x,x0) -> 0.00 | O169: =IF(Sheet1!$D$27=TRUE,y0+d0*(x-x0)+e0*(x-x0)^2+f0*(x-x0)^3+g0*(x-x0)^4,y0) -> 1.004 | Q169: =IF(Sheet1!$D$30=TRUE,x,x0) -> 0.00 | R169: =IF(Sheet1!$D$30=TRUE,y0+d0*(x-x0)+e0*(x-x0)^2+f0*(x-x0)^3+g0*(x-x0)^4+h0*(x-x0)^5,y0) -> 1.004 | T169: =IF(Sheet1!$D$33=TRUE,x,x0) -> 0.00 | U169: =IF(Sheet1!$D$33=TRUE,y0+d0*(x-x0)+e0*(x-x0)^2+f0*(x-x0)^3+g0*(x-x0)^4+h0*(x-x0)^5+i0*(x-x0)^6,y0) -> 1.004
C170: 0.016 | D170: 1.02 | E170: =IF(Sheet1!D$20=TRUE,x,x0) -> 0.02 | F170: =IF(Sheet1!D$20=TRUE,y0+d0*(x-x0),y0) -> 1.016 | H170: =IF(Sheet1!$D$23=TRUE,x,x0) -> 0.02 | I170: =IF(Sheet1!$D$23=TRUE,y0+d0*(x-x0)+e0*(x-x0)^2,y0) -> 1.016 | K170: =IF(Sheet1!$D$25=TRUE,x,x0) -> 0.00 | L170: =IF(Sheet1!$D$25=TRUE,y0+d0*(x-x0)+e0*(x-x0)^2+f0*(x-x0)^3,y0) -> 1.000 | N170: =IF(Sheet1!$D$27=TRUE,x,x0) -> 0.02 | O170: =IF(Sheet1!$D$27=TRUE,y0+d0*(x-x0)+e0*(x-x0)^2+f0*(x-x0)^3+g0*(x-x0)^4,y0) -> 1.016 | Q170: =IF(Sheet1!$D$30=TRUE,x,x0) -> 0.02 | R170: =IF(Sheet1!$D$30=TRUE,y0+d0*(x-x0)+e0*(x-x0)^2+f0*(x-x0)^3+g0*(x-x0)^4+h0*(x-x0)^5,y0) -> 1.016 | T170: =IF(Sheet1!$D$33=TRUE,x,x0) -> 0.02 | U170: =IF(Sheet1!$D$33=TRUE,y0+d0*(x-x0)+e0*(x-x0)^2+f0*(x-x0)^3+g0*(x-x0)^4+h0*(x-x0)^5+i0*(x-x0)^6,y0) -> 1.016
C171: 0.028 | D171: 1.03 | E171: =IF(Sheet1!D$20=TRUE,x,x0) -> 0.03 | F171: =IF(Sheet1!D$20=TRUE,y0+d0*(x-x0),y0) -> 1.028 | H171: =IF(Sheet1!$D$23=TRUE,x,x0) -> 0.03 | I171: =IF(Sheet1!$D$23=TRUE,y0+d0*(x-x0)+e0*(x-x0)^2,y0) -> 1.029 | K171: =IF(Sheet1!$D$25=TRUE,x,x0) -> 0.00 | L171: =IF(Sheet1!$D$25=TRUE,y0+d0*(x-x0)+e0*(x-x0)^2+f0*(x-x0)^3,y0) -> 1.000 | N171: =IF(Sheet1!$D$27=TRUE,x,x0) -> 0.03 | O171: =IF(Sheet1!$D$27=TRUE,y0+d0*(x-x0)+e0*(x-x0)^2+f0*(x-x0)^3+g0*(x-x0)^4,y0) -> 1.029 | Q171: =IF(Sheet1!$D$30=TRUE,x,x0) -> 0.03 | R171: =IF(Sheet1!$D$30=TRUE,y0+d0*(x-x0)+e0*(x-x0)^2+f0*(x-x0)^3+g0*(x-x0)^4+h0*(x-x0)^5,y0) -> 1.029 | T171: =IF(Sheet1!$D$33=TRUE,x,x0) -> 0.03 | U171: =IF(Sheet1!$D$33=TRUE,y0+d0*(x-x0)+e0*(x-x0)^2+f0*(x-x0)^3+g0*(x-x0)^4+h0*(x-x0)^5+i0*(x-x0)^6,y0) -> 1.029
C172: 0.040 | D172: 1.04 | E172: =IF(Sheet1!D$20=TRUE,x,x0) -> 0.04 | F172: =IF(Sheet1!D$20=TRUE,y0+d0*(x-x0),y0) -> 1.040 | H172: =IF(Sheet1!$D$23=TRUE,x,x0) -> 0.04 | I172: =IF(Sheet1!$D$23=TRUE,y0+d0*(x-x0)+e0*(x-x0)^2,y0) -> 1.041 | K172: =IF(Sheet1!$D$25=TRUE,x,x0) -> 0.00 | L172: =IF(Sheet1!$D$25=TRUE,y0+d0*(x-x0)+e0*(x-x0)^2+f0*(x-x0)^3,y0) -> 1.000 | N172: =IF(Sheet1!$D$27=TRUE,x,x0) -> 0.04 | O172: =IF(Sheet1!$D$27=TRUE,y0+d0*(x-x0)+e0*(x-x0)^2+f0*(x-x0)^3+g0*(x-x0)^4,y0) -> 1.041 | Q172: =IF(Sheet1!$D$30=TRUE,x,x0) -> 0.04 | R172: =IF(Sheet1!$D$30=TRUE,y0+d0*(x-x0)+e0*(x-x0)^2+f0*(x-x0)^3+g0*(x-x0)^4+h0*(x-x0)^5,y0) -> 1.041 | T172: =IF(Sheet1!$D$33=TRUE,x,x0) -> 0.04 | U172: =IF(Sheet1!$D$33=TRUE,y0+d0*(x-x0)+e0*(x-x0)^2+f0*(x-x0)^3+g0*(x-x0)^4+h0*(x-x0)^5+i0*(x-x0)^6,y0) -> 1.041
C173: 0.052 | D173: 1.05 | E173: =IF(Sheet1!D$20=TRUE,x,x0) -> 0.05 | F173: =IF(Sheet1!D$20=TRUE,y0+d0*(x-x0),y0) -> 1.052 | H173: =IF(Sheet1!$D$23=TRUE,x,x0) -> 0.05 | I173: =IF(Sheet1!$D$23=TRUE,y0+d0*(x-x0)+e0*(x-x0)^2,y0) -> 1.054 | K173: =IF(Sheet1!$D$25=TRUE,x,x0) -> 0.00 | L173: =IF(Sheet1!$D$25=TRUE,y0+d0*(x-x0)+e0*(x-x0)^2+f0*(x-x0)^3,y0) -> 1.000 | N173: =IF(Sheet1!$D$27=TRUE,x,x0) -> 0.05 | O173: =IF(Sheet1!$D$27=TRUE,y0+d0*(x-x0)+e0*(x-x0)^2+f0*(x-x0)^3+g0*(x-x0)^4,y0) -> 1.054 | Q173: =IF(Sheet1!$D$30=TRUE,x,x0) -> 0.05 | R173: =IF(Sheet1!$D$30=TRUE,y0+d0*(x-x0)+e0*(x-x0)^2+f0*(x-x0)^3+g0*(x-x0)^4+h0*(x-x0)^5,y0) -> 1.054 | T173: =IF(Sheet1!$D$33=TRUE,x,x0) -> 0.05 | U173: =IF(Sheet1!$D$33=TRUE,y0+d0*(x-x0)+e0*(x-x0)^2+f0*(x-x0)^3+g0*(x-x0)^4+h0*(x-x0)^5+i0*(x-x0)^6,y0) -> 1.054
C174: 0.064 | D174: 1.07 | E174: =IF(Sheet1!D$20=TRUE,x,x0) -> 0.06 | F174: =IF(Sheet1!D$20=TRUE,y0+d0*(x-x0),y0) -> 1.064 | H174: =IF(Sheet1!$D$23=TRUE,x,x0) -> 0.06 | I174: =IF(Sheet1!$D$23=TRUE,y0+d0*(x-x0)+e0*(x-x0)^2,y0) -> 1.066 | K174: =IF(Sheet1!$D$25=TRUE,x,x0) -> 0.00 | L174: =IF(Sheet1!$D$25=TRUE,y0+d0*(x-x0)+e0*(x-x0)^2+f0*(x-x0)^3,y0) -> 1.000 | N174: =IF(Sheet1!$D$27=TRUE,x,x0) -> 0.06 | O174: =IF(Sheet1!$D$27=TRUE,y0+d0*(x-x0)+e0*(x-x0)^2+f0*(x-x0)^3+g0*(x-x0)^4,y0) -> 1.067 | Q174: =IF(Sheet1!$D$30=TRUE,x,x0) -> 0.06 | R174: =IF(Sheet1!$D$30=TRUE,y0+d0*(x-x0)+e0*(x-x0)^2+f0*(x-x0)^3+g0*(x-x0)^4+h0*(x-x0)^5,y0) -> 1.067 | T174: =IF(Sheet1!$D$33=TRUE,x,x0) -> 0.06 | U174: =IF(Sheet1!$D$33=TRUE,y0+d0*(x-x0)+e0*(x-x0)^2+f0*(x-x0)^3+g0*(x-x0)^4+h0*(x-x0)^5+i0*(x-x0)^6,y0) -> 1.067
C175: 0.076 | D175: 1.08 | E175: =IF(Sheet1!D$20=TRUE,x,x0) -> 0.08 | F175: =IF(Sheet1!D$20=TRUE,y0+d0*(x-x0),y0) -> 1.076 | H175: =IF(Sheet1!$D$23=TRUE,x,x0) -> 0.08 | I175: =IF(Sheet1!$D$23=TRUE,y0+d0*(x-x0)+e0*(x-x0)^2,y0) -> 1.079 | K175: =IF(Sheet1!$D$25=TRUE,x,x0) -> 0.00 | L175: =IF(Sheet1!$D$25=TRUE,y0+d0*(x-x0)+e0*(x-x0)^2+f0*(x-x0)^3,y0) -> 1.000 | N175: =IF(Sheet1!$D$27=TRUE,x,x0) -> 0.08 | O175: =IF(Sheet1!$D$27=TRUE,y0+d0*(x-x0)+e0*(x-x0)^2+f0*(x-x0)^3+g0*(x-x0)^4,y0) -> 1.079 | Q175: =IF(Sheet1!$D$30=TRUE,x,x0) -> 0.08 | R175: =IF(Sheet1!$D$30=TRUE,y0+d0*(x-x0)+e0*(x-x0)^2+f0*(x-x0)^3+g0*(x-x0)^4+h0*(x-x0)^5,y0) -> 1.079 | T175: =IF(Sheet1!$D$33=TRUE,x,x0) -> 0.08 | U175: =IF(Sheet1!$D$33=TRUE,y0+d0*(x-x0)+e0*(x-x0)^2+f0*(x-x0)^3+g0*(x-x0)^4+h0*(x-x0)^5+i0*(x-x0)^6,y0) -> 1.079
C176: 0.088 | D176: 1.09 | E176: =IF(Sheet1!D$20=TRUE,x,x0) -> 0.09 | F176: =IF(Sheet1!D$20=TRUE,y0+d0*(x-x0),y0) -> 1.089 | H176: =IF(Sheet1!$D$23=TRUE,x,x0) -> 0.09 | I176: =IF(Sheet1!$D$23=TRUE,y0+d0*(x-x0)+e0*(x-x0)^2,y0) -> 1.092 | K176: =IF(Sheet1!$D$25=TRUE,x,x0) -> 0.00 | L176: =IF(Sheet1!$D$25=TRUE,y0+d0*(x-x0)+e0*(x-x0)^2+f0*(x-x0)^3,y0) -> 1.000 | N176: =IF(Sheet1!$D$27=TRUE,x,x0) -> 0.09 | O176: =IF(Sheet1!$D$27=TRUE,y0+d0*(x-x0)+e0*(x-x0)^2+f0*(x-x0)^3+g0*(x-x0)^4,y0) -> 1.093 | Q176: =IF(Sheet1!$D$30=TRUE,x,x0) -> 0.09 | R176: =IF(Sheet1!$D$30=TRUE,y0+d0*(x-x0)+e0*(x-x0)^2+f0*(x-x0)^3+g0*(x-x0)^4+h0*(x-x0)^5,y0) -> 1.093 | T176: =IF(Sheet1!$D$33=TRUE,x,x0) -> 0.09 | U176: =IF(Sheet1!$D$33=TRUE,y0+d0*(x-x0)+e0*(x-x0)^2+f0*(x-x0)^3+g0*(x-x0)^4+h0*(x-x0)^5+i0*(x-x0)^6,y0) -> 1.093
C177: 0.100 | D177: 1.11 | E177: =IF(Sheet1!D$20=TRUE,x,x0) -> 0.10 | F177: =IF(Sheet1!D$20=TRUE,y0+d0*(x-x0),y0) -> 1.101 | H177: =IF(Sheet1!$D$23=TRUE,x,x0) -> 0.10 | I177: =IF(Sheet1!$D$23=TRUE,y0+d0*(x-x0)+e0*(x-x0)^2,y0) -> 1.106 | K177: =IF(Sheet1!$D$25=TRUE,x,x0) -> 0.00 | L177: =IF(Sheet1!$D$25=TRUE,y0+d0*(x-x0)+e0*(x-x0)^2+f0*(x-x0)^3,y0) -> 1.000 | N177: =IF(Sheet1!$D$27=TRUE,x,x0) -> 0.10 | O177: =IF(Sheet1!$D$27=TRUE,y0+d0*(x-x0)+e0*(x-x0)^2+f0*(x-x0)^3+g0*(x-x0)^4,y0) -> 1.106 | Q177: =IF(Sheet1!$D$30=TRUE,x,x0) -> 0.10 | R177: =IF(Sheet1!$D$30=TRUE,y0+d0*(x-x0)+e0*(x-x0)^2+f0*(x-x0)^3+g0*(x-x0)^4+h0*(x-x0)^5,y0) -> 1.106 | T177: =IF(Sheet1!$D$33=TRUE,x,x0) -> 0.10 | U177: =IF(Sheet1!$D$33=TRUE,y0+d0*(x-x0)+e0*(x-x0)^2+f0*(x-x0)^3+g0*(x-x0)^4+h0*(x-x0)^5+i0*(x-x0)^6,y0) -> 1.106
C178: 0.112 | D178: 1.12 | E178: =IF(Sheet1!D$20=TRUE,x,x0) -> 0.11 | F178: =IF(Sheet1!D$20=TRUE,y0+d0*(x-x0),y0) -> 1.113 | H178: =IF(Sheet1!$D$23=TRUE,x,x0) -> 0.11 | I178: =IF(Sheet1!$D$23=TRUE,y0+d0*(x-x0)+e0*(x-x0)^2,y0) -> 1.119 | K178: =IF(Sheet1!$D$25=TRUE,x,x0) -> 0.00 | L178: =IF(Sheet1!$D$25=TRUE,y0+d0*(x-x0)+e0*(x-x0)^2+f0*(x-x0)^3,y0) -> 1.000 | N178: =IF(Sheet1!$D$27=TRUE,x,x0) -> 0.11 | O178: =IF(Sheet1!$D$27=TRUE,y0+d0*(x-x0)+e0*(x-x0)^2+f0*(x-x0)^3+g0*(x-x0)^4,y0) -> 1.119 | Q178: =IF(Sheet1!$D$30=TRUE,x,x0) -> 0.11 | R178: =IF(Sheet1!$D$30=TRUE,y0+d0*(x-x0)+e0*(x-x0)^2+f0*(x-x0)^3+g0*(x-x0)^4+h0*(x-x0)^5,y0) -> 1.119 | T178: =IF(Sheet1!$D$33=TRUE,x,x0) -> 0.11 | U178: =IF(Sheet1!$D$33=TRUE,y0+d0*(x-x0)+e0*(x-x0)^2+f0*(x-x0)^3+g0*(x-x0)^4+h0*(x-x0)^5+i0*(x-x0)^6,y0) -> 1.119
C179: 0.124 | D179: 1.13 | E179: =IF(Sheet1!D$20=TRUE,x,x0) -> 0.12 | F179: =IF(Sheet1!D$20=TRUE,y0+d0*(x-x0),y0) -> 1.125 | H179: =IF(Sheet1!$D$23=TRUE,x,x0) -> 0.12 | I179: =IF(Sheet1!$D$23=TRUE,y0+d0*(x-x0)+e0*(x-x0)^2,y0) -> 1.133 | K179: =IF(Sheet1!$D$25=TRUE,x,x0) -> 0.00 | L179: =IF(Sheet1!$D$25=TRUE,y0+d0*(x-x0)+e0*(x-x0)^2+f0*(x-x0)^3,y0) -> 1.000 | N179: =IF(Sheet1!$D$27=TRUE,x,x0) -> 0.12 | O179: =IF(Sheet1!$D$27=TRUE,y0+d0*(x-x0)+e0*(x-x0)^2+f0*(x-x0)^3+g0*(x-x0)^4,y0) -> 1.133 | Q179: =IF(Sheet1!$D$30=TRUE,x,x0) -> 0.12 | R179: =IF(Sheet1!$D$30=TRUE,y0+d0*(x-x0)+e0*(x-x0)^2+f0*(x-x0)^3+g0*(x-x0)^4+h0*(x-x0)^5,y0) -> 1.133 | T179: =IF(Sheet1!$D$33=TRUE,x,x0) -> 0.12 | U179: =IF(Sheet1!$D$33=TRUE,y0+d0*(x-x0)+e0*(x-x0)^2+f0*(x-x0)^3+g0*(x-x0)^4+h0*(x-x0)^5+i0*(x-x0)^6,y0) -> 1.133
C180: 0.136 | D180: 1.15 | E180: =IF(Sheet1!D$20=TRUE,x,x0) -> 0.14 | F180: =IF(Sheet1!D$20=TRUE,y0+d0*(x-x0),y0) -> 1.137 | H180: =IF(Sheet1!$D$23=TRUE,x,x0) -> 0.14 | I180: =IF(Sheet1!$D$23=TRUE,y0+d0*(x-x0)+e0*(x-x0)^2,y0) -> 1.146 | K180: =IF(Sheet1!$D$25=TRUE,x,x0) -> 0.00 | L180: =IF(Sheet1!$D$25=TRUE,y0+d0*(x-x0)+e0*(x-x0)^2+f0*(x-x0)^3,y0) -> 1.000 | N180: =IF(Sheet1!$D$27=TRUE,x,x0) -> 0.14 | O180: =IF(Sheet1!$D$27=TRUE,y0+d0*(x-x0)+e0*(x-x0)^2+f0*(x-x0)^3+g0*(x-x0)^4,y0) -> 1.147 | Q180: =IF(Sheet1!$D$30=TRUE,x,x0) -> 0.14 | R180: =IF(Sheet1!$D$30=TRUE,y0+d0*(x-x0)+e0*(x-x0)^2+f0*(x-x0)^3+g0*(x-x0)^4+h0*(x-x0)^5,y0) -> 1.147 | T180: =IF(Sheet1!$D$33=TRUE,x,x0) -> 0.14 | U180: =IF(Sheet1!$D$33=TRUE,y0+d0*(x-x0)+e0*(x-x0)^2+f0*(x-x0)^3+g0*(x-x0)^4+h0*(x-x0)^5+i0*(x-x0)^6,y0) -> 1.147
C181: 0.148 | D181: 1.16 | E181: =IF(Sheet1!D$20=TRUE,x,x0) -> 0.15 | F181: =IF(Sheet1!D$20=TRUE,y0+d0*(x-x0),y0) -> 1.149 | H181: =IF(Sheet1!$D$23=TRUE,x,x0) -> 0.15 | I181: =IF(Sheet1!$D$23=TRUE,y0+d0*(x-x0)+e0*(x-x0)^2,y0) -> 1.160 | K181: =IF(Sheet1!$D$25=TRUE,x,x0) -> 0.00 | L181: =IF(Sheet1!$D$25=TRUE,y0+d0*(x-x0)+e0*(x-x0)^2+f0*(x-x0)^3,y0) -> 1.000 | N181: =IF(Sheet1!$D$27=TRUE,x,x0) -> 0.15 | O181: =IF(Sheet1!$D$27=TRUE,y0+d0*(x-x0)+e0*(x-x0)^2+f0*(x-x0)^3+g0*(x-x0)^4,y0) -> 1.161 | Q181: =IF(Sheet1!$D$30=TRUE,x,x0) -> 0.15 | R181: =IF(Sheet1!$D$30=TRUE,y0+d0*(x-x0)+e0*(x-x0)^2+f0*(x-x0)^3+g0*(x-x0)^4+h0*(x-x0)^5,y0) -> 1.161 | T181: =IF(Sheet1!$D$33=TRUE,x,x0) -> 0.15 | U181: =IF(Sheet1!$D$33=TRUE,y0+d0*(x-x0)+e0*(x-x0)^2+f0*(x-x0)^3+g0*(x-x0)^4+h0*(x-x0)^5+i0*(x-x0)^6,y0) -> 1.161
C182: 0.160 | D182: 1.17 | E182: =IF(Sheet1!D$20=TRUE,x,x0) -> 0.16 | F182: =IF(Sheet1!D$20=TRUE,y0+d0*(x-x0),y0) -> 1.161 | H182: =IF(Sheet1!$D$23=TRUE,x,x0) -> 0.16 | I182: =IF(Sheet1!$D$23=TRUE,y0+d0*(x-x0)+e0*(x-x0)^2,y0) -> 1.174 | K182: =IF(Sheet1!$D$25=TRUE,x,x0) -> 0.00 | L182: =IF(Sheet1!$D$25=TRUE,y0+d0*(x-x0)+e0*(x-x0)^2+f0*(x-x0)^3,y0) -> 1.000 | N182: =IF(Sheet1!$D$27=TRUE,x,x0) -> 0.16 | O182: =IF(Sheet1!$D$27=TRUE,y0+d0*(x-x0)+e0*(x-x0)^2+f0*(x-x0)^3+g0*(x-x0)^4,y0) -> 1.175 | Q182: =IF(Sheet1!$D$30=TRUE,x,x0) -> 0.16 | R182: =IF(Sheet1!$D$30=TRUE,y0+d0*(x-x0)+e0*(x-x0)^2+f0*(x-x0)^3+g0*(x-x0)^4+h0*(x-x0)^5,y0) -> 1.175 | T182: =IF(Sheet1!$D$33=TRUE,x,x0) -> 0.16 | U182: =IF(Sheet1!$D$33=TRUE,y0+d0*(x-x0)+e0*(x-x0)^2+f0*(x-x0)^3+g0*(x-x0)^4+h0*(x-x0)^5+i0*(x-x0)^6,y0) -> 1.175
C183: 0.172 | D183: 1.19 | E183: =IF(Sheet1!D$20=TRUE,x,x0) -> 0.17 | F183: =IF(Sheet1!D$20=TRUE,y0+d0*(x-x0),y0) -> 1.173 | H183: =IF(Sheet1!$D$23=TRUE,x,x0) -> 0.17 | I183: =IF(Sheet1!$D$23=TRUE,y0+d0*(x-x0)+e0*(x-x0)^2,y0) -> 1.188 | K183: =IF(Sheet1!$D$25=TRUE,x,x0) -> 0.00 | L183: =IF(Sheet1!$D$25=TRUE,y0+d0*(x-x0)+e0*(x-x0)^2+f0*(x-x0)^3,y0) -> 1.000 | N183: =IF(Sheet1!$D$27=TRUE,x,x0) -> 0.17 | O183: =IF(Sheet1!$D$27=TRUE,y0+d0*(x-x0)+e0*(x-x0)^2+f0*(x-x0)^3+g0*(x-x0)^4,y0) -> 1.189 | Q183: =IF(Sheet1!$D$30=TRUE,x,x0) -> 0.17 | R183: =IF(Sheet1!$D$30=TRUE,y0+d0*(x-x0)+e0*(x-x0)^2+f0*(x-x0)^3+g0*(x-x0)^4+h0*(x-x0)^5,y0) -> 1.189 | T183: =IF(Sheet1!$D$33=TRUE,x,x0) -> 0.17 | U183: =IF(Sheet1!$D$33=TRUE,y0+d0*(x-x0)+e0*(x-x0)^2+f0*(x-x0)^3+g0*(x-x0)^4+h0*(x-x0)^5+i0*(x-x0)^6,y0) -> 1.189
C184: 0.184 | D184: 1.20 | E184: =IF(Sheet1!D$20=TRUE,x,x0) -> 0.18 | F184: =IF(Sheet1!D$20=TRUE,y0+d0*(x-x0),y0) -> 1.185 | H184: =IF(Sheet1!$D$23=TRUE,x,x0) -> 0.18 | I184: =IF(Sheet1!$D$23=TRUE,y0+d0*(x-x0)+e0*(x-x0)^2,y0) -> 1.202 | K184: =IF(Sheet1!$D$25=TRUE,x,x0) -> 0.00 | L184: =IF(Sheet1!$D$25=TRUE,y0+d0*(x-x0)+e0*(x-x0)^2+f0*(x-x0)^3,y0) -> 1.000 | N184: =IF(Sheet1!$D$27=TRUE,x,x0) -> 0.18 | O184: =IF(Sheet1!$D$27=TRUE,y0+d0*(x-x0)+e0*(x-x0)^2+f0*(x-x0)^3+g0*(x-x0)^4,y0) -> 1.203 | Q184: =IF(Sheet1!$D$30=TRUE,x,x0) -> 0.18 | R184: =IF(Sheet1!$D$30=TRUE,y0+d0*(x-x0)+e0*(x-x0)^2+f0*(x-x0)^3+g0*(x-x0)^4+h0*(x-x0)^5,y0) -> 1.203 | T184: =IF(Sheet1!$D$33=TRUE,x,x0) -> 0.18 | U184: =IF(Sheet1!$D$33=TRUE,y0+d0*(x-x0)+e0*(x-x0)^2+f0*(x-x0)^3+g0*(x-x0)^4+h0*(x-x0)^5+i0*(x-x0)^6,y0) -> 1.203
C185: 0.196 | D185: 1.22 | E185: =IF(Sheet1!D$20=TRUE,x,x0) -> 0.20 | F185: =IF(Sheet1!D$20=TRUE,y0+d0*(x-x0),y0) -> 1.197 | H185: =IF(Sheet1!$D$23=TRUE,x,x0) -> 0.20 | I185: =IF(Sheet1!$D$23=TRUE,y0+d0*(x-x0)+e0*(x-x0)^2,y0) -> 1.217 | K185: =IF(Sheet1!$D$25=TRUE,x,x0) -> 0.00 | L185: =IF(Sheet1!$D$25=TRUE,y0+d0*(x-x0)+e0*(x-x0)^2+f0*(x-x0)^3,y0) -> 1.000 | N185: =IF(Sheet1!$D$27=TRUE,x,x0) -> 0.20 | O185: =IF(Sheet1!$D$27=TRUE,y0+d0*(x-x0)+e0*(x-x0)^2+f0*(x-x0)^3+g0*(x-x0)^4,y0) -> 1.218 | Q185: =IF(Sheet1!$D$30=TRUE,x,x0) -> 0.20 | R185: =IF(Sheet1!$D$30=TRUE,y0+d0*(x-x0)+e0*(x-x0)^2+f0*(x-x0)^3+g0*(x-x0)^4+h0*(x-x0)^5,y0) -> 1.218 | T185: =IF(Sheet1!$D$33=TRUE,x,x0) -> 0.20 | U185: =IF(Sheet1!$D$33=TRUE,y0+d0*(x-x0)+e0*(x-x0)^2+f0*(x-x0)^3+g0*(x-x0)^4+h0*(x-x0)^5+i0*(x-x0)^6,y0) -> 1.218
C186: 0.208 | D186: 1.23 | E186: =IF(Sheet1!D$20=TRUE,x,x0) -> 0.21 | F186: =IF(Sheet1!D$20=TRUE,y0+d0*(x-x0),y0) -> 1.209 | H186: =IF(Sheet1!$D$23=TRUE,x,x0) -> 0.21 | I186: =IF(Sheet1!$D$23=TRUE,y0+d0*(x-x0)+e0*(x-x0)^2,y0) -> 1.231 | K186: =IF(Sheet1!$D$25=TRUE,x,x0) -> 0.00 | L186: =IF(Sheet1!$D$25=TRUE,y0+d0*(x-x0)+e0*(x-x0)^2+f0*(x-x0)^3,y0) -> 1.000 | N186: =IF(Sheet1!$D$27=TRUE,x,x0) -> 0.21 | O186: =IF(Sheet1!$D$27=TRUE,y0+d0*(x-x0)+e0*(x-x0)^2+f0*(x-x0)^3+g0*(x-x0)^4,y0) -> 1.233 | Q186: =IF(Sheet1!$D$30=TRUE,x,x0) -> 0.21 | R186: =IF(Sheet1!$D$30=TRUE,y0+d0*(x-x0)+e0*(x-x0)^2+f0*(x-x0)^3+g0*(x-x0)^4+h0*(x-x0)^5,y0) -> 1.233 | T186: =IF(Sheet1!$D$33=TRUE,x,x0) -> 0.21 | U186: =IF(Sheet1!$D$33=TRUE,y0+d0*(x-x0)+e0*(x-x0)^2+f0*(x-x0)^3+g0*(x-x0)^4+h0*(x-x0)^5+i0*(x-x0)^6,y0) -> 1.233
C187: 0.220 | D187: 1.25 | E187: =IF(Sheet1!D$20=TRUE,x,x0) -> 0.22 | F187: =IF(Sheet1!D$20=TRUE,y0+d0*(x-x0),y0) -> 1.221 | H187: =IF(Sheet1!$D$23=TRUE,x,x0) -> 0.22 | I187: =IF(Sheet1!$D$23=TRUE,y0+d0*(x-x0)+e0*(x-x0)^2,y0) -> 1.246 | K187: =IF(Sheet1!$D$25=TRUE,x,x0) -> 0.00 | L187: =IF(Sheet1!$D$25=TRUE,y0+d0*(x-x0)+e0*(x-x0)^2+f0*(x-x0)^3,y0) -> 1.000 | N187: =IF(Sheet1!$D$27=TRUE,x,x0) -> 0.22 | O187: =IF(Sheet1!$D$27=TRUE,y0+d0*(x-x0)+e0*(x-x0)^2+f0*(x-x0)^3+g0*(x-x0)^4,y0) -> 1.248 | Q187: =IF(Sheet1!$D$30=TRUE,x,x0) -> 0.22 | R187: =IF(Sheet1!$D$30=TRUE,y0+d0*(x-x0)+e0*(x-x0)^2+f0*(x-x0)^3+g0*(x-x0)^4+h0*(x-x0)^5,y0) -> 1.248 | T187: =IF(Sheet1!$D$33=TRUE,x,x0) -> 0.22 | U187: =IF(Sheet1!$D$33=TRUE,y0+d0*(x-x0)+e0*(x-x0)^2+f0*(x-x0)^3+g0*(x-x0)^4+h0*(x-x0)^5+i0*(x-x0)^6,y0) -> 1.248
C188: 0.232 | D188: 1.26 | E188: =IF(Sheet1!D$20=TRUE,x,x0) -> 0.23 | F188: =IF(Sheet1!D$20=TRUE,y0+d0*(x-x0),y0) -> 1.233 | H188: =IF(Sheet1!$D$23=TRUE,x,x0) -> 0.23 | I188: =IF(Sheet1!$D$23=TRUE,y0+d0*(x-x0)+e0*(x-x0)^2,y0) -> 1.261 | K188: =IF(Sheet1!$D$25=TRUE,x,x0) -> 0.00 | L188: =IF(Sheet1!$D$25=TRUE,y0+d0*(x-x0)+e0*(x-x0)^2+f0*(x-x0)^3,y0) -> 1.000 | N188: =IF(Sheet1!$D$27=TRUE,x,x0) -> 0.23 | O188: =IF(Sheet1!$D$27=TRUE,y0+d0*(x-x0)+e0*(x-x0)^2+f0*(x-x0)^3+g0*(x-x0)^4,y0) -> 1.263 | Q188: =IF(Sheet1!$D$30=TRUE,x,x0) -> 0.23 | R188: =IF(Sheet1!$D$30=TRUE,y0+d0*(x-x0)+e0*(x-x0)^2+f0*(x-x0)^3+g0*(x-x0)^4+h0*(x-x0)^5,y0) -> 1.263 | T188: =IF(Sheet1!$D$33=TRUE,x,x0) -> 0.23 | U188: =IF(Sheet1!$D$33=TRUE,y0+d0*(x-x0)+e0*(x-x0)^2+f0*(x-x0)^3+g0*(x-x0)^4+h0*(x-x0)^5+i0*(x-x0)^6,y0) -> 1.263
C189: 0.244 | D189: 1.28 | E189: =IF(Sheet1!D$20=TRUE,x,x0) -> 0.24 | F189: =IF(Sheet1!D$20=TRUE,y0+d0*(x-x0),y0) -> 1.245 | H189: =IF(Sheet1!$D$23=TRUE,x,x0) -> 0.24 | I189: =IF(Sheet1!$D$23=TRUE,y0+d0*(x-x0)+e0*(x-x0)^2,y0) -> 1.276 | K189: =IF(Sheet1!$D$25=TRUE,x,x0) -> 0.00 | L189: =IF(Sheet1!$D$25=TRUE,y0+d0*(x-x0)+e0*(x-x0)^2+f0*(x-x0)^3,y0) -> 1.000 | N189: =IF(Sheet1!$D$27=TRUE,x,x0) -> 0.24 | O189: =IF(Sheet1!$D$27=TRUE,y0+d0*(x-x0)+e0*(x-x0)^2+f0*(x-x0)^3+g0*(x-x0)^4,y0) -> 1.278 | Q189: =IF(Sheet1!$D$30=TRUE,x,x0) -> 0.24 | R189: =IF(Sheet1!$D$30=TRUE,y0+d0*(x-x0)+e0*(x-x0)^2+f0*(x-x0)^3+g0*(x-x0)^4+h0*(x-x0)^5,y0) -> 1.278 | T189: =IF(Sheet1!$D$33=TRUE,x,x0) -> 0.24 | U189: =IF(Sheet1!$D$33=TRUE,y0+d0*(x-x0)+e0*(x-x0)^2+f0*(x-x0)^3+g0*(x-x0)^4+h0*(x-x0)^5+i0*(x-x0)^6,y0) -> 1.278
C190: 0.256 | D190: 1.29 | E190: =IF(Sheet1!D$20=TRUE,x,x0) -> 0.26 | F190: =IF(Sheet1!D$20=TRUE,y0+d0*(x-x0),y0) -> 1.258 | H190: =IF(Sheet1!$D$23=TRUE,x,x0) -> 0.26 | I190: =IF(Sheet1!$D$23=TRUE,y0+d0*(x-x0)+e0*(x-x0)^2,y0) -> 1.291 | K190: =IF(Sheet1!$D$25=TRUE,x,x0) -> 0.00 | L190: =IF(Sheet1!$D$25=TRUE,y0+d0*(x-x0)+e0*(x-x0)^2+f0*(x-x0)^3,y0) -> 1.000 | N190: =IF(Sheet1!$D$27=TRUE,x,x0) -> 0.26 | O190: =IF(Sheet1!$D$27=TRUE,y0+d0*(x-x0)+e0*(x-x0)^2+f0*(x-x0)^3+g0*(x-x0)^4,y0) -> 1.294 | Q190: =IF(Sheet1!$D$30=TRUE,x,x0) -> 0.26 | R190: =IF(Sheet1!$D$30=TRUE,y0+d0*(x-x0)+e0*(x-x0)^2+f0*(x-x0)^3+g0*(x-x0)^4+h0*(x-x0)^5,y0) -> 1.294 | T190: =IF(Sheet1!$D$33=TRUE,x,x0) -> 0.26 | U190: =IF(Sheet1!$D$33=TRUE,y0+d0*(x-x0)+e0*(x-x0)^2+f0*(x-x0)^3+g0*(x-x0)^4+h0*(x-x0)^5+i0*(x-x0)^6,y0) -> 1.294
C191: 0.268 | D191: 1.31 | E191: =IF(Sheet1!D$20=TRUE,x,x0) -> 0.27 | F191: =IF(Sheet1!D$20=TRUE,y0+d0*(x-x0),y0) -> 1.270 | H191: =IF(Sheet1!$D$23=TRUE,x,x0) -> 0.27 | I191: =IF(Sheet1!$D$23=TRUE,y0+d0*(x-x0)+e0*(x-x0)^2,y0) -> 1.306 | K191: =IF(Sheet1!$D$25=TRUE,x,x0) -> 0.00 | L191: =IF(Sheet1!$D$25=TRUE,y0+d0*(x-x0)+e0*(x-x0)^2+f0*(x-x0)^3,y0) -> 1.000 | N191: =IF(Sheet1!$D$27=TRUE,x,x0) -> 0.27 | O191: =IF(Sheet1!$D$27=TRUE,y0+d0*(x-x0)+e0*(x-x0)^2+f0*(x-x0)^3+g0*(x-x0)^4,y0) -> 1.309 | Q191: =IF(Sheet1!$D$30=TRUE,x,x0) -> 0.27 | R191: =IF(Sheet1!$D$30=TRUE,y0+d0*(x-x0)+e0*(x-x0)^2+f0*(x-x0)^3+g0*(x-x0)^4+h0*(x-x0)^5,y0) -> 1.309 | T191: =IF(Sheet1!$D$33=TRUE,x,x0) -> 0.27 | U191: =IF(Sheet1!$D$33=TRUE,y0+d0*(x-x0)+e0*(x-x0)^2+f0*(x-x0)^3+g0*(x-x0)^4+h0*(x-x0)^5+i0*(x-x0)^6,y0) -> 1.309
C192: 0.280 | D192: 1.32 | E192: =IF(Sheet1!D$20=TRUE,x,x0) -> 0.28 | F192: =IF(Sheet1!D$20=TRUE,y0+d0*(x-x0),y0) -> 1.282 | H192: =IF(Sheet1!$D$23=TRUE,x,x0) -> 0.28 | I192: =IF(Sheet1!$D$23=TRUE,y0+d0*(x-x0)+e0*(x-x0)^2,y0) -> 1.321 | K192: =IF(Sheet1!$D$25=TRUE,x,x0) -> 0.00 | L192: =IF(Sheet1!$D$25=TRUE,y0+d0*(x-x0)+e0*(x-x0)^2+f0*(x-x0)^3,y0) -> 1.000 | N192: =IF(Sheet1!$D$27=TRUE,x,x0) -> 0.28 | O192: =IF(Sheet1!$D$27=TRUE,y0+d0*(x-x0)+e0*(x-x0)^2+f0*(x-x0)^3+g0*(x-x0)^4,y0) -> 1.325 | Q192: =IF(Sheet1!$D$30=TRUE,x,x0) -> 0.28 | R192: =IF(Sheet1!$D$30=TRUE,y0+d0*(x-x0)+e0*(x-x0)^2+f0*(x-x0)^3+g0*(x-x0)^4+h0*(x-x0)^5,y0) -> 1.325 | T192: =IF(Sheet1!$D$33=TRUE,x,x0) -> 0.28 | U192: =IF(Sheet1!$D$33=TRUE,y0+d0*(x-x0)+e0*(x-x0)^2+f0*(x-x0)^3+g0*(x-x0)^4+h0*(x-x0)^5+i0*(x-x0)^6,y0) -> 1.325
C193: 0.292 | D193: 1.34 | E193: =IF(Sheet1!D$20=TRUE,x,x0) -> 0.29 | F193: =IF(Sheet1!D$20=TRUE,y0+d0*(x-x0),y0) -> 1.294 | H193: =IF(Sheet1!$D$23=TRUE,x,x0) -> 0.29 | I193: =IF(Sheet1!$D$23=TRUE,y0+d0*(x-x0)+e0*(x-x0)^2,y0) -> 1.337 | K193: =IF(Sheet1!$D$25=TRUE,x,x0) -> 0.00 | L193: =IF(Sheet1!$D$25=TRUE,y0+d0*(x-x0)+e0*(x-x0)^2+f0*(x-x0)^3,y0) -> 1.000 | N193: =IF(Sheet1!$D$27=TRUE,x,x0) -> 0.29 | O193: =IF(Sheet1!$D$27=TRUE,y0+d0*(x-x0)+e0*(x-x0)^2+f0*(x-x0)^3+g0*(x-x0)^4,y0) -> 1.341 | Q193: =IF(Sheet1!$D$30=TRUE,x,x0) -> 0.29 | R193: =IF(Sheet1!$D$30=TRUE,y0+d0*(x-x0)+e0*(x-x0)^2+f0*(x-x0)^3+g0*(x-x0)^4+h0*(x-x0)^5,y0) -> 1.341 | T193: =IF(Sheet1!$D$33=TRUE,x,x0) -> 0.29 | U193: =IF(Sheet1!$D$33=TRUE,y0+d0*(x-x0)+e0*(x-x0)^2+f0*(x-x0)^3+g0*(x-x0)^4+h0*(x-x0)^5+i0*(x-x0)^6,y0) -> 1.341
C194: 0.304 | D194: =EXP(x) -> 1.36 | E194: =IF(Sheet1!D$20=TRUE,x,x0) -> 0.30 | F194: =IF(Sheet1!D$20=TRUE,y0+d0*(x-x0),y0) -> 1.306 | H194: =IF(Sheet1!$D$23=TRUE,x,x0) -> 0.30 | I194: =IF(Sheet1!$D$23=TRUE,y0+d0*(x-x0)+e0*(x-x0)^2,y0) -> 1.353 | K194: =IF(Sheet1!$D$25=TRUE,x,x0) -> 0.00 | L194: =IF(Sheet1!$D$25=TRUE,y0+d0*(x-x0)+e0*(x-x0)^2+f0*(x-x0)^3,y0) -> 1.000 | N194: =IF(Sheet1!$D$27=TRUE,x,x0) -> 0.30 | O194: =IF(Sheet1!$D$27=TRUE,y0+d0*(x-x0)+e0*(x-x0)^2+f0*(x-x0)^3+g0*(x-x0)^4,y0) -> 1.358 | Q194: =IF(Sheet1!$D$30=TRUE,x,x0) -> 0.30 | R194: =IF(Sheet1!$D$30=TRUE,y0+d0*(x-x0)+e0*(x-x0)^2+f0*(x-x0)^3+g0*(x-x0)^4+h0*(x-x0)^5,y0) -> 1.358 | T194: =IF(Sheet1!$D$33=TRUE,x,x0) -> 0.30 | U194: =IF(Sheet1!$D$33=TRUE,y0+d0*(x-x0)+e0*(x-x0)^2+f0*(x-x0)^3+g0*(x-x0)^4+h0*(x-x0)^5+i0*(x-x0)^6,y0) -> 1.358
C195: 0.316 | D195: 1.37 | E195: =IF(Sheet1!D$20=TRUE,x,x0) -> 0.32 | F195: =IF(Sheet1!D$20=TRUE,y0+d0*(x-x0),y0) -> 1.318 | H195: =IF(Sheet1!$D$23=TRUE,x,x0) -> 0.32 | I195: =IF(Sheet1!$D$23=TRUE,y0+d0*(x-x0)+e0*(x-x0)^2,y0) -> 1.368 | K195: =IF(Sheet1!$D$25=TRUE,x,x0) -> 0.00 | L195: =IF(Sheet1!$D$25=TRUE,y0+d0*(x-x0)+e0*(x-x0)^2+f0*(x-x0)^3,y0) -> 1.000 | N195: =IF(Sheet1!$D$27=TRUE,x,x0) -> 0.32 | O195: =IF(Sheet1!$D$27=TRUE,y0+d0*(x-x0)+e0*(x-x0)^2+f0*(x-x0)^3+g0*(x-x0)^4,y0) -> 1.374 | Q195: =IF(Sheet1!$D$30=TRUE,x,x0) -> 0.32 | R195: =IF(Sheet1!$D$30=TRUE,y0+d0*(x-x0)+e0*(x-x0)^2+f0*(x-x0)^3+g0*(x-x0)^4+h0*(x-x0)^5,y0) -> 1.374 | T195: =IF(Sheet1!$D$33=TRUE,x,x0) -> 0.32 | U195: =IF(Sheet1!$D$33=TRUE,y0+d0*(x-x0)+e0*(x-x0)^2+f0*(x-x0)^3+g0*(x-x0)^4+h0*(x-x0)^5+i0*(x-x0)^6,y0) -> 1.374
C196: =C195+dx -> 0.328 | D196: 1.39 | E196: =IF(Sheet1!D$20=TRUE,x,x0) -> 0.33 | F196: =IF(Sheet1!D$20=TRUE,y0+d0*(x-x0),y0) -> 1.330 | H196: =IF(Sheet1!$D$23=TRUE,x,x0) -> 0.33 | I196: =IF(Sheet1!$D$23=TRUE,y0+d0*(x-x0)+e0*(x-x0)^2,y0) -> 1.384 | K196: =IF(Sheet1!$D$25=TRUE,x,x0) -> 0.00 | L196: =IF(Sheet1!$D$25=TRUE,y0+d0*(x-x0)+e0*(x-x0)^2+f0*(x-x0)^3,y0) -> 1.000 | N196: =IF(Sheet1!$D$27=TRUE,x,x0) -> 0.33 | O196: =IF(Sheet1!$D$27=TRUE,y0+d0*(x-x0)+e0*(x-x0)^2+f0*(x-x0)^3+g0*(x-x0)^4,y0) -> 1.391 | Q196: =IF(Sheet1!$D$30=TRUE,x,x0) -> 0.33 | R196: =IF(Sheet1!$D$30=TRUE,y0+d0*(x-x0)+e0*(x-x0)^2+f0*(x-x0)^3+g0*(x-x0)^4+h0*(x-x0)^5,y0) -> 1.391 | T196: =IF(Sheet1!$D$33=TRUE,x,x0) -> 0.33 | U196: =IF(Sheet1!$D$33=TRUE,y0+d0*(x-x0)+e0*(x-x0)^2+f0*(x-x0)^3+g0*(x-x0)^4+h0*(x-x0)^5+i0*(x-x0)^6,y0) -> 1.391
C197: 0.340 | D197: 1.40 | E197: =IF(Sheet1!D$20=TRUE,x,x0) -> 0.34 | F197: =IF(Sheet1!D$20=TRUE,y0+d0*(x-x0),y0) -> 1.342 | H197: =IF(Sheet1!$D$23=TRUE,x,x0) -> 0.34 | I197: =IF(Sheet1!$D$23=TRUE,y0+d0*(x-x0)+e0*(x-x0)^2,y0) -> 1.401 | K197: =IF(Sheet1!$D$25=TRUE,x,x0) -> 0.00 | L197: =IF(Sheet1!$D$25=TRUE,y0+d0*(x-x0)+e0*(x-x0)^2+f0*(x-x0)^3,y0) -> 1.000 | N197: =IF(Sheet1!$D$27=TRUE,x,x0) -> 0.34 | O197: =IF(Sheet1!$D$27=TRUE,y0+d0*(x-x0)+e0*(x-x0)^2+f0*(x-x0)^3+g0*(x-x0)^4,y0) -> 1.408 | Q197: =IF(Sheet1!$D$30=TRUE,x,x0) -> 0.34 | R197: =IF(Sheet1!$D$30=TRUE,y0+d0*(x-x0)+e0*(x-x0)^2+f0*(x-x0)^3+g0*(x-x0)^4+h0*(x-x0)^5,y0) -> 1.408 | T197: =IF(Sheet1!$D$33=TRUE,x,x0) -> 0.34 | U197: =IF(Sheet1!$D$33=TRUE,y0+d0*(x-x0)+e0*(x-x0)^2+f0*(x-x0)^3+g0*(x-x0)^4+h0*(x-x0)^5+i0*(x-x0)^6,y0) -> 1.408
C198: 0.352 | D198: 1.42 | E198: =IF(Sheet1!D$20=TRUE,x,x0) -> 0.35 | F198: =IF(Sheet1!D$20=TRUE,y0+d0*(x-x0),y0) -> 1.354 | H198: =IF(Sheet1!$D$23=TRUE,x,x0) -> 0.35 | I198: =IF(Sheet1!$D$23=TRUE,y0+d0*(x-x0)+e0*(x-x0)^2,y0) -> 1.417 | K198: =IF(Sheet1!$D$25=TRUE,x,x0) -> 0.00 | L198: =IF(Sheet1!$D$25=TRUE,y0+d0*(x-x0)+e0*(x-x0)^2+f0*(x-x0)^3,y0) -> 1.000 | N198: =IF(Sheet1!$D$27=TRUE,x,x0) -> 0.35 | O198: =IF(Sheet1!$D$27=TRUE,y0+d0*(x-x0)+e0*(x-x0)^2+f0*(x-x0)^3+g0*(x-x0)^4,y0) -> 1.425 | Q198: =IF(Sheet1!$D$30=TRUE,x,x0) -> 0.35 | R198: =IF(Sheet1!$D$30=TRUE,y0+d0*(x-x0)+e0*(x-x0)^2+f0*(x-x0)^3+g0*(x-x0)^4+h0*(x-x0)^5,y0) -> 1.425 | T198: =IF(Sheet1!$D$33=TRUE,x,x0) -> 0.35 | U198: =IF(Sheet1!$D$33=TRUE,y0+d0*(x-x0)+e0*(x-x0)^2+f0*(x-x0)^3+g0*(x-x0)^4+h0*(x-x0)^5+i0*(x-x0)^6,y0) -> 1.425
C199: 0.364 | D199: 1.44 | E199: =IF(Sheet1!D$20=TRUE,x,x0) -> 0.36 | F199: =IF(Sheet1!D$20=TRUE,y0+d0*(x-x0),y0) -> 1.366 | H199: =IF(Sheet1!$D$23=TRUE,x,x0) -> 0.36 | I199: =IF(Sheet1!$D$23=TRUE,y0+d0*(x-x0)+e0*(x-x0)^2,y0) -> 1.433 | K199: =IF(Sheet1!$D$25=TRUE,x,x0) -> 0.00 | L199: =IF(Sheet1!$D$25=TRUE,y0+d0*(x-x0)+e0*(x-x0)^2+f0*(x-x0)^3,y0) -> 1.000 | N199: =IF(Sheet1!$D$27=TRUE,x,x0) -> 0.36 | O199: =IF(Sheet1!$D$27=TRUE,y0+d0*(x-x0)+e0*(x-x0)^2+f0*(x-x0)^3+g0*(x-x0)^4,y0) -> 1.442 | Q199: =IF(Sheet1!$D$30=TRUE,x,x0) -> 0.36 | R199: =IF(Sheet1!$D$30=TRUE,y0+d0*(x-x0)+e0*(x-x0)^2+f0*(x-x0)^3+g0*(x-x0)^4+h0*(x-x0)^5,y0) -> 1.442 | T199: =IF(Sheet1!$D$33=TRUE,x,x0) -> 0.36 | U199: =IF(Sheet1!$D$33=TRUE,y0+d0*(x-x0)+e0*(x-x0)^2+f0*(x-x0)^3+g0*(x-x0)^4+h0*(x-x0)^5+i0*(x-x0)^6,y0) -> 1.442
C200: 0.376 | D200: 1.46 | E200: =IF(Sheet1!D$20=TRUE,x,x0) -> 0.38 | F200: =IF(Sheet1!D$20=TRUE,y0+d0*(x-x0),y0) -> 1.378 | H200: =IF(Sheet1!$D$23=TRUE,x,x0) -> 0.38 | I200: =IF(Sheet1!$D$23=TRUE,y0+d0*(x-x0)+e0*(x-x0)^2,y0) -> 1.450 | K200: =IF(Sheet1!$D$25=TRUE,x,x0) -> 0.00 | L200: =IF(Sheet1!$D$25=TRUE,y0+d0*(x-x0)+e0*(x-x0)^2+f0*(x-x0)^3,y0) -> 1.000 | N200: =IF(Sheet1!$D$27=TRUE,x,x0) -> 0.38 | O200: =IF(Sheet1!$D$27=TRUE,y0+d0*(x-x0)+e0*(x-x0)^2+f0*(x-x0)^3+g0*(x-x0)^4,y0) -> 1.460 | Q200: =IF(Sheet1!$D$30=TRUE,x,x0) -> 0.38 | R200: =IF(Sheet1!$D$30=TRUE,y0+d0*(x-x0)+e0*(x-x0)^2+f0*(x-x0)^3+g0*(x-x0)^4+h0*(x-x0)^5,y0) -> 1.460 | T200: =IF(Sheet1!$D$33=TRUE,x,x0) -> 0.38 | U200: =IF(Sheet1!$D$33=TRUE,y0+d0*(x-x0)+e0*(x-x0)^2+f0*(x-x0)^3+g0*(x-x0)^4+h0*(x-x0)^5+i0*(x-x0)^6,y0) -> 1.460
... 310 more rows

Sheet Sheet3
